Workbook

Sheet Data Entry
B1: SERVICE LIFE CALCULATION | Y1: Document Revision History | AD1: TCAE-R SERIES | AE1: DBSE | AG1: Weight | AH1: Dia | AI1: DBSE | AJ1: Shaft Size / Bore Size | AL1: To Suit Taperlock Size
E2: SELECTED | G2: LIFE HOURS | H2: FIT FOR USE | I2: MAX RPM | J2: DBSE RANGE [mm] | Y2: A | Z2: Draft release | AA2: 06/12/2019 | AE2: min | AF2: max | AG2: [kg] | AH2: [mm] | AI2: range | AJ2: [mm] | AK2: [in]
B3: =IF(E3="", "","OPTION 1") ->  | C3: =IF(B3="","","Meets all input criteria") ->  | E3: =IF(OR(TYPE="CLICK HERE",D18="CLICK HERE",D20="CLICK HERE",MSF="CLICK HERE"),"",IF('Model tables'!C29="-","",'Model tables'!C29)) ->  | G3: =IF(OR(TYPE="CLICK HERE",D18="CLICK HERE",D20="CLICK HERE",MSF="CLICK HERE"),"",IF('Model tables'!C29="-","",IF('Model tables'!D29*hourpa>=25000, "25,000",'Model tables'!D29*hourpa))) ->  | H3: =IF(G3="","",IF(AND(G3/hourpa>=1,G3/hourpa<2)," 1-2 yrs",IF(AND(G3/hourpa>=2,G3/hourpa<3)," 2-3 yrs","> 3 yrs"))) ->  | I3: =IF(G3="","",IFERROR(INDEX('Model tables'!E16:E31,MATCH('Data Entry'!E3,'Model tables'!C16:C31,0)),"-")) ->  | J3: =IFERROR(INDEX(AI1:AI62,MATCH(E3,AD1:AD62,0)),"") ->  | N3: Customer Name: | T3: Date: | Y3: B | Z3: Warranty period formula changed | AA3: 2019-12-19 | AD3: TCAE-R-1 | AE3: ='Model tables'!H12 -> 130 | AF3: ='Model tables'!I12 -> 140 | AG3: ='Model tables'!L12 -> 2 | AH3: ='Model tables'!M12 -> 148 | AI3: =CONCATENATE('Model tables'!N12," (",AE3,"-",AF3,")") -> 135 (130-140) | AJ3: 16 to 65 | AK3: 0.625 to 2.5 | AL3: #2517
B4: =IF(E4="", "",IF(B3="OPTION 1", "OPTION 2","OPTION 1")) ->  | C4: =IF(B4="","",IF(E4='Model tables'!C16,"Meets all input criteria",IF(E4='Model tables'!C18,"Meets all input criteria","DBSE change required"))) ->  | E4: =IF(OR(TYPE="CLICK HERE",D18="CLICK HERE",D20="CLICK HERE",MSF="CLICK HERE"),"",IF('Model tables'!C30="-","",'Model tables'!C30)) ->  | G4: =IF(OR(TYPE="CLICK HERE",D18="CLICK HERE",D20="CLICK HERE",MSF="CLICK HERE"),"",IF('Model tables'!C30="-","",IF('Model tables'!D30*hourpa>=25000, "25,000",'Model tables'!D30*hourpa))) ->  | H4: =IF(G4="","",IF(AND(G4/hourpa>=1,G4/hourpa<2)," 1-2 yrs",IF(AND(G4/hourpa>=2,G4/hourpa<3)," 2-3 yrs","> 3 yrs"))) ->  | I4: =IF(G4="","",IFERROR(INDEX('Model tables'!E16:E316,MATCH('Data Entry'!E4,'Model tables'!C16:C31,0)),"-")) ->  | J4: =IFERROR(INDEX(AI1:AI62,MATCH(E4,AD1:AD62,0)),"") ->  | N4: Distributor Name: | T4: Ref #: | Y4: C | Z4: Procedure page | AA4: 2019-12-23 | AD4: TCAE-R-2 | AE4: ='Model tables'!H13 -> 155 | AF4: ='Model tables'!I13 -> 175 | AG4: ='Model tables'!L13 -> 10 | AH4: ='Model tables'!M13 -> 178 | AI4: =CONCATENATE('Model tables'!N13," (",AE4,"-",AF4,")") -> 165 (155-175) | AJ4: 16 to 65 | AK4: 0.62 to 2.5 | AL4: #2517
B5: =IF(E5="","",IF(B4="OPTION 1","OPTION 2",IF(B4="OPTION 2","OPTION 3",IF(B3="OPTION 1","OPTION 2","OPTION 1")))) ->  | C5: =IF(B5="","",IF(E5='Model tables'!C16,"Meets all input criteria",IF(E5='Model tables'!C18,"Meets all input criteria","DBSE change required"))) ->  | E5: =IF(OR(TYPE="CLICK HERE",D18="CLICK HERE",D20="CLICK HERE",MSF="CLICK HERE"),"",IF('Model tables'!C31="-","",'Model tables'!C31)) ->  | G5: =IF(OR(TYPE="CLICK HERE",D18="CLICK HERE",D20="CLICK HERE",MSF="CLICK HERE"),"",IF('Model tables'!C31="-","",IF('Model tables'!D31*hourpa>=25000, "25,000",'Model tables'!D31*hourpa))) ->  | H5: =IF(G5="","",IF(AND(G5/hourpa>=1,G5/hourpa<2)," 1-2 yrs",IF(AND(G5/hourpa>=2,G5/hourpa<3)," 2-3 yrs","> 3 yrs"))) ->  | I5: =IF(G5="","",IFERROR(INDEX('Model tables'!E16:E31,MATCH('Data Entry'!E5,'Model tables'!C16:C31,0)),"-")) ->  | J5: =IFERROR(INDEX(AI1:AI62,MATCH(E5,AD1:AD62,0)),"") ->  | Y5: 2 | Z5: Released | AA5: 2019-12-30 | AD5: TCAE-R-3 | AE5: ='Model tables'!H14 -> 285 | AF5: ='Model tables'!I14 -> 305 | AG5: ='Model tables'!L14 -> 21 | AH5: ='Model tables'!M14 -> 215 | AI5: =CONCATENATE('Model tables'!N14," (",AE5,"-",AF5,")") -> 295 (285-305) | AJ5: 25 to 75 | AK5: 1.0 to 3.0 | AL5: #3020
B6: Message Bar: | Y6: 3 | Z6: Fixed error in R series | AA6: 2020-01-19 | AD6: TCAE-R-4 | AE6: ='Model tables'!H15 -> 285 | AF6: ='Model tables'!I15 -> 305 | AG6: ='Model tables'!L15 -> 28 | AH6: ='Model tables'!M15 -> 253 | AI6: =CONCATENATE('Model tables'!N15," (",AE6,"-",AF6,")") -> 295 (285-305) | AJ6: 35 to 100 | AK6: 1.5 to 4.0 | AL6: #3525
B7: =IF(TYPE="CLICK HERE","Check Motor Type Details",IF(D18="CLICK HERE","Check Motor Power unit",IF(D20="CLICK HERE","Check Motor Shaft Diameter unit",IF(MSF="CLICK HERE","Check Machine Service Factor",IF(AND('Model tables'!C29="-",'Model tables'!C30="-",'Model tables'!C31="-"),"DBSE is not achievable for the input selected OR unable to select a suitable coupling",""))))) -> Check Motor Type Details | G7: =IF(B7="DBSE is not achievable for the input selected OR unable to select a suitable coupling","If possible to move either Drive or Driven device to change DBSE, an alternative model may be found. See DBSE’s on right side",IF(B7="","","")) ->  | Q7: =IF(B7="DBSE is not achievable for the input selected OR unable to select a suitable coupling","Please enter new DBSE OR Please contact the distributor / manufacturer","") ->  | Y7: 4 | Z7: Changed Layout | AA7: 2020-04-23 | AD7: TCAE-R-5 | AE7: ='Model tables'!H16 -> 300 | AF7: ='Model tables'!I16 -> 330 | AG7: ='Model tables'!L16 -> 39 | AH7: ='Model tables'!M16 -> 278 | AI7: =CONCATENATE('Model tables'!N16," (",AE7,"-",AF7,")") -> 315 (300-330) | AJ7: 35 to 100 | AK7: 1.5 to 4.0 | AL7: #3525
Y8: 5 | Z8: Fixed error in R series | AA8: 07/05/2020 | AD8: TCAE-R-6 | AE8: ='Model tables'!H17 -> 277 | AF8: ='Model tables'!I17 -> 305 | AG8: ='Model tables'!L17 -> 43 | AH8: ='Model tables'!M17 -> 300 | AI8: =CONCATENATE('Model tables'!N17," (",AE8,"-",AF8,")") -> 291 (277-305) | AJ8: 35 to 100 | AK8: 1.5 to 4.0 | AL8: #3525
B9: MOTOR DETAILS | G9: DRIVEN SHAFT DETAILS | L9: IF GEARBOX CONNECTED | Q9: MACHINE OPERATIONAL DUTY TIME | V9: D A T A E N T R Y | Y9: 6 | Z9: Fixed error in R series | AA9: 2020-05-21 | AD9: TCAE-R-7 | AE9: ='Model tables'!H18 -> 330 | AF9: ='Model tables'!I18 -> 358 | AG9: ='Model tables'!L18 -> 60 | AH9: ='Model tables'!M18 -> 330 | AI9: =CONCATENATE('Model tables'!N18," (",AE9,"-",AF9,")") -> 344 (330-358) | AJ9: 35 to 100 | AK9: 1.5 to 4.0 | AL9: #3525
Y10: 7 | Z10: mm & inches added | AA10: 2020-05-23 | AD10: TCAE-R-8 | AE10: ='Model tables'!H19 -> 330 | AF10: ='Model tables'!I19 -> 358 | AG10: ='Model tables'!L19 -> 62 | AH10: ='Model tables'!M19 -> 370 | AI10: =CONCATENATE('Model tables'!N19," (",AE10,"-",AF10,")") -> 344 (330-358) | AJ10: 35 to 100 | AK10: 1.5 to 4.0 | AL10: #3525
Y11: 8 | Z11: Format Change | AA11: 2021-01-13 | AD11: TCAE-L SERIES | AE11: DBSE | AG11: Weight | AH11: Dia | AI11: DBSE
Y12: 9 | Z12: Updated R,L,V,S series Format change | AA12: 2021-07-27 | AE12: min | AF12: max | AG12: [kg] | AH12: [mm] | AI12: range
Y13: 10 | Z13: Updated V-series New service life periods | AA13: 2021-11-01 | AD13: TCAE-L-1 | AE13: ='Model tables'!H95 -> 307 | AF13: ='Model tables'!I95 -> 1800 | AG13: L dependant | AH13: ='Model tables'!M95 -> 148 | AI13: =CONCATENATE(" (",AE13,"-",AF13,")") -> (307-1800)
AD14: TCAE-L-2 | AE14: ='Model tables'!H96 -> 386 | AF14: ='Model tables'!I96 -> 2000 | AH14: ='Model tables'!M96 -> 178 | AI14: (386-2000)
AD15: TCAE-L-3 | AE15: ='Model tables'!H97 -> 429 | AF15: ='Model tables'!I97 -> 2000 | AH15: ='Model tables'!M97 -> 215 | AI15: (429-2000)
E16: =IF(OR(TYPE=Calculations!G8,TYPE=Calculations!G9,TYPE=Calculations!G10,TYPE=Calculations!G11),"Enter Peak Engine Torque Below","") ->  | AD16: TCAE-L-4 | AE16: ='Model tables'!H98 -> 473 | AF16: ='Model tables'!I98 -> 2000 | AH16: ='Model tables'!M98 -> 253 | AI16: (473-2000)
B17: TYPE | C17: CLICK HERE | G17: DISTANCE BETWEEN SHAFT ENDS (MOTOR TO DRIVEN SHAFT OR GEARBOX TO DRIVEN SHAFT) | J17: =IF(D20="CLICK HERE","",D20) ->  | AD17: TCAE-L-5 | AE17: ='Model tables'!H99 -> 500 | AF17: ='Model tables'!I99 -> 2000 | AH17: ='Model tables'!M99 -> 278 | AI17: (500-2000)
B18: POWER | D18: CLICK HERE | AD18: TCAE-L-6 | AE18: ='Model tables'!H100 -> 582 | AF18: ='Model tables'!I100 -> 2000 | AH18: ='Model tables'!M100 -> 300 | AI18: (582-2000)
B19: SPEED | D19: RPM | E19: - | L19: SHAFT DIAMETER | N19: =IF(D20="CLICK HERE","",D20) ->  | Q19: HOURS PER DAY | AD19: TCAE-L-7 | AE19: ='Model tables'!H101 -> 643 | AF19: ='Model tables'!I101 -> 2000 | AH19: ='Model tables'!M101 -> 330 | AI19: (643-2000)
B20: SHAFT DIAMETER | D20: CLICK HERE | G20: DRIVEN SHAFT DIAMETER | J20: =IF(D20="CLICK HERE","",D20) ->  | Q20: DAYS PER WEEK | Y20: Manual Entry | AD20: TCAE-L-8 | AE20: ='Model tables'!H102 -> 760 | AF20: ='Model tables'!I102 -> 2000 | AH20: ='Model tables'!M102 -> 370 | AI20: (760-2000)
B21: SHAFT ANGLE DEGREES | D21: ≤ 5⁰ | G21: MACHINE DUTY SERVICE TYPE | I21: CLICK HERE | J21: SEE EXAMPLES BELOW | L21: INPUT THE RATIO TO 1 | Q21: WEEKS PER YEAR | Y21: Drop-down Menu | AD21: TCAE-CM SERIES | AE21: DBSE | AG21: Weight | AH21: Dia | AI21: DBSE
B22: FREQUENT START/STOP OR REVERSING LOADS | C22: CLICK HERE | D22: SELECT Y / N | G22: MACHINE SERVICE FACTOR | I22: =IFERROR(IF(C22="Y", MAX(2,VLOOKUP(I21,Calculations!G14:H20,2)),VLOOKUP(I21,Calculations!G14:H20,2)),"-") -> - | L22: FINAL SPEED | M22: =IF(RATIO="",SPEED,SPEED/RATIO) -> 0 | N22: RPM | Q22: TOTAL HOURS PA | S22: =hours*days*weeks -> 0 | AE22: min | AF22: max | AG22: [kg] | AH22: [mm] | AI22: range
AD23: TCAE-CM-9 | AE23: ='Model tables'!H119 -> 535 | AF23: ='Model tables'!I119 -> 2500 | AG23: L dependant | AH23: ='Model tables'!M119 -> 336 | AI23: =CONCATENATE(" (",AE23,"-",AF23,")") -> (535-2500)
B24: The DBSE (minimum and maximum) for our TCAE-S, TCAE-V, TCAE-R, TCAE-L and TCAE-CM Series Couplings are listed in the columns AD-AL on the right. Print and send to us or call +61 7 3040 8066. | U24: ©TCL 2021 | AD24: TCAE-CM-10 | AE24: ='Model tables'!H120 -> 570 | AF24: ='Model tables'!I120 -> 2500 | AH24: ='Model tables'!M120 -> 376 | AI24: (570-2500)
AD25: TCAE-CM-11 | AE25: ='Model tables'!H121 -> 650 | AF25: ='Model tables'!I121 -> 3000 | AH25: ='Model tables'!M121 -> 420 | AI25: (650-3000)
B26: MACHINE DUTY SERVICE TYPE | AD26: TCAE-CM-12 | AE26: ='Model tables'!H122 -> 715 | AF26: ='Model tables'!I122 -> 3000 | AH26: ='Model tables'!M122 -> 462 | AI26: (715-3000)
B27: SMOOTH | E27: LIGHT DUTY | H27: MODERATE DUTY | K27: MEDIUM DUTY | N27: HEAVYDUTY | R27: VERY HEAVY DUTY | V27: EXTREME SHOCK | AD27: TCAE-CM-13 | AE27: ='Model tables'!H123 -> 770 | AF27: ='Model tables'!I123 -> 3000 | AH27: ='Model tables'!M123 -> 504 | AI27: (770-3000)
B28: Agitators | E28: Belt conveyors | H28: Beaters | K28: Concrete mixers | N28: Barge pullers | R28: Ball mill drive | V28: Conveyors - reciprocating | AD28: TCAE-CM-14 | AE28: ='Model tables'!H124 -> 840 | AF28: ='Model tables'!I124 -> 3000 | AH28: ='Model tables'!M124 -> 580 | AI28: (840-3000)
B29: Blowers-centrifugal | E29: Blowers-Vane | H29: Blowers- lobe | K29: Dredge - screen drives | N29: Cranes - main hoist | R29: Crushers -ore | V29: Conveyors - shaking/live roll | AD29: TCAE-S SERIES | AE29: DBSE | AG29: Weight | AH29: Dia | AI29: DBSE | AJ29: Bore D
B30: Evaporators | E30: compressor -centrifugal | H30: Bucket conveyor | K30: Dredge - stacker | N30: Cranes -reversing | R30: Crushers -stone | V30: Metal rolling - feed rolls | AE30: [mm] | AG30: [kg] | AH30: [mm] | AI30: range | AJ30: [mm]
B31: Fans . Centrifugal | E31: Fans -Induced draft | H31: Compressor - lobe | K31: Dredge - cable reels | N31: Elevator -freight | R31: Dredge - cutter head | V31: Metal rolling - reversing rolls | AD31: ='Model tables'!I36 -> TCAE-S-1 + Spacer | AE31: ='Model tables'!M36 -> 10 | AG31: ='Model tables'!K36 -> 5 | AH31: ='Model tables'!L36 -> 152 | AI31: =CONCATENATE('Model tables'!O36," (min) ") -> 10 (min) | AJ31: ='Model tables'!H36 -> 30
B32: Pumps - Centrifugal | E32: Feeders | H32: Dredge - conveyor | K32: Dredge - winches | N32: Fans - cooling tower | R32: Feeder - reciprocating | V32: Metal rolling - hot mills | AD32: ='Model tables'!I37 -> TCAE-S-2 + Spacer | AE32: ='Model tables'!M37 -> 10 | AG32: ='Model tables'!K37 -> 9 | AH32: ='Model tables'!L37 -> 179 | AI32: =CONCATENATE('Model tables'!O37," (min) ") -> 10 (min) | AJ32: ='Model tables'!H37 -> 40
B33: Screens - Air washer | E33: Machine-tool drives | H33: Fans - propellor | K33: Elevator -bucket | N33: Generator - welding | R33: Machine tool - tappers | V33: Metal, rolling - Manipulators | AD33: ='Model tables'!I38 -> TCAE-S-3 + Spacer | AE33: ='Model tables'!M38 -> 10 | AG33: ='Model tables'!K38 -> 15 | AH33: ='Model tables'!L38 -> 215 | AI33: =CONCATENATE('Model tables'!O38," (min) ") -> 10 (min) | AJ33: ='Model tables'!H38 -> 50
B34: Steering gear | E34: Oil industry chillers | H34: Fans -forced draft | K34: Hoist - bridge drive | N34: Hammer mills | R34: Metal forming - Table conveyors | V34: Metal rolling - merchant mill | AD34: ='Model tables'!I39 -> TCAE-S-4 + Spacer | AE34: ='Model tables'!M39 -> 10 | AG34: ='Model tables'!K39 -> 18 | AH34: ='Model tables'!L39 -> 236 | AI34: =CONCATENATE('Model tables'!O39," (min) ") -> 10 (min) | AJ34: ='Model tables'!H39 -> 55
B35: Stokers | E35: Paper mill - agitators | H35: Line shaft conveyor | K35: Hoist - skip | N35: Laundry washer | R35: Metal rolling - furnace pushers | V35: Metal rolling - piercers | AD35: ='Model tables'!I40 -> TCAE-S-5 + Spacer | AE35: ='Model tables'!M40 -> 10 | AG35: ='Model tables'!K40 -> 33 | AH35: ='Model tables'!L40 -> 270 | AI35: =CONCATENATE('Model tables'!O40," (min) ") -> 10 (min) | AJ35: ='Model tables'!H40 -> 60
B36: Rubber plant - Tyre press opener | E36: Paper mill - conveyors | H36: Metal forming - slitters | K36: Hoist - trolley drive | N36: Machine tool - bending rolls | R36: Metal rolling- ingot cars | V36: Metal rolling - reelers | AD36: ='Model tables'!I41 -> TCAE-S-6 + Spacer | AE36: ='Model tables'!M41 -> 10 | AG36: ='Model tables'!K41 -> 28 | AH36: ='Model tables'!L41 -> 244 | AI36: =CONCATENATE('Model tables'!O41," (min) ") -> 10 (min) | AJ36: ='Model tables'!H41 -> 65
B37: Woodworking machinery | E37: Screens - Travelling water | H37: Metal forming- wire winder | K37: Metal forming -wire winder | N37: Machine tool - punch press | R37: Metal rolling - kick outs | V37: Metal rolling - rod & bar molls | AD37: ='Model tables'!I42 -> TCAE-S-7 + Spacer | AE37: ='Model tables'!M42 -> 10 | AG37: ='Model tables'!K42 -> 37 | AH37: ='Model tables'!L42 -> 272 | AI37: =CONCATENATE('Model tables'!O42," (min) ") -> 10 (min) | AJ37: ='Model tables'!H42 -> 65
E38: Sewage disposal equipment | H38: Metal rolling - coilers (cold) | K38: Metal rolling - cooler beds | N38: Metal forming- draw bench drive | R38: Metal rolling - pusher rams | V38: Metal rolling - roughing mill feed rolls | AD38: ='Model tables'!I43 -> TCAE-S-8 + Spacer | AE38: ='Model tables'!M43 -> 10 | AG38: ='Model tables'!K43 -> 52 | AH38: ='Model tables'!L43 -> 292 | AI38: =CONCATENATE('Model tables'!O43," (min) ") -> 10 (min) | AJ38: ='Model tables'!H43 -> 85
E39: Textile dyeing machines | H39: Metal rolling- wire drawing | K39: Metal rolling - edger drive | N39: Metal forming -extruder | R39: Metal rolling - runout tables | V39: Metal rolling – screwdown drive rolls | AD39: ='Model tables'!I44 -> TCAE-S-9 + Spacer | AE39: ='Model tables'!M44 -> 10 | AG39: ='Model tables'!K44 -> 80 | AH39: ='Model tables'!L44 -> 336 | AI39: =CONCATENATE('Model tables'!O44," (min) ") -> 10 (min) | AJ39: ='Model tables'!H44 -> 110
H40: Multers | K40: Metal rolling - reel drives | N40: Metal rolling - coiler (hot) | R40: Metal rolling - saws | V40: Metal rolling - skelp mills | AD40: ='Model tables'!I45 -> TCAE-S-10 + Spacer | AE40: ='Model tables'!M45 -> 10 | AG40: ='Model tables'!K45 -> 113 | AH40: ='Model tables'!L45 -> 376 | AI40: =CONCATENATE('Model tables'!O45," (min) ") -> 10 (min) | AJ40: ='Model tables'!H45 -> 125
H41: Paper mill - converters | K41: Oil industry filter press | N41: Metal rolling - door openers | R41: Metal rolling – straighteners | V41: Metal rolling - slitter rolls | AD41: ='Model tables'!I46 -> TCAE-S-11 + Spacer | AE41: ='Model tables'!M46 -> 10 | AG41: ='Model tables'!K46 -> 120 | AH41: ='Model tables'!L46 -> 420 | AI41: =CONCATENATE('Model tables'!O46," (min) ") -> 10 (min) | AJ41: ='Model tables'!H46 -> 130
H42: Paper mill - reelers | K42: Paper mill - beater/pulper | N42: Metal rolling - reel drums | R42: Metal rolling - transfer tables | V42: Metal rolling - slabbing molls | AD42: ='Model tables'!I47 -> TCAE-S-12 + Spacer | AE42: ='Model tables'!M47 -> 10 | AG42: ='Model tables'!K47 -> 173 | AH42: ='Model tables'!L47 -> 462 | AI42: =CONCATENATE('Model tables'!O47," (min) ") -> 10 (min) | AJ42: ='Model tables'!H47 -> 150
H43: Paper mill - winders | K43: Paper mill - dryers | N43: Metal rolling -draw bench | R43: Metal rolling - tube conveyor rolls | V43: Metal rolling - soaking pit drive | AD43: ='Model tables'!I48 -> TCAE-S-13 + Spacer | AE43: ='Model tables'!M48 -> 10 | AG43: ='Model tables'!K48 -> 0 | AH43: ='Model tables'!L48 -> 504 | AI43: =CONCATENATE('Model tables'!O48," (min) ") -> 10 (min) | AJ43: ='Model tables'!H48 -> 170
H44: Printing presses | K44: Paper mill - jordans | N44: Mills - cement/kiln | R44: Metal rolling- unscramblers | V44: Metal rolling - thrust block drove | AD44: ='Model tables'!I49 -> TCAE-S-14 + Spacer | AE44: ='Model tables'!M49 -> 10 | AG44: ='Model tables'!K49 -> 0 | AH44: ='Model tables'!L49 -> 580 | AI44: =CONCATENATE('Model tables'!O49," (min) ") -> 10 (min) | AJ44: ='Model tables'!H49 -> 200
H45: Pumps - Gear/rotary/Vane | K45: pumps - reciproc - 3 cyl+ | N45: Mills - pebble | R45: Paper Mills - barker drum gear | V45: Metal rolling - Traction drive | AD45: TCAE-V SERIES | AE45: DBSE | AG45: Weight | AH45: Dia | AI45: DBSE | AJ45: To Suit Taperlock Size
H46: Screens - Rotary stone/gravel | K46: Timber - planer | N46: Mills - tube | R46: Paper Mills - chipper drive | AE46: min | AF46: max | AG46: [kg] | AH46: [mm] | AI46: range
H47: Screw conveyor | K47: Timber - slab conveyor | N47: Mills - tumbling | R47: Pumps - reciproc - 2cyl | AD47: ='Model tables'!J62 -> TCAE-V-00 | AE47: ='Model tables'!H62 -> 74 | AF47: ='Model tables'!I62 -> 80 | AG47: ='Model tables'!L62 -> 2 | AH47: ='Model tables'!M62 -> 118 | AI47: =CONCATENATE('Model tables'!N62," (",AE47,"-",AF47,")") -> 77 (74-80) | AJ47: #1615
H48: Shredders | K48: Timber - trimmer feed | N48: Mills- dryers/coolers | R48: Rubber plant - rubber mill | AD48: ='Model tables'!J63 -> TCAE-V-0 | AE48: ='Model tables'!H63 -> 84 | AF48: ='Model tables'!I63 -> 92 | AG48: ='Model tables'!L63 -> 3 | AH48: ='Model tables'!M63 -> 134 | AI48: =CONCATENATE('Model tables'!N63," (",AE48,"-",AF48,")") -> 88 (84-92) | AJ48: #1615
H49: Textile machinery - dryers | K49: Tumblers – barrel | N49: Mills- rolling | R49: Rubber plant - mixers | AD49: ='Model tables'!J64 -> TCAE-V-1 | AE49: ='Model tables'!H64 -> 96 | AF49: ='Model tables'!I64 -> 108 | AG49: ='Model tables'!L64 -> 4 | AH49: ='Model tables'!M64 -> 152 | AI49: =CONCATENATE('Model tables'!N64," (",AE49,"-",AF49,")") -> 102 (96-108) | AJ49: #2517
H50: Timber - sorting table | K50: Windlasses | N50: Paper mills – barker mechanical | R50: Rubber plant -tyre builder m/c | AD50: ='Model tables'!J65 -> TCAE-V-2 | AE50: ='Model tables'!H65 -> 117 | AF50: ='Model tables'!I65 -> 129 | AG50: ='Model tables'!L65 -> 7 | AH50: ='Model tables'!M65 -> 177 | AI50: =CONCATENATE('Model tables'!N65," (",AE50,"-",AF50,")") -> 123 (117-129) | AJ50: #2517
H51: Utility winches | N51: Paper mills – log haul drives | R51: Screens - vibrating | AD51: ='Model tables'!J66 -> TCAE-V-3 | AE51: ='Model tables'!H66 -> 140 | AF51: ='Model tables'!I66 -> 156 | AG51: ='Model tables'!L66 -> 13 | AH51: ='Model tables'!M66 -> 215 | AI51: =CONCATENATE('Model tables'!N66," (",AE51,"-",AF51,")") -> 148 (140-156) | AJ51: #3020
N52: Paper mills - super calendars | AD52: ='Model tables'!J67 -> TCAE-V-4 | AE52: ='Model tables'!H67 -> 162 | AF52: ='Model tables'!I67 -> 178 | AG52: ='Model tables'!L67 -> 25 | AH52: ='Model tables'!M67 -> 236 | AI52: =CONCATENATE('Model tables'!N67," (",AE52,"-",AF52,")") -> 170 (162-178) | AJ52: #3525
N53: Paper mills -calendars | AD53: ='Model tables'!J68 -> TCAE-V-5 | AE53: ='Model tables'!H68 -> 196 | AF53: ='Model tables'!I68 -> 212 | AG53: ='Model tables'!L68 -> 36 | AH53: ='Model tables'!M68 -> 270 | AI53: =CONCATENATE('Model tables'!N68," (",AE53,"-",AF53,")") -> 204 (196-212) | AJ53: #3525
N54: Pullers - barge haul | AD54: ='Model tables'!J69 -> TCAE-V-6 | AE54: ='Model tables'!H69 -> 249 | AF54: ='Model tables'!I69 -> 295 | AG54: ='Model tables'!L69 -> 30 | AH54: ='Model tables'!M69 -> 225 | AI54: =CONCATENATE('Model tables'!N69," (",AE54,"-",AF54,")") -> 272 (249-295) | AJ54: #3525
N55: Rubber plant - calendars | AD55: ='Model tables'!J70 -> TCAE-V-7 | AE55: ='Model tables'!H70 -> 279 | AF55: ='Model tables'!I70 -> 341 | AG55: ='Model tables'!L70 -> 39 | AH55: ='Model tables'!M70 -> 250 | AI55: =CONCATENATE('Model tables'!N70," (",AE55,"-",AF55,")") -> 310 (279-341) | AJ55: -
N56: Rubber plant - sheeter | AD56: ='Model tables'!J71 -> TCAE-V-8 | AE56: ='Model tables'!H71 -> 362 | AF56: ='Model tables'!I71 -> 414 | AG56: ='Model tables'!L71 -> 50 | AH56: ='Model tables'!M71 -> 300 | AI56: =CONCATENATE('Model tables'!N71," (",AE56,"-",AF56,")") -> 388 (362-414)
N57: Rubber plant - tuber/straightener | AD57: ='Model tables'!J72 -> TCAE-V-9 | AE57: ='Model tables'!H72 -> 377 | AF57: ='Model tables'!I72 -> 455 | AG57: ='Model tables'!L72 -> 74 | AH57: ='Model tables'!M72 -> 350 | AI57: =CONCATENATE('Model tables'!N72," (",AE57,"-",AF57,")") -> 416 (377-455)
N58: Timber - Barker (drum) | AD58: ='Model tables'!J73 -> TCAE-V-10 | AE58: ='Model tables'!H73 -> 423 | AF58: ='Model tables'!I73 -> 509 | AG58: ='Model tables'!L73 -> 103 | AH58: ='Model tables'!M73 -> 390 | AI58: =CONCATENATE('Model tables'!N73," (",AE58,"-",AF58,")") -> 466 (423-509)
AD59: ='Model tables'!J74 -> TCAE-V-11 | AE59: ='Model tables'!H74 -> 455 | AF59: ='Model tables'!I74 -> 549 | AG59: ='Model tables'!L74 -> 137 | AH59: ='Model tables'!M74 -> 440 | AI59: =CONCATENATE('Model tables'!N74," (",AE59,"-",AF59,")") -> 502 (455-549)
AD60: ='Model tables'!J75 -> TCAE-V-12 | AE60: ='Model tables'!H75 -> 476 | AF60: ='Model tables'!I75 -> 580 | AG60: ='Model tables'!L75 -> 181 | AH60: ='Model tables'!M75 -> 490 | AI60: =CONCATENATE('Model tables'!N75," (",AE60,"-",AF60,")") -> 528 (476-580)
AD61: ='Model tables'!J76 -> TCAE-V-13 | AE61: ='Model tables'!H76 -> 506 | AF61: ='Model tables'!I76 -> 610 | AG61: ='Model tables'!L76 -> 226 | AH61: ='Model tables'!M76 -> 550 | AI61: =CONCATENATE('Model tables'!N76," (",AE61,"-",AF61,")") -> 558 (506-610)
AD62: ='Model tables'!J77 -> TCAE-V-14 | AE62: ='Model tables'!H77 -> 551 | AF62: ='Model tables'!I77 -> 665 | AG62: ='Model tables'!L77 -> 274 | AH62: ='Model tables'!M77 -> 625 | AI62: =CONCATENATE('Model tables'!N77," (",AE62,"-",AF62,")") -> 608 (551-665)

Sheet Model tables (hidden)
A1: Model tables
A2: speed | B2: =Gearspeed -> 0 | E2: Max service life | F2: 6 | G2: yrs | X2: FINAL SELECTION
B3: years | C3: hours | D3: months
A4: service life period | B4: 1.0 | C4: =+hourpa*B4 -> 0 | D4: =B4*12 -> 12 | Y4: Arg 1 | Z4: =+IF(Y5=1,"S Series Required","-") -> S Series Required | AD4: check S series against life | AH4: check S series against shaft diam | AJ4: TCAE
A5: service life period | B5: 2.0 | C5: =+hourpa*B5 -> 0 | D5: =B5*12 -> 24 | X5: "S" series | Y5: =+IF(H30<>1,+IF(H56=1,1,0),0) -> 1 | Z5: Selected
A6: service life period | B6: 3.0 | C6: =+hourpa*B6 -> 0 | D6: =B6*12 -> 36 | AA6: =+IF(Y5=1,+IF(P33<=H36,G36,+IF(P33<=H37,G37,+IF(P33<=H38,G38,+IF(P33<=H39,G39,+IF(P33<=H40,G40,+IF(P33<=H41,G41,+IF(P33<=H42,G42,+IF(P33<=H43,G43,+IF(P33<=H44,G44,+IF(P33<=H45,G45,+IF(P33<=H46,G46,+IF(P33<=H47,G47,+IF(P33<=H48,G48,+IF(P33<=H49,G49,G50))))))))))))))) -> DOJ100 | AB6: IDEAL | AC6: =+VLOOKUP(AA6,G36:J49,4) ->  | AD6: =+IF(AC6<C5,"Larger model required","OK") ->  | AF6: =+IF(AD6<>"OK",G52,AA6) ->  | AG6: IDEAL | AH6: =+VLOOKUP(AF6,G36:J49,4) ->  | AI6: =+IF(+VLOOKUP(AF6,G36:H49,2)>=P33,"OK","check shaft diameter") ->  | AJ6: =+VLOOKUP(AF6,G36:I49,3) -> 
G7: R-Series
A8: Determine final selection based on shaft details | G8: Model | H8: D.B.S.E. | J8: TCAE MODEL | K8: LIFE hrs | L8: weight | M8: Dia | N8: D.B.S.E. | O8: expansion | P8: DBSE | Q8: Life Option1 | R8: Life Option2 | S8: Life Option3 | T8: Speed | U8: Max rpm
A9: Given from data entry | H9: min | I9: max | L9: kg | M9: mm | N9: nom | O9: +/- mm | P9: Check | Q9: Check | R9: Check | S9: Check | T9: Check | Y9: Arg 2 | Z9: =+IF(Y10=1,"R series Required","-") -> -
A10: motor shaft diameter | C10: =+DriveShaftdia. -> 0 | D10: mm | G10: BC75 - R | H10: 82 | I10: 90 | J10: TCAE-0-R | K10: =+Formulae!C12 ->  | L10: 4 | M10: 117 | X10: "R" series | Y10: =+IF(H30=1,1,0) -> 0 | Z10: Selected | AA10: =+IF(Y10=1,+VLOOKUP(G21,G12:J20,4)) -> FALSE | AB10: LESSER
A11: driven shaft diameter | C11: =+DrivenShaftdia. -> 0 | D11: mm | G11: BC87 - R | H11: 94 | I11: 110 | J11: TCAE-0E-R | K11: =+Formulae!C13 ->  | L11: 5 | M11: 134 | AA11: =+IF(Y10=1,+VLOOKUP(G22,G12:J20,4)) -> FALSE | AB11: IDEAL
A12: gearbox shaft diameter | C12: =+gearshaftdia -> 0 | D12: mm | G12: BJ095 - R | H12: 130 | I12: 140 | J12: TCAE-R-1 | K12: =+Formulae!C19 ->  | L12: =9.1-(3.6*2) -> 1.9 | M12: 148 | N12: =H12+O12 -> 135 | O12: =(I12-H12)/2 -> 5 | P12: =+IF(AND($C$13>=H12,$C$13<=I12),1,0) -> 0 | Q12: =IF(AND(K12>$C$4,K12<$C$5),1,0) ->  | R12: =IF(AND(K12>$C$5,K12<$C$6),1,0) ->  | S12: =IF(K12>=$C$6,1,0) ->  | T12: =IF($B$2<=U12,1,0) -> 1 | U12: ='Daves pad 6 (Shikar mod)'!R6 -> 3600 | AA12: =+IF(Y10=1,+VLOOKUP(G23,G12:J20,4)) -> FALSE | AB12: GREATER
A13: DBSE | C13: =+DBSE. -> 0 | D13: mm | G13: BJ125 - R | H13: 155 | I13: 175 | J13: TCAE-R-2 | K13: =+Formulae!C20 ->  | L13: =14.7-(2.4*2) -> 9.9 | M13: 178 | N13: =H13+O13 -> 165 | O13: =(I13-H13)/2 -> 10 | P13: =+IF(AND($C$13>=H13,$C$13<=I13),1,0) -> 0 | Q13: =IF(AND(K13>$C$4,K13<$C$5),1,0) ->  | R13: =IF(AND(K13>$C$5,K13<$C$6),1,0) ->  | S13: =IF(K13>=$C$6,1,0) ->  | T13: =IF($B$2<=U13,1,0) -> 1 | U13: ='Daves pad 6 (Shikar mod)'!R7 -> 3600
G14: BJ150 - R | H14: 285 | I14: 305 | J14: TCAE-R-3 | K14: =+Formulae!C21 ->  | L14: =31.5-(5.5*2) -> 20.5 | M14: 215 | N14: 295 | O14: 10 | P14: =+IF(AND($C$13>=H14,$C$13<=I14),1,0) -> 0 | Q14: =IF(AND(K14>$C$4,K14<$C$5),1,0) ->  | R14: =IF(AND(K14>$C$5,K14<$C$6),1,0) ->  | S14: =IF(K14>=$C$6,1,0) ->  | T14: 1 | U14: ='Daves pad 6 (Shikar mod)'!R8 -> 3000 | Y14: Arg 3 | Z14: =+IF(Y15=1,"L series Required","-") -> -
A15: Selection based on DBSE, service life, speed | G15: BJ175 - R | H15: 285 | I15: 305 | J15: TCAE-R-4 | K15: =+Formulae!C22 ->  | L15: =45.5-(8.6*2) -> 28.3 | M15: 253 | N15: 295 | O15: =(I15-H15)/2 -> 10 | P15: 0 | T15: 1 | U15: ='Daves pad 6 (Shikar mod)'!R9 -> 3000 | X15: "L" series | Y15: =+IF(H113=1,1,0) -> 0 | Z15: Selected | AA15: =+IF(Y15=1,+VLOOKUP(G104,G95:J102,4)) -> FALSE | AB15: LESSER
A16: (1 - 2 years) | C16: =IFERROR(INDEX(Q8:Q129,MATCH(D16,S8:S129,0)),"-") -> - | D16: =IFERROR(IF(OR(S21<>"-",S51<>"-",S79<>"-",S104<>"-",S127<>"-"),MAX(S21,S51,S79,S104,S127),"-"),"-") -> - | E16: =IFERROR(INDEX(T8:T129,MATCH(D16,S8:S129,0)),"-") -> - | F16: Preferred selection (satisfies all requirements) | G16: BJ200 - R | H16: 300 | I16: 330 | J16: TCAE-R-5 | K16: =+Formulae!C23 ->  | L16: =58.2-(9.8*2) -> 38.6 | M16: 278 | N16: 315 | O16: 15 | P16: 0 | T16: 1 | U16: ='Daves pad 6 (Shikar mod)'!R10 -> 3000 | AA16: =+IF(Y15=1,+VLOOKUP(G105,G95:J102,4)) -> FALSE | AB16: IDEAL
A17: (2 - 3 years) | C17: =IFERROR(INDEX(Q8:Q129,MATCH(D17,S8:S129,0)),"-") -> - | D17: =IFERROR(IF(OR(S22<>"-",S52<>"-",S80<>"-",S105<>"-",S128<>"-"),MAX(S22,S52,S80,S105,S128),"-"),"-") -> - | E17: =IFERROR(INDEX(T8:T129,MATCH(D17,S8:S129,0)),"-") -> - | G17: BJ225 - R | H17: 277 | I17: 305 | J17: TCAE-R-6 | K17: =+Formulae!C24 ->  | L17: =74-(15.33*2) -> 43.3 | M17: 300 | N17: 291 | O17: 14 | P17: 0 | T17: 1 | U17: ='Daves pad 6 (Shikar mod)'!R11 -> 2700 | AA17: =+IF(Y15=1,+VLOOKUP(G106,G95:J102,4)) -> FALSE | AB17: GREATER
A18: ( > 3 years) | C18: =IFERROR(INDEX(Q8:Q129,MATCH(D18,S8:S129,0)),"-") -> - | D18: =IFERROR(IF(OR(S23<>"-",S53<>"-",S81<>"-",S106<>"-",S129<>"-"),MIN(S23,S53,S81,S106,S129),"-"),"-") -> - | E18: =IFERROR(INDEX(T8:T129,MATCH(D18,S8:S129,0)),"-") -> - | G18: BJ250 - R | H18: 330 | I18: 358 | J18: TCAE-R-7 | K18: =+Formulae!C25 ->  | L18: =103-(21.6*2) -> 59.8 | M18: 330 | N18: 344 | O18: 14 | P18: 0 | T18: 1 | U18: ='Daves pad 6 (Shikar mod)'!R12 -> 2300
G19: BJ300 - R | H19: 330 | I19: 358 | J19: TCAE-R-8 | K19: =+Formulae!C26 ->  | L19: =116-(26.83*2) -> 62.3 | M19: 370 | N19: 344 | O19: =(I19-H19)/2 -> 14 | P19: 0 | T19: 1 | U19: ='Daves pad 6 (Shikar mod)'!R13 -> 2000 | Y19: Arg 4 | Z19: =+IF(Y20=1,"CM series Required","-") -> -
A20: Additonal selection based on service life, speed | L20: life & speed check | X20: "CM" series | Y20: =+IF(H136=1,1,0) -> 0 | Z20: Selected | AA20: =+IF(Y20=1,+VLOOKUP(G127,G119:J124,4)) -> FALSE | AB20: LESSER
A21: (1 - 2 years) | C21: =IFERROR(INDEX(G12:G129,MATCH(D21,I12:I129,0)),"-") -> - | D21: =IF(H30<>"-",IF(L21=$B$4,I21,IF(L22=$B$4,I22,IF(L23=$B$4,I23,IF(L104=$B$4,I104,IF(L105=$B$4,I105,IF(L106=$B$4,I106,IF(L127=$B$4,I127,IF(L128=$B$4,I128,IF(L129=$B$4,I129,IF(AND(L21=$B$4,L22=$B$4,L23=$B$4,L79=$B$4,L80=$B$4,L81=$B$4,L104=$B$4,L105=$B$4,L106=$B$4,L127=$B$4,L128=$B$4,L129=$B$4),MAX(I21,I22,I23,I79,I80,I81,I104,I105,I106,I127,I128,I129),"-")))))))))),"-") -> - | E21: =IFERROR(INDEX(M8:M129,MATCH(D21,I8:I129,0)),"-") -> - | G21: =IF(G22=J12,J12,INDEX(J12:J19,MATCH(G22,J12:J19,0)-1,1)) ->  | H21: LESSER | I21: =IFERROR(+VLOOKUP(G21,J12:K19,2,FALSE)/hourpa,0) -> 0.0 | J21: =IFERROR(INDEX(H12:H19,MATCH(G21,J12:J19,0)),"-") -> - | K21: =IFERROR(INDEX(I12:I19,MATCH(G21,J12:J19,0)),"-") -> - | L21: =IF(I21<$B$4,0,IF(AND(I21>=$B$4,I21<$B$5,$B$2<=M21),$B$4,IF(AND(I21>=$B$5,I21<$B$6,$B$2<=M21),$B$5,IF(AND(I21>=$B$6,I21<=$F$2,$B$2<=M21),$B$6,0)))) -> 0 | M21: =IFERROR(INDEX(U12:U19,MATCH(G21,J12:J19,0)),"-") -> - | Q21: =IF(AND(P12=1,Q12=1,T12=1),J12,IF(AND(P13=1,Q13=1,T13=1),J13,IF(AND(P14=1,Q14=1,T14=1),J14,IF(AND(P15=1,Q15=1,T15=1),J15,IF(AND(P16=1,Q16=1,T16=1),J16,IF(AND(P17=1,Q17=1,T17=1),J17,IF(AND(P18=1,Q18=1,T18=1),J18,IF(AND(P19=1,Q19=1,T19=1),J19,"-")))))))) ->  | R21: OPTION1 | S21: =IFERROR(+VLOOKUP(Q21,J12:K19,2,FALSE)/hourpa,"-") -> - | T21: =IFERROR(INDEX(U12:U19,MATCH(Q21,J12:J19,0)),"-") -> - | AA21: =+IF(Y20=1,+VLOOKUP(G128,G119:J124,4)) -> FALSE | AB21: IDEAL
A22: (1 - 2 years)...V-series only | C22: =IFERROR(INDEX(G12:G129,MATCH(D22,I12:I129,0)),"-") -> - | D22: =IF(H87<>"-",IF(L79=$B$4,I79,IF(L80=$B$4,I80,IF(L81=$B$4,I81,"-"))),"-") -> - | E22: =IFERROR(INDEX(M8:M129,MATCH(D22,I8:I129,0)),"-") -> - | G22: =+IF(C5<'Model tables'!K12,'Model tables'!J12,+IF(C5<'Model tables'!K13,'Model tables'!J13,+IF(C5<'Model tables'!K14,'Model tables'!J14,+IF(C5<'Model tables'!K15,'Model tables'!J15,+IF(C5<'Model tables'!K16,'Model tables'!J16,+IF(C5<'Model tables'!K17,'Model tables'!J17,+IF(C5<'Model tables'!K18,'Model tables'!J18,+IF(C5<'Model tables'!K19,'Model tables'!J19,"-")))))))) ->  | H22: IDEAL | I22: =IFERROR(+VLOOKUP(G22,J12:K19,2,FALSE)/hourpa,0) -> 0.0 | J22: =IFERROR(INDEX(H12:H19,MATCH(G22,J12:J19,0)),"-") -> - | K22: =IFERROR(INDEX(I12:I19,MATCH(G22,J12:J19,0)),"-") -> - | L22: =IF(I22<$B$4,0,IF(AND(I22>=$B$4,I22<$B$5,$B$2<=M22),$B$4,IF(AND(I22>=$B$5,I22<$B$6,$B$2<=M22),$B$5,IF(AND(I22>=$B$6,I22<=$F$2,$B$2<=M22),$B$6,0)))) -> 0 | M22: =IFERROR(INDEX(U12:U19,MATCH(G22,J12:J19,0)),"-") -> - | Q22: =IF(AND(P12=1,R12=1,T12=1),J12,IF(AND(P13=1,R13=1,T13=1),J13,IF(AND(P14=1,R14=1,T14=1),J14,IF(AND(P15=1,R15=1,T15=1),J15,IF(AND(P16=1,R16=1,T16=1),J16,IF(AND(P17=1,R17=1,T17=1),J17,IF(AND(P18=1,R18=1,T18=1),J18,IF(AND(P19=1,R19=1,T19=1),J19,"-")))))))) ->  | R22: OPTION2 | S22: =IFERROR(+VLOOKUP(Q22,J12:K19,2,FALSE)/hourpa,"-") -> - | T22: =IFERROR(INDEX(U12:U19,MATCH(Q22,J12:J19,0)),"-") -> - | AA22: =+IF(Y20=1,+VLOOKUP(G129,G119:J124,4)) -> FALSE | AB22: GREATER
A23: (2 - 3 years) | C23: =IFERROR(INDEX(G12:G129,MATCH(D23,I12:I129,0)),"-") -> - | D23: =IF(H30<>"-",IF(L21=$B$5,I21,IF(L22=$B$5,I22,IF(L23=$B$5,I23,IF(L104=$B$5,I104,IF(L105=$B$5,I105,IF(L106=$B$5,I106,IF(L127=$B$5,I127,IF(L128=$B$5,I128,IF(L129=$B$5,I129,IF(AND(L21=$B$5,L22=$B$5,L23=$B$5,L79=$B$5,L80=$B$5,L81=$B$5,L104=$B$5,L105=$B$5,L106=$B$5,L127=$B$5,L128=$B$5,L129=$B$5),MAX(I21,I22,I23,I79,I80,I81,I104,I105,I106,I127,I128,I129),"-")))))))))),"-") -> - | E23: =IFERROR(INDEX(M8:M129,MATCH(D23,I8:I129,0)),"-") -> - | G23: =IF(G22=J19,J19,INDEX(J12:J19,MATCH(G22,J12:J19,0)+1,1)) ->  | H23: GREATER | I23: =IFERROR(+VLOOKUP(G23,J12:K19,2,FALSE)/hourpa, 0) -> 0.0 | J23: =IFERROR(INDEX(H12:H19,MATCH(G23,J12:J19,0)),"-") -> - | K23: =IFERROR(INDEX(I12:I19,MATCH(G23,J12:J19,0)),"-") -> - | L23: =IF(I23<$B$4,0,IF(AND(I23>=$B$4,I23<$B$5,$B$2<=M23),$B$4,IF(AND(I23>=$B$5,I23<$B$6,$B$2<=M23),$B$5,IF(AND(I23>=$B$6,I23<=$F$2,$B$2<=M23),$B$6,0)))) -> 0 | M23: =IFERROR(INDEX(U12:U19,MATCH(G23,J12:J19,0)),"-") -> - | Q23: =IF(AND(P12=1,S12=1,T12=1),J12,IF(AND(P13=1,S13=1,T13=1),J13,IF(AND(P14=1,S14=1,T14=1),J14,IF(AND(P15=1,S15=1,T15=1),J15,IF(AND(P16=1,S16=1,T16=1),J16,IF(AND(P17=1,S17=1,T17=1),J17,IF(AND(P18=1,S18=1,T18=1),J18,IF(AND(P19=1,S19=1,T19=1),J19,"-")))))))) ->  | R23: OPTION3 | S23: =IFERROR(+VLOOKUP(Q23,J12:K19,2,FALSE)/hourpa,"-") -> - | T23: =IFERROR(INDEX(U12:U19,MATCH(Q23,J12:J19,0)),"-") -> -
A24: (2 - 3 years)...V-series only | C24: =IFERROR(INDEX(G12:G129,MATCH(D24,I12:I129,0)),"-") -> - | D24: =IF(H87<>"-",IF(L79=$B$5,I79,IF(L80=$B$5,I80,IF(L81=$B$5,I81,"-"))),"-") -> - | E24: =IFERROR(INDEX(M8:M129,MATCH(D24,I8:I129,0)),"-") -> - | G24: DBSE | Y24: Arg 5 | Z24: =+IF(Y25=1,"E series Required","-") -> 
A25: ( > 3 years) | C25: =IFERROR(INDEX(G12:G129,MATCH(D25,I12:I129,0)),"-") -> - | D25: =IF(H30<>"-",IF(L21=$B$6,I21,IF(L22=$B$6,I22,IF(L23=$B$6,I23,IF(L104=$B$6,I104,IF(L105=$B$6,I105,IF(L106=$B$6,I106,IF(L127=$B$6,I127,IF(L128=$B$6,I128,IF(L129=$B$6,I129,IF(AND(L21=$B$6,L22=$B$6,L23=$B$6,L79=$B$6,L80=$B$6,L81=$B$6,L104=$B$6,L105=$B$6,L106=$B$6,L127=$B$6,L128=$B$6,L129=$B$6),MIN(I21,I22,I23,I79,I80,I81,I104,I105,I106,I127,I128,I129),"-")))))))))),"-") -> - | E25: =IFERROR(INDEX(M8:M129,MATCH(D25,I8:I129,0)),"-") -> - | G25: min | H25: max | X25: "E" series | Y25: =+IF(AND(H87=1,#REF!=1),1,0) ->  | Z25: Selected | AA25: =+IF(Y25=1,+VLOOKUP(G79,G62:J77,4)) ->  | AB25: LESSER | AF25: =+IF(AE26=1,"E series Required","-") ->  | AH25: check E series against life and DBSE
A26: ( > 3 years)...V-series only | C26: =IFERROR(INDEX(G12:G129,MATCH(D26,I12:I129,0)),"-") -> - | D26: =IF(H87<>"-",IF(L79=$B$6,I79,IF(L80=$B$6,I80,IF(L81=$B$6,I81,"-"))),"-") -> - | E26: =IFERROR(INDEX(M8:M129,MATCH(D26,I8:I129,0)),"-") -> - | G26: =IFERROR(INDEX(H12:H19,MATCH(G22,J12:J19,0)),"-") -> - | H26: =IFERROR(INDEX(I12:I19,MATCH(G22,J12:J19,0)),"-") -> - | AA26: =+IF(Y25=1,+VLOOKUP(G80,G62:J77,4)) ->  | AB26: IDEAL | AE26: =+IF(#REF!=1,1,0) ->  | AG26: IDEAL | AH26: =+VLOOKUP(AF26,J62:K77,2,FALSE) -> 
AA27: =+IF(Y25=1,+VLOOKUP(G81,G62:J77,4)) ->  | AB27: GREATER
A28: Final Selection
A29: OPTION 1 (1 - 2 years) | C29: =IFERROR(INDEX(C16:C26,MATCH(D29,D16:D26,0)),"-") -> - | D29: =IF(AND(D16<>0,D16<>"-"),D16,IF(AND(D17<>0,D17<>"-"),D17,IF(AND(D18<>0,D18<$F$2),D18,"-"))) -> - | H29: Arg 2
A30: OPTION 2 | C30: =IFERROR(INDEX(C16:C26,MATCH(D30,D16:D26,0)),"-") -> - | D30: =IF(AND(D16<>0,D16<>"-",D16<>D29),D16,IF(AND(D21<>"-",D21<>D16,D21<>D17),D21,IF(AND(D22<>"-",D22<>D16,D22<>D17),D22,IF(AND(D23<>"-",D23<>D16,D23<>D17),D23,IF(AND(D24<>"-",D24<>D16,D24<>D17),D24,MIN(D25,D26)))))) -> 0.0 | G30: R-Series | H30: =+IFERROR(IF(AND($C$13>=(G26-200), $C$13<=(H26+200)),1,"-"),"-") -> -
A31: OPTION 3 | C31: =IFERROR(INDEX(C16:C26,MATCH(D31,D16:D26,0)),"-") -> - | D31: =IF(AND(D18<>0,D29<>D18,D18<>"-",D18<$F$2),D18,IF(AND(D23<>"-",D23<>D17,D23<>D18,D30<>D23),D23,IF(AND(D25<>"-",D25<>D17,D25<>D18),D25,IF(D30<>D26,MIN(D24,D26),"-")))) -> 0.0
P32: max shaft dia
G33: S-Series | H33: Note: design based on DOJ series. BCF series used for torque value because of bore and keysize | P33: =+MAX(C10:C12) -> 0
G34: Model | H34: BORE Dia | I34: TCAE MODEL | J34: LIFE hrs | K34: weight | L34: Dia | M34: min D.B.S.E. | N34: max D.B.S.E. | O34: nom D.B.S.E | P34: DBSE & Bore | Q34: Life Option1 | R34: Life Option2 | S34: Life Option3 | T34: Speed | U34: Max rpm
H35: max | K35: kg | L35: mm | M35: mm | N35: mm | O35: mm | P35: Check | Q35: Check | R35: Check | S35: Check | T35: Check
G36: DOJ100 | H36: 30 | I36: =IF(AND($C$13>=M36,$C$13<=N36),"TCAE-S-1","TCAE-S-1 + Spacer") -> TCAE-S-1 + Spacer | J36: =Formulae!C60 ->  | K36: 5 | L36: 152 | M36: 10 | N36: 30 | O36: =(N36-M36)/2 -> 10 | P36: =+IF(AND($C$13>=M36,$C$13<$G$26,$P$33<=H36,$C$13<$H$119),1,0) -> 0 | Q36: =IF(AND(J36>$C$4,J36<$C$5),1,0) ->  | R36: =IF(AND(J36>$C$5,J36<$C$6),1,0) ->  | S36: =IF(J36>=$C$6,1,0) ->  | T36: =IF($B$2<=U36,1,0) -> 1 | U36: ='Daves pad 6 (Shikar mod)'!R37 -> 3000
G37: DOJ125 | H37: 40 | I37: =IF(AND($C$13>=M37,$C$13<=N37),"TCAE-S-2","TCAE-S-2 + Spacer") -> TCAE-S-2 + Spacer | J37: =Formulae!C61 ->  | K37: 9 | L37: 179 | M37: 10 | N37: 30 | O37: =(N37-M37)/2 -> 10 | P37: =+IF(AND($C$13>=M37,$C$13<$G$26,$P$33<=H37,$C$13<$H$119),1,0) -> 0 | Q37: =IF(AND(J37>$C$4,J37<$C$5),1,0) ->  | R37: =IF(AND(J37>$C$5,J37<$C$6),1,0) ->  | S37: =IF(J37>=$C$6,1,0) ->  | T37: =IF($B$2<=U37,1,0) -> 1 | U37: ='Daves pad 6 (Shikar mod)'!R38 -> 3000
G38: DOJ150 | H38: 50 | I38: =IF(AND($C$13>=M38,$C$13<=N38),"TCAE-S-3","TCAE-S-3 + Spacer") -> TCAE-S-3 + Spacer | J38: =Formulae!C62 ->  | K38: 15 | L38: 215 | M38: 10 | N38: 30 | O38: 10 | P38: 0 | R38: =IF(AND(J38>$C$5,J38<$C$6),1,0) ->  | T38: 1 | U38: ='Daves pad 6 (Shikar mod)'!R39 -> 2500
G39: DOJ175 | H39: =Formulae!D63 -> 55 | I39: =IF(AND($C$13>=M39,$C$13<=N39),"TCAE-S-4","TCAE-S-4 + Spacer") -> TCAE-S-4 + Spacer | J39: =Formulae!C63 ->  | K39: 18 | L39: 236 | M39: 10 | N39: 30 | O39: =(N39-M39)/2 -> 10 | P39: 0 | T39: 1 | U39: ='Daves pad 6 (Shikar mod)'!R40 -> 2500
G40: DOJ200 | H40: =Formulae!D64 -> 60 | I40: =IF(AND($C$13>=M40,$C$13<=N40),"TCAE-S-5","TCAE-S-5 + Spacer") -> TCAE-S-5 + Spacer | J40: =Formulae!C64 ->  | K40: 33 | L40: 270 | M40: 10 | N40: 30 | O40: =(N40-M40)/2 -> 10 | P40: 0 | T40: 1 | U40: ='Daves pad 6 (Shikar mod)'!R41 -> 2500
G41: DOJ225 | H41: =Formulae!D65 -> 65 | I41: =IF(AND($C$13>=M41,$C$13<=N41),"TCAE-S-6","TCAE-S-6 + Spacer") -> TCAE-S-6 + Spacer | J41: =Formulae!C65 ->  | K41: 28 | L41: 244 | M41: 10 | N41: 30 | O41: 10 | P41: 0 | T41: 1 | U41: ='Daves pad 6 (Shikar mod)'!R42 -> 2200
G42: DOJ250 | H42: 65 | I42: =IF(AND($C$13>=M42,$C$13<=N42),"TCAE-S-7","TCAE-S-7 + Spacer") -> TCAE-S-7 + Spacer | J42: =Formulae!C66 ->  | K42: 37 | L42: 272 | M42: 10 | N42: 30 | O42: 10 | P42: 0 | T42: 1 | U42: ='Daves pad 6 (Shikar mod)'!R43 -> 2000
G43: DOJ300 | H43: =Formulae!D67 -> 85 | I43: =IF(AND($C$13>=M43,$C$13<=N43),"TCAE-S-8","TCAE-S-8 + Spacer") -> TCAE-S-8 + Spacer | J43: =Formulae!C67 ->  | K43: 52 | L43: 292 | M43: 10 | N43: 30 | O43: 10 | P43: 0 | T43: 1 | U43: ='Daves pad 6 (Shikar mod)'!R44 -> 1800
G44: DOJ350 | H44: =Formulae!D68 -> 110 | I44: =IF(AND($C$13>=M44,$C$13<=N44),"TCAE-S-9","TCAE-S-9 + Spacer") -> TCAE-S-9 + Spacer | J44: =Formulae!C68 ->  | K44: 80 | L44: 336 | M44: 10 | N44: 30 | O44: 10 | P44: =+IF(AND($C$13>=M44,$C$13<$G$26,$P$33<=H44,$C$13<$H$119),1,0) -> 0 | T44: 1 | U44: ='Daves pad 6 (Shikar mod)'!R45 -> 1600
G45: DOJ400 | H45: =Formulae!D69 -> 125 | I45: =IF(AND($C$13>=M45,$C$13<=N45),"TCAE-S-10","TCAE-S-10 + Spacer") -> TCAE-S-10 + Spacer | J45: =Formulae!C69 ->  | K45: 113 | L45: 376 | M45: 10 | N45: 30 | O45: 10 | P45: 0 | T45: 1 | U45: ='Daves pad 6 (Shikar mod)'!R46 -> 1300
G46: DOJ450 | H46: =Formulae!D70 -> 130 | I46: =IF(AND($C$13>=M46,$C$13<=N46),"TCAE-S-11","TCAE-S-11 + Spacer") -> TCAE-S-11 + Spacer | J46: =Formulae!C70 ->  | K46: 120 | L46: 420 | M46: 10 | N46: 30 | O46: 10 | P46: 0 | T46: 1 | U46: ='Daves pad 6 (Shikar mod)'!R47 -> 1200
G47: DOJ500 | H47: =Formulae!D71 -> 150 | I47: =IF(AND($C$13>=M47,$C$13<=N47),"TCAE-S-12","TCAE-S-12 + Spacer") -> TCAE-S-12 + Spacer | J47: =Formulae!C71 ->  | K47: 173 | L47: 462 | M47: 10 | N47: 30 | O47: 10 | P47: 0 | T47: 1 | U47: ='Daves pad 6 (Shikar mod)'!R48 -> 1100
G48: DOJ550 | H48: 170 | I48: =IF(AND($C$13>=M48,$C$13<=N48),"TCAE-S-13","TCAE-S-13 + Spacer") -> TCAE-S-13 + Spacer | J48: =Formulae!C72 ->  | L48: 504 | M48: 10 | N48: 30 | O48: 10 | P48: 0 | T48: 1 | U48: ='Daves pad 6 (Shikar mod)'!R49 -> 1000
G49: DOJ625 | H49: 200 | I49: =IF(AND($C$13>=M49,$C$13<=N49),"TCAE-S-14","TCAE-S-14 + Spacer") -> TCAE-S-14 + Spacer | J49: =Formulae!C73 ->  | L49: 580 | M49: 10 | N49: 30 | O49: 10 | P49: 0 | T49: 1 | U49: ='Daves pad 6 (Shikar mod)'!R50 -> 800
Q51: =IF(AND(P36=1,Q36=1,T36=1),I36,IF(AND(P37=1,Q37=1,T37=1),I37,IF(AND(P38=1,Q38=1,T38=1),I38,IF(AND(P39=1,Q39=1,T39=1),I39,IF(AND(P40=1,Q40=1,T40=1),I40,IF(AND(P41=1,Q41=1,T41=1),I41,IF(AND(P42=1,Q42=1,T42=1),I42,IF(AND(P43=1,Q43=1,T43=1),I43,IF(AND(P44=1,Q44=1,T44=1),I44,IF(AND(P45=1,Q45=1,T45=1),I45,IF(AND(P46=1,Q46=1,T46=1),I46,IF(AND(P47=1,Q47=1,T47=1),I47,IF(AND(P48=1,Q48=1,T48=1),I48,IF(AND(P49=1,Q49=1,T49=1),I49,"-")))))))))))))) ->  | R51: OPTION1 | S51: =IFERROR(+VLOOKUP(Q51,I36:J49,2,FALSE)/hourpa,"-") -> - | T51: =IFERROR(INDEX(U36:U49,MATCH(Q51,I36:I49,0)),"-") -> -
G52: =+IF(C5<'Model tables'!J36,'Model tables'!I36,+IF(C5<'Model tables'!J37,'Model tables'!I37,+IF(C5<'Model tables'!J38,'Model tables'!I38,+IF(C5<'Model tables'!J39,'Model tables'!I39,+IF(C5<'Model tables'!J40,'Model tables'!I40,+IF(C5<'Model tables'!J41,'Model tables'!I41,+IF(C5<'Model tables'!J42,'Model tables'!I42,+IF(C5<'Model tables'!J44,'Model tables'!I43,+IF(C5<'Model tables'!J43,'Model tables'!I44,+IF(C5<'Model tables'!J45,'Model tables'!I45,+IF(C5<'Model tables'!J46,'Model tables'!I46,+IF(C5<'Model tables'!J47,'Model tables'!I47,+IF(C5<'Model tables'!J48,'Model tables'!I48,+IF($C$5<J49,I49,"-")))))))))))))) ->  | H52: IDEAL | I52: =IFERROR(+VLOOKUP(G52,I36:J49,2,FALSE)/hourpa,0) -> 0.0 | J52: =IFERROR(INDEX(H36:H49,MATCH(G52,I36:I49,0)),"-") -> - | M52: =IFERROR(INDEX(U36:U49,MATCH(G52,I36:I49,0)),"-") -> - | Q52: =IF(AND(P36=1,R36=1,T36=1),I36,IF(AND(P37=1,R37=1,T37=1),I37,IF(AND(P38=1,R38=1,T38=1),I38,IF(AND(P39=1,R39=1,T39=1),I39,IF(AND(P40=1,R40=1,T40=1),I40,IF(AND(P41=1,R41=1,T41=1),I41,IF(AND(P42=1,R42=1,T42=1),I42,IF(AND(P43=1,R43=1,T43=1),I43,IF(AND(P44=1,R44=1,T44=1),I44,IF(AND(P45=1,R45=1,T45=1),I45,IF(AND(P46=1,R46=1,T46=1),I46,IF(AND(P47=1,R47=1,T47=1),I47,IF(AND(P48=1,R48=1,T48=1),I48,IF(AND(P49=1,R49=1,T49=1),I49,"-")))))))))))))) ->  | R52: OPTION2 | S52: =IFERROR(+VLOOKUP(Q52,I36:J49,2,FALSE)/hourpa,"-") -> - | T52: =IFERROR(INDEX(U36:U49,MATCH(Q52,I36:I49,0)),"-") -> -
Q53: =IF(AND(P36=1,S36=1,T36=1),I36,IF(AND(P37=1,S37=1,T37=1),I37,IF(AND(P38=1,S38=1,T38=1),I38,IF(AND(P39=1,S39=1,T39=1),I39,IF(AND(P40=1,S40=1,T40=1),I40,IF(AND(P41=1,S41=1,T41=1),I41,IF(AND(P42=1,S42=1,T42=1),I42,IF(AND(P43=1,S43=1,T43=1),I43,IF(AND(P44=1,S44=1,T44=1),I44,IF(AND(P45=1,S45=1,T45=1),I45,IF(AND(P46=1,S46=1,T46=1),I46,IF(AND(P47=1,S47=1,T47=1),I47,IF(AND(P48=1,S48=1,T48=1),I48,IF(AND(P49=1,S49=1,T49=1),I49,"-")))))))))))))) ->  | R53: OPTION3 | S53: =IFERROR(+VLOOKUP(Q53,I36:J49,2,FALSE)/hourpa,"-") -> - | T53: =IFERROR(INDEX(U36:U49,MATCH(Q53,I36:I49,0)),"-") -> -
H55: Arg 1
G56: S-Series | H56: =+IF(AND(C13<=H12,P33<=J52),1,"-") -> 1
G59: V-Series
G60: Model | H60: D.B.S.E. | J60: TCAE MODEL | K60: LIFE hrs | L60: weight | M60: Dia | N60: D.B.S.E. | O60: expansion | P60: DBSE | Q60: Life Option1 | R60: Life Option2 | S60: Life Option3 | T60: Speed | U60: Max rpm
H61: min | I61: max | L61: kg | M61: mm | N61: nom | O61: +/- mm | P61: Check | Q61: Check | R61: Check | S61: Check | T61: Check
G62: BC75P_A | H62: 74 | I62: 80 | J62: TCAE-V-00 | K62: =Formulae!C12 ->  | L62: 2 | M62: 118 | N62: =H62+O62 -> 77 | O62: 3 | P62: =+IF(AND($C$13>=H62,$C$13<=I62),1,0) -> 0 | Q62: =IF(AND(K62>$C$4,K62<$C$5),1,0) ->  | R62: =IF(AND(K62>$C$5,K62<$C$6),1,0) ->  | S62: =IF(K62>=$C$6,1,0) ->  | T62: =IF($B$2<=U62,1,0) -> 1 | U62: ='Daves pad 6 (Shikar mod)'!R52 -> 3000
G63: DOX87F | H63: 84 | I63: 92 | J63: TCAE-V-0 | K63: =Formulae!C13 ->  | L63: 3 | M63: 134 | N63: =H63+O63 -> 88 | O63: 4 | P63: =+IF(AND($C$13>=H63,$C$13<=I63),1,0) -> 0 | Q63: =IF(AND(K63>$C$4,K63<$C$5),1,0) ->  | R63: =IF(AND(K63>$C$5,K63<$C$6),1,0) ->  | S63: =IF(K63>=$C$6,1,0) ->  | T63: =IF($B$2<=U63,1,0) -> 1 | U63: ='Daves pad 6 (Shikar mod)'!R53 -> 2000
G64: DOX100F | H64: 96 | I64: 108 | J64: TCAE-V-1 | K64: =Formulae!C14 ->  | L64: 4 | M64: 152 | N64: 102 | O64: 6 | P64: 0 | T64: 1 | U64: ='Daves pad 6 (Shikar mod)'!R54 -> 1800
G65: DOX125F | H65: 117 | I65: 129 | J65: TCAE-V-2 | K65: =Formulae!C15 ->  | L65: 7 | M65: 177 | N65: 123 | O65: 6 | P65: 0 | Q65: =IF(AND(K65>$C$4,K65<$C$5),1,0) ->  | T65: 1 | U65: ='Daves pad 6 (Shikar mod)'!R55 -> 1500
G66: DOX150F | H66: 140 | I66: 156 | J66: TCAE-V-3 | K66: =Formulae!C16 ->  | L66: 13 | M66: 215 | N66: 148 | O66: 8 | P66: 0 | T66: 1 | U66: ='Daves pad 6 (Shikar mod)'!R56 -> 1200
G67: DOX175F | H67: 162 | I67: 178 | J67: TCAE-V-4 | K67: =Formulae!C17 ->  | L67: 25 | M67: 236 | N67: 170 | O67: 8 | P67: 0 | T67: 1 | U67: ='Daves pad 6 (Shikar mod)'!R57 -> 1000
G68: DOX200F | H68: 196 | I68: 212 | J68: TCAE-V-5 | K68: =Formulae!C18 ->  | L68: 36 | M68: 270 | N68: 204 | O68: 8 | P68: 0 | T68: 1 | U68: ='Daves pad 6 (Shikar mod)'!R58 -> 1000
G69: DOX225F | H69: 249 | I69: 295 | J69: TCAE-V-6 | K69: =Formulae!C45 ->  | L69: 30 | M69: 225 | N69: 272 | O69: 23 | P69: 0 | T69: 1 | U69: ='Daves pad 6 (Shikar mod)'!R59 -> 2200
G70: DOX250F | H70: 279 | I70: 341 | J70: TCAE-V-7 | K70: =Formulae!C46 ->  | L70: 39 | M70: 250 | N70: 310 | O70: 31 | P70: =+IF(AND($C$13>=H70,$C$13<=I70),1,0) -> 0 | R70: =IF(AND(K70>$C$5,K70<$C$6),1,0) ->  | T70: 1 | U70: ='Daves pad 6 (Shikar mod)'!R60 -> 2000
G71: DOX300F | H71: 362 | I71: 414 | J71: TCAE-V-8 | K71: =Formulae!C48 ->  | L71: 50 | M71: 300 | N71: =H71+O71 -> 388 | O71: 26 | P71: =+IF(AND($C$13>=H71,$C$13<=I71),1,0) -> 0 | Q71: =IF(AND(K71>$C$4,K71<$C$5),1,0) ->  | R71: =IF(AND(K71>$C$5,K71<$C$6),1,0) ->  | S71: =IF(K71>=$C$6,1,0) ->  | T71: 1 | U71: ='Daves pad 6 (Shikar mod)'!R61 -> 1800
G72: DOX350F | H72: 377 | I72: 455 | J72: TCAE-V-9 | K72: =Formulae!C50 ->  | L72: 74 | M72: 350 | N72: 416 | O72: 39 | P72: =+IF(AND($C$13>=H72,$C$13<=I72),1,0) -> 0 | T72: 1 | U72: ='Daves pad 6 (Shikar mod)'!R62 -> 1600
G73: DOX390F | H73: 423 | I73: 509 | J73: TCAE-V-10 | K73: =Formulae!C51 ->  | L73: 103 | M73: 390 | N73: 466 | O73: 43 | P73: 0 | T73: 1 | U73: ='Daves pad 6 (Shikar mod)'!R63 -> 1300
G74: DOX440F | H74: 455 | I74: 549 | J74: TCAE-V-11 | K74: =Formulae!C52 ->  | L74: 137 | M74: 440 | N74: 502 | O74: 47 | P74: 0 | T74: 1 | U74: ='Daves pad 6 (Shikar mod)'!R64 -> 1200
G75: DOX490F | H75: 476 | I75: 580 | J75: TCAE-V-12 | K75: =Formulae!C53 ->  | L75: 181 | M75: 490 | N75: 528 | O75: 52 | P75: 0 | T75: 1 | U75: ='Daves pad 6 (Shikar mod)'!R65 -> 1100
G76: DOX550F | H76: 506 | I76: 610 | J76: TCAE-V-13 | K76: =Formulae!C54 ->  | L76: 226 | M76: 550 | N76: 558 | O76: 52 | P76: 0 | T76: 1 | U76: ='Daves pad 6 (Shikar mod)'!R66 -> 1000
G77: DOX625F | H77: 551 | I77: 665 | J77: TCAE-V-14 | K77: =Formulae!C55 ->  | L77: 274 | M77: 625 | N77: 608 | O77: 57 | P77: 0 | T77: 1 | U77: ='Daves pad 6 (Shikar mod)'!R67 -> 800
G79: =IF(G80=J62,J62,INDEX(J62:J77,MATCH(G80,J62:J77,0)-1,1)) ->  | H79: LESSER | I79: =IFERROR(+VLOOKUP(G79,J62:K77,2,FALSE)/hourpa,0) -> 0.0 | J79: =IFERROR(INDEX(H62:H77,MATCH(G79,J62:J77,0)),"-") -> - | K79: =IFERROR(INDEX(I62:I77,MATCH(G79,J62:J77,0)),"-") -> - | L79: =IF(I79<$B$4,0,IF(AND(I79>=$B$4,I79<$B$5,$B$2<=M79),$B$4,IF(AND(I79>=$B$5,I79<$B$6,$B$2<=M79),$B$5,IF(AND(I79>=$B$6,I79<=$F$2,$B$2<=M79),$B$6,0)))) -> 0 | M79: =IFERROR(INDEX(U62:U77,MATCH(G79,J62:J77,0)),"-") -> - | Q79: =IF(AND(P62=1,Q62=1,T62=1),J62,IF(AND(P63=1,Q63=1,T63=1),J63,IF(AND(P64=1,Q64=1,T64=1),J64,IF(AND(P65=1,Q65=1,T65=1),J65,IF(AND(P66=1,Q66=1,T66=1),J66,IF(AND(P67=1,Q67=1,T67=1),J67,IF(AND(P68=1,Q68=1,T68=1),J68,IF(AND(P69=1,Q69=1,T69=1),J69,IF(AND(P70=1,Q70=1,T70=1),J70,IF(AND(P71=1,Q71=1,T71=1),J71,IF(AND(P72=1,Q72=1,T72=1),J72,IF(AND(P73=1,Q73=1,T73=1),J73,IF(AND(P74=1,Q74=1,T74=1),J74,IF(AND(P75=1,Q75=1,T75=1),J75,IF(AND(P76=1,Q76=1,T76=1),J76,IF(AND(P77=1,Q77=1,T77=1),J77,"-")))))))))))))))) ->  | R79: OPTION1 | S79: =IFERROR(+VLOOKUP(Q79,J62:K77,2,FALSE)/hourpa,"-") -> - | T79: =IFERROR(INDEX(U62:U77,MATCH(Q79,J62:J77,0)),"-") -> -
G80: =+IF(C5<'Model tables'!K62,'Model tables'!J62,+IF(C5<'Model tables'!K63,'Model tables'!J63,+IF(C5<'Model tables'!K64,'Model tables'!J64,+IF(C5<'Model tables'!K65,'Model tables'!J65,+IF(C5<'Model tables'!K66,'Model tables'!J66,+IF(C5<'Model tables'!K67,'Model tables'!J67,+IF(C5<'Model tables'!K68,'Model tables'!J68,+IF(C5<'Model tables'!K69,'Model tables'!J69,+IF(C5<'Model tables'!K70,'Model tables'!J70,IF(C5<'Model tables'!K71,'Model tables'!J71,+IF(C5<'Model tables'!K72,'Model tables'!J72,+IF(C5<'Model tables'!K73,'Model tables'!J73,+IF(C5<'Model tables'!K74,'Model tables'!J74,+IF(C5<'Model tables'!K75,'Model tables'!J75,+IF(C5<'Model tables'!K76,'Model tables'!J76,+IF(C5<'Model tables'!K77,'Model tables'!J77,"-")))))))))))))))) ->  | H80: IDEAL | I80: =IFERROR(+VLOOKUP(G80,J62:K77,2,FALSE)/hourpa,0) -> 0.0 | J80: =IFERROR(INDEX(H62:H77,MATCH(G80,J62:J77,0)),"-") -> - | K80: =IFERROR(INDEX(I62:I77,MATCH(G80,J62:J77,0)),"-") -> - | L80: =IF(I80<$B$4,0,IF(AND(I80>=$B$4,I80<$B$5,$B$2<=M80),$B$4,IF(AND(I80>=$B$5,I80<$B$6,$B$2<=M80),$B$5,IF(AND(I80>=$B$6,I80<=$F$2,$B$2<=M80),$B$6,0)))) -> 0 | M80: =IFERROR(INDEX(U62:U77,MATCH(G80,J62:J77,0)),"-") -> - | Q80: =IF(AND(P62=1,R62=1,T62=1),J62,IF(AND(P63=1,R63=1,T63=1),J63,IF(AND(P64=1,R64=1,T64=1),J64,IF(AND(P65=1,R65=1,T65=1),J65,IF(AND(P66=1,R66=1,T66=1),J66,IF(AND(P67=1,R67=1,T67=1),J67,IF(AND(P68=1,R68=1,T68=1),J68,IF(AND(P69=1,R69=1,T69=1),J69,IF(AND(P70=1,R70=1,T70=1),J70,IF(AND(P71=1,R71=1,T71=1),J71,IF(AND(P72=1,R72=1,T72=1),J72,IF(AND(P73=1,R73=1,T73=1),J73,IF(AND(P74=1,R74=1,T74=1),J74,IF(AND(P75=1,R75=1,T75=1),J75,IF(AND(P76=1,R76=1,T76=1),J76,IF(AND(P77=1,R77=1,T77=1),J77,"-")))))))))))))))) ->  | R80: OPTION2 | S80: =IFERROR(+VLOOKUP(Q80,J62:K77,2,FALSE)/hourpa,"-") -> - | T80: =IFERROR(INDEX(U62:U77,MATCH(Q80,J62:J77,0)),"-") -> -
G81: =IF(G80=J77,J77,INDEX(J62:J77,MATCH(G80,J62:J77,0)+1,1)) ->  | H81: GREATER | I81: =IFERROR(+VLOOKUP(G81,J62:K77,2,FALSE)/hourpa,0) -> 0.0 | J81: =IFERROR(INDEX(H62:H77,MATCH(G81,J62:J77,0)),"-") -> - | K81: =IFERROR(INDEX(I62:I77,MATCH(G81,J62:J77,0)),"-") -> - | L81: =IF(I81<$B$4,0,IF(AND(I81>=$B$4,I81<$B$5,$B$2<=M81),$B$4,IF(AND(I81>=$B$5,I81<$B$6,$B$2<=M81),$B$5,IF(AND(I81>=$B$6,I81<=$F$2,$B$2<=M81),$B$6,0)))) -> 0 | M81: =IFERROR(INDEX(U62:U77,MATCH(G81,J62:J77,0)),"-") -> - | Q81: =IF(AND(P62=1,S62=1,T62=1),J62,IF(AND(P63=1,S63=1,T63=1),J63,IF(AND(P64=1,S64=1,T64=1),J64,IF(AND(P65=1,S65=1,T65=1),J65,IF(AND(P66=1,S66=1,T66=1),J66,IF(AND(P67=1,S67=1,T67=1),J67,IF(AND(P68=1,S68=1,T68=1),J68,IF(AND(P69=1,S69=1,T69=1),J69,IF(AND(P70=1,S70=1,T70=1),J70,IF(AND(P71=1,S71=1,T71=1),J71,IF(AND(P72=1,S72=1,T72=1),J72,IF(AND(P73=1,S73=1,T73=1),J73,IF(AND(P74=1,S74=1,T74=1),J74,IF(AND(P75=1,S75=1,T75=1),J75,IF(AND(P76=1,S76=1,T76=1),J76,IF(AND(P77=1,S77=1,T77=1),J77,"-")))))))))))))))) ->  | R81: OPTION3 | S81: =IFERROR(+VLOOKUP(Q81,J62:K77,2,FALSE)/hourpa,"-") -> - | T81: =IFERROR(INDEX(U62:U77,MATCH(Q81,J62:J77,0)),"-") -> -
G82: DBSE
G83: min | H83: max
G84: =IFERROR(INDEX(H62:H77,MATCH(G80,J62:J77,0)),"-") -> - | H84: =IFERROR(INDEX(I62:I77,MATCH(G80,J62:J77,0)),"-") -> -
H86: Arg 5
G87: V-Series | H87: =+IFERROR(IF(AND($C$13>=(G84-250), $C$13<=(H84+250)),1,"-"),"-") -> -
G90: L-Series
G91: Model | H91: D.B.S.E. | J91: TCAE MODEL | K91: LIFE hrs | L91: weight | M91: Dia | N91: DBSE | O91: Life Option1 | P91: Life Option2 | Q91: Life Option3 | R91: Speed | S91: Max rpm
H92: max 1 | I92: max 2 | L92: kg | M92: mm | N92: Check | O92: Check | P92: Check | Q92: Check | R92: Check
G93: BC75 - L | H93: 90 | I93: 1500 | J93: TCAE-0-L | K93: =+Formulae!C12 ->  | L93: L dependant | M93: 117
G94: BC87 - L | H94: 110 | I94: 1500 | J94: TCAE-0E-L | K94: =+Formulae!C13 ->  | L94: L dependant | M94: 134
G95: BJ095 - L | H95: 307 | I95: 1800 | J95: TCAE-L-1 | K95: =+Formulae!C19 ->  | L95: L dependant | M95: 148 | N95: =+IF(AND($C$13>=H95,$C$13<=I95),1,0) -> 0 | O95: =IF(AND(K95>$C$4,K95<$C$5),1,0) ->  | P95: =IF(AND(K95>$C$5,K95<$C$6),1,0) ->  | Q95: =IF(K95>=$C$6,1,0) ->  | R95: =IF($B$2<=S95,1,0) -> 1 | S95: ='Daves pad 6 (Shikar mod)'!S15 -> 3600
G96: BJ125 - L | H96: 386 | I96: 2000 | J96: TCAE-L-2 | K96: =+Formulae!C20 ->  | L96: L dependant | M96: 178 | N96: =+IF(AND($C$13>=H96,$C$13<=I96),1,0) -> 0 | O96: =IF(AND(K96>$C$4,K96<$C$5),1,0) ->  | P96: =IF(AND(K96>$C$5,K96<$C$6),1,0) ->  | Q96: =IF(K96>=$C$6,1,0) ->  | R96: =IF($B$2<=S96,1,0) -> 1 | S96: ='Daves pad 6 (Shikar mod)'!S16 -> 3600
G97: BJ150 - L | H97: 429 | I97: 2000 | J97: TCAE-L-3 | K97: =+Formulae!C21 ->  | L97: L dependant | M97: 215 | N97: 0 | Q97: =IF(K97>=$C$6,1,0) ->  | R97: 1 | S97: ='Daves pad 6 (Shikar mod)'!S17 -> 3000
G98: BJ175 - L | H98: 473 | I98: 2000 | J98: TCAE-L-4 | K98: =+Formulae!C22 ->  | L98: L dependant | M98: 253 | N98: 0 | R98: 1 | S98: ='Daves pad 6 (Shikar mod)'!S18 -> 3000
G99: BJ200 - L | H99: 500 | I99: 2000 | J99: TCAE-L-5 | K99: =+Formulae!C23 ->  | L99: L dependant | M99: 278 | N99: 0 | O99: =IF(AND(K99>$C$4,K99<$C$5),1,0) ->  | P99: =IF(AND(K99>$C$5,K99<$C$6),1,0) ->  | R99: 1 | S99: ='Daves pad 6 (Shikar mod)'!S19 -> 3000
G100: BJ225 - L | H100: 582 | I100: 2000 | J100: TCAE-L-6 | K100: =+Formulae!C24 ->  | L100: L dependant | M100: 300 | N100: 0 | R100: 1 | S100: ='Daves pad 6 (Shikar mod)'!S20 -> 2700
G101: BJ250 - L | H101: 643 | I101: 2000 | J101: TCAE-L-7 | K101: =+Formulae!C25 ->  | L101: L dependant | M101: 330 | N101: 0 | R101: 1 | S101: ='Daves pad 6 (Shikar mod)'!S21 -> 2300
G102: BJ300 - L | H102: 760 | I102: 2000 | J102: TCAE-L-8 | K102: =+Formulae!C26 ->  | L102: L dependant | M102: 370 | N102: 0 | R102: 1 | S102: ='Daves pad 6 (Shikar mod)'!S22 -> 2000
G104: =IF(G105=J95,J95,INDEX(J95:J102,MATCH(G105,J95:J102,0)-1,1)) ->  | H104: LESSER | I104: =IFERROR(+VLOOKUP(G104,J95:K102,2,FALSE)/hourpa,0) -> 0.0 | J104: =IFERROR(INDEX(H95:H102,MATCH(G104,J95:J102,0)),"-") -> - | K104: =IFERROR(INDEX(I95:I102,MATCH(G104,J95:J102,0)),"-") -> - | L104: =IF(I104<$B$4,0,IF(AND(I104>=$B$4,I104<$B$5,$B$2<=M104),$B$4,IF(AND(I104>=$B$5,I104<$B$6,$B$2<=M104),$B$5,IF(AND(I104>=$B$6,I104<=$F$2,$B$2<=M104),$B$6,0)))) -> 0 | M104: =IFERROR(INDEX(S95:S102,MATCH(G104,J95:J102,0)),"-") -> - | Q104: =IF(AND(N95=1,O95=1,R95=1),J95,IF(AND(N96=1,O96=1,R96=1),J96,IF(AND(N97=1,O97=1,R97=1),J97,IF(AND(N98=1,O98=1,R98=1),J98,IF(AND(N99=1,O99=1,R99=1),J99,IF(AND(N100=1,O100=1,R100=1),J100,IF(AND(N101=1,O101=1,R101=1),J101,IF(AND(N102=1,O102=1,R102=1),J102,"-")))))))) ->  | R104: OPTION1 | S104: =IFERROR(+VLOOKUP(Q104,J95:K102,2,FALSE)/hourpa,"-") -> - | T104: =IFERROR(INDEX(S95:S102,MATCH(Q104,J95:J102,0)),"-") -> -
G105: =+IF(C5<'Model tables'!K95,'Model tables'!J95,+IF(C5<'Model tables'!K96,'Model tables'!J96,+IF(C5<'Model tables'!K97,'Model tables'!J97,+IF(C5<'Model tables'!K98,'Model tables'!J98,+IF(C5<'Model tables'!K99,'Model tables'!J99,+IF(C5<'Model tables'!K100,'Model tables'!J100,+IF(C5<'Model tables'!K101,'Model tables'!J101,+IF(C5<'Model tables'!K102,'Model tables'!J102,"-")))))))) ->  | H105: IDEAL | I105: =IFERROR(+VLOOKUP(G105,J95:K102,2,FALSE)/hourpa,0) -> 0.0 | J105: =IFERROR(INDEX(H95:H102,MATCH(G105,J95:J102,0)),"-") -> - | K105: =IFERROR(INDEX(I95:I102,MATCH(G105,J95:J102,0)),"-") -> - | L105: =IF(I105<$B$4,0,IF(AND(I105>=$B$4,I105<$B$5,$B$2<=M105),$B$4,IF(AND(I105>=$B$5,I105<$B$6,$B$2<=M105),$B$5,IF(AND(I105>=$B$6,I105<=$F$2,$B$2<=M105),$B$6,0)))) -> 0 | M105: =IFERROR(INDEX(S95:S102,MATCH(G105,J95:J102,0)),"-") -> - | Q105: =IF(AND(N95=1,P95=1,R95=1),J95,IF(AND(N96=1,P96=1,R96=1),J96,IF(AND(N97=1,P97=1,R97=1),J97,IF(AND(N98=1,P98=1,R98=1),J98,IF(AND(N99=1,P99=1,R99=1),J99,IF(AND(N100=1,P100=1,R100=1),J100,IF(AND(N101=1,P101=1,R101=1),J101,IF(AND(N102=1,P102=1,R102=1),J102,"-")))))))) ->  | R105: OPTION2 | S105: =IFERROR(+VLOOKUP(Q105,J95:K102,2,FALSE)/hourpa,"-") -> - | T105: =IFERROR(INDEX(S95:S102,MATCH(Q105,J95:J102,0)),"-") -> -
G106: =IF(G105=J102,J102,INDEX(J95:J102,MATCH(G105,J95:J102,0)+1,1)) ->  | H106: GREATER | I106: =IFERROR(+VLOOKUP(G106,J95:K102,2,FALSE)/hourpa,0) -> 0.0 | J106: =IFERROR(INDEX(H95:H102,MATCH(G106,J95:J102,0)),"-") -> - | K106: =IFERROR(INDEX(I95:I102,MATCH(G106,J95:J102,0)),"-") -> - | L106: =IF(I106<$B$4,0,IF(AND(I106>=$B$4,I106<$B$5,$B$2<=M106),$B$4,IF(AND(I106>=$B$5,I106<$B$6,$B$2<=M106),$B$5,IF(AND(I106>=$B$6,I106<=$F$2,$B$2<=M106),$B$6,0)))) -> 0 | M106: =IFERROR(INDEX(S95:S102,MATCH(G106,J95:J102,0)),"-") -> - | Q106: =IF(AND(N95=1,Q95=1,R95=1),J95,IF(AND(N96=1,Q96=1,R96=1),J96,IF(AND(N97=1,Q97=1,R97=1),J97,IF(AND(N98=1,Q98=1,R98=1),J98,IF(AND(N99=1,Q99=1,R99=1),J99,IF(AND(N100=1,Q100=1,R100=1),J100,IF(AND(N101=1,Q101=1,R101=1),J101,IF(AND(N102=1,Q102=1,R102=1),J102,"-")))))))) ->  | R106: OPTION3 | S106: =IFERROR(+VLOOKUP(Q106,J95:K102,2,FALSE)/hourpa,"-") -> - | T106: =IFERROR(INDEX(S95:S102,MATCH(Q106,J95:J102,0)),"-") -> -
G107: DBSE
G108: min | H108: max
G109: =IFERROR(INDEX(H95:H102,MATCH(G105,J95:J102,0)),"-") -> - | H109: =IFERROR(INDEX(I95:I102,MATCH(G105,J95:J102,0)),"-") -> -
H112: Arg 3
G113: L-Series | H113: =+IFERROR(IF(AND($C$13>=G109, $C$13<=H109),1,"-"),"-") -> -
G116: CM-Series
G117: Model | H117: D.B.S.E. | J117: TCAE MODEL | K117: LIFE hrs | L117: weight | M117: dia | N117: DBSE | O117: Life Option1 | P117: Life Option2 | Q117: Life Option3 | R117: Speed
H118: max 1 | I118: max 2 | L118: kg | M118: mm | N118: Check | O118: Check | P118: Check | Q118: Check | R118: Check | S118: Max rpm | T118: Min with solid shaft | U118: Min with tubular shaft
G119: DOJ350 - CM | H119: 535 | I119: 2500 | J119: TCAE-CM-9 | K119: =+Formulae!C35 ->  | L119: L dependant | M119: 336 | N119: =+IF(AND($C$13>=H119,$C$13<=I119),1,0) -> 0 | O119: =IF(AND(K119>$C$4,K119<$C$5),1,0) ->  | P119: =IF(AND(K119>$C$5,K119<$C$6),1,0) ->  | Q119: =IF(K119>=$C$6,1,0) ->  | R119: =IF($B$2<=S119,1,0) -> 1 | S119: ='Daves pad 6 (Shikar mod)'!S23 -> 1600 | T119: 535 | U119: 740
G120: DOJ400 - CM | H120: 570 | I120: 2500 | J120: TCAE-CM-10 | K120: =+Formulae!C36 ->  | L120: L dependant | M120: 376 | N120: =+IF(AND($C$13>=H120,$C$13<=I120),1,0) -> 0 | O120: =IF(AND(K120>$C$4,K120<$C$5),1,0) ->  | P120: =IF(AND(K120>$C$5,K120<$C$6),1,0) ->  | Q120: =IF(K120>=$C$6,1,0) ->  | R120: =IF($B$2<=S120,1,0) -> 1 | S120: ='Daves pad 6 (Shikar mod)'!S24 -> 1300 | T120: 570 | U120: 810
G121: DOJ450 - CM | H121: 650 | I121: 3000 | J121: TCAE-CM-11 | K121: =+Formulae!C37 ->  | L121: L dependant | M121: 420 | N121: 0 | P121: =IF(AND(K121>$C$5,K121<$C$6),1,0) ->  | Q121: =IF(K121>=$C$6,1,0) ->  | R121: 1 | S121: ='Daves pad 6 (Shikar mod)'!S25 -> 1200 | T121: 650 | U121: 900
G122: DOJ500 - CM | H122: 715 | I122: 3000 | J122: TCAE-CM-12 | K122: =+Formulae!C38 ->  | L122: L dependant | M122: 462 | N122: 0 | R122: 1 | S122: ='Daves pad 6 (Shikar mod)'!S26 -> 1100 | T122: 715 | U122: 1000
G123: DOJ550 - CM | H123: 770 | I123: 3000 | J123: TCAE-CM-13 | K123: =+Formulae!C39 ->  | L123: L dependant | M123: 504 | N123: 0 | R123: 1 | S123: ='Daves pad 6 (Shikar mod)'!S27 -> 1000 | T123: 770 | U123: 1070
G124: DOJ625 - CM | H124: 840 | I124: 3000 | J124: TCAE-CM-14 | K124: =+Formulae!C40 ->  | L124: L dependant | M124: 580 | N124: 0 | R124: 1 | S124: ='Daves pad 6 (Shikar mod)'!S28 -> 800 | T124: 840 | U124: 1170
G125: N/A
G127: =IF(G128=J119,J119,INDEX(J119:J124,MATCH(G128,J119:J124,0)-1,1)) ->  | H127: LESSER | I127: =IFERROR(+VLOOKUP(G127,J119:K124,2,FALSE)/hourpa,0) -> 0.0 | J127: =IFERROR(INDEX(H119:H124,MATCH(G127,J119:J124,0)),"-") -> - | K127: =IFERROR(INDEX(I119:I124,MATCH(G127,J119:J124,0)),"-") -> - | L127: =IF(I127<$B$4,0,IF(AND(I127>=$B$4,I127<$B$5,$B$2<=M127),$B$4,IF(AND(I127>=$B$5,I127<$B$6,$B$2<=M127),$B$5,IF(AND(I127>=$B$6,I127<=$F$2,$B$2<=M127),$B$6,0)))) -> 0 | M127: =IFERROR(INDEX(S119:S124,MATCH(G127,J119:J124,0)),"-") -> - | Q127: =IF(AND(N119=1,O119=1,R119=1),J119,IF(AND(N120=1,O120=1,R120=1),J120,IF(AND(N121=1,O121=1,R121=1),J121,IF(AND(N122=1,O122=1,R122=1),J122,IF(AND(N123=1,O123=1,R123=1),J123,IF(AND(N124=1,O124=1,R124=1),J124,"-")))))) ->  | R127: OPTION1 | S127: =IFERROR(VLOOKUP(Q127,J119:K124,2,FALSE)/hourpa,"-") -> - | T127: =IFERROR(INDEX(S119:S124,MATCH(Q127,J119:J124,0)),"-") -> -
G128: =+IF(C5<'Model tables'!K119,'Model tables'!J119,+IF(C5<'Model tables'!K120,'Model tables'!J120,+IF(C5<'Model tables'!K121,'Model tables'!J121,+IF(C5<'Model tables'!K122,'Model tables'!J122,+IF(C5<'Model tables'!K123,'Model tables'!J124,+IF(C5<'Model tables'!K124,'Model tables'!J123,"-")))))) ->  | H128: IDEAL | I128: =IFERROR(+VLOOKUP(G128,J119:K124,2,FALSE)/hourpa,0) -> 0.0 | J128: =IFERROR(INDEX(H119:H124,MATCH(G128,J119:J124,0)),"-") -> - | K128: =IFERROR(INDEX(I119:I124,MATCH(G128,J119:J124,0)),"-") -> - | L128: =IF(I128<$B$4,0,IF(AND(I128>=$B$4,I128<$B$5,$B$2<=M128),$B$4,IF(AND(I128>=$B$5,I128<$B$6,$B$2<=M128),$B$5,IF(AND(I128>=$B$6,I128<=$F$2,$B$2<=M128),$B$6,0)))) -> 0 | M128: =IFERROR(INDEX(S119:S124,MATCH(G128,J119:J124,0)),"-") -> - | Q128: =IF(AND(N119=1,P119=1,R119=1),J119,IF(AND(N120=1,P120=1,R120=1),J120,IF(AND(N121=1,P121=1,R121=1),J121,IF(AND(N122=1,P122=1,R122=1),J122,IF(AND(N123=1,P123=1,R123=1),J123,IF(AND(N124=1,P124=1,R124=1),J124,"-")))))) ->  | R128: OPTION2 | S128: =IFERROR(VLOOKUP(Q128,J119:K124,2,FALSE)/hourpa,"-") -> - | T128: =IFERROR(INDEX(S119:S124,MATCH(Q128,J119:J124,0)),"-") -> -
G129: =IF(G128=J124,J124,INDEX(J119:J124,MATCH(G128,J119:J124,0)+1,1)) ->  | H129: GREATER | I129: =IFERROR(+VLOOKUP(G129,J119:K124,2,FALSE)/hourpa,0) -> 0.0 | J129: =IFERROR(INDEX(H119:H124,MATCH(G129,J119:J124,0)),"-") -> - | K129: =IFERROR(INDEX(I119:I124,MATCH(G129,J119:J124,0)),"-") -> - | L129: =IF(I129<$B$4,0,IF(AND(I129>=$B$4,I129<$B$5,$B$2<=M129),$B$4,IF(AND(I129>=$B$5,I129<$B$6,$B$2<=M129),$B$5,IF(AND(I129>=$B$6,I129<=$F$2,$B$2<=M129),$B$6,0)))) -> 0 | M129: =IFERROR(INDEX(S119:S124,MATCH(G129,J119:J124,0)),"-") -> - | Q129: =IF(AND(N119=1,Q119=1,R119=1),J119,IF(AND(N120=1,Q120=1,R120=1),J120,IF(AND(N121=1,Q121=1,R121=1),J121,IF(AND(N122=1,Q122=1,R122=1),J122,IF(AND(N123=1,Q123=1,R123=1),J123,IF(AND(N124=1,Q124=1,R124=1),J124,"-")))))) ->  | R129: OPTION3 | S129: =IFERROR(VLOOKUP(Q129,J119:K124,2,FALSE)/hourpa,"-") -> - | T129: =IFERROR(INDEX(S119:S124,MATCH(Q129,J119:J124,0)),"-") -> -
G130: DBSE
G131: min | H131: max
G132: =IFERROR(INDEX(H119:H124,MATCH(G128,J119:J124,0)),"-") -> - | H132: =IFERROR(INDEX(I119:I124,MATCH(G128,J119:J124,0)),"-") -> -
H135: Arg 4
G136: CM-Series | H136: =+IFERROR(IF(AND($C$13>=G132, $C$13<=H132),1,"-"),"-") -> -

Sheet Calculations (hidden)
B2: 2. Gather the data entry values to perform initial calculations | P2: LISTS | Q2: Fomula | S2: Notes:
B3: Power | C3: =+POWER ->  | D3: kW | G3: Tables for constants | S3: - The diesel engine produces maximum torque at around 2,000rpm, whereas the petrol engine does this at over 4,000rpm
B4: Speed | C4: =+SPEED -> 0 | D4: rpm | G4: Machine service factor K1 | J4: Time factor K2 | M4: Angle factor K3 | P4: Power Source | Q4: BHP to kW
B5: Gear ratio | C5: =+IF(+RATIO=0,1,+RATIO) -> 1 | G5: Motor type | H5: K1m | J5: hpd | K5: K2 | M5: Angle | N5: K3 | P5: CLICK HERE | S5: - For frequent start/stop, or reversing loads, use K1d factor of 2, or higher
B6: output speed | C6: =+C4/C5 -> 0 | D6: rpm | G6: CLICK HERE | J6: 0 | K6: 0 | M6: 0 | N6: 0.99 | P6: kW | S6: - for applications > 2000rpm,use only nitrile rubber boots
G7: Electric Motor | H7: 1.00 | J7: 2 | K7: 0.63 | M7: 1 | N7: 0.98 | P7: BHP | Q7: =ROUNDUP(IF('Data Entry'!D18="click Here","",IF('Data Entry'!D18="kW",'Data Entry'!C18,IF('Data Entry'!D18="BHP",'Data Entry'!C18/1.341,0))),1) -> 
B8: Motor type | C8: =+TYPE -> CLICK HERE | G8: Diesel 3cyl or less | H8: 3.00 | J8: 4 | K8: 0.79 | M8: 2 | N8: 0.96
G9: Diesel 4+ cyl | H9: 2.00 | J9: 6 | K9: 0.87 | M9: 3 | N9: 0.94
B10: Machine type | C10: =+MSF -> CLICK HERE | G10: Petrol 3cyl or less | H10: 1.50 | J10: 8 | K10: 1.00 | M10: 4 | N10: 0.92 | P10: Size | Q10: inches to mm
C11: =+hours -> 0 | D11: hpd | G11: Petrol 4+cyl | H11: 1.25 | J11: 10 | K11: 1.08 | M11: 5 | N11: 0.90 | P11: Motor shaft | Q11: =ROUNDUP(IF('Data Entry'!D20="click Here",0,IF('Data Entry'!D20="mm",'Data Entry'!C20,IF('Data Entry'!D20="inches",'Data Entry'!C20*25.4,0))),0) -> 0
C12: =+days -> 0 | D12: dpw | G12: Turbine | H12: 1.00 | J12: 12 | K12: 1.14 | M12: 6 | N12: 0.88 | P12: Gear shaft dia | Q12: =ROUNDUP(IF('Data Entry'!N19="click Here",0,IF('Data Entry'!N19="mm",'Data Entry'!M19,IF('Data Entry'!N19="inches",'Data Entry'!M19*25.4,0))),0) -> 0
C13: =+weeks -> 0 | D13: wpa | G13: Driven type | H13: K1d | J13: 14 | K13: 1.21 | P13: DrivenShaftDia | Q13: =ROUNDUP(IF('Data Entry'!J20="click Here",0,IF('Data Entry'!J20="mm",'Data Entry'!I20,IF('Data Entry'!J20="inches",'Data Entry'!I20*25.4,0))),0) -> 0
G14: extreme shock | H14: 3.00 | J14: 16 | K14: 1.26 | P14: DBSE | Q14: =ROUNDUP(IF('Data Entry'!J17="click Here",0,IF('Data Entry'!J17="mm",'Data Entry'!I17,IF('Data Entry'!J17="inches",'Data Entry'!I17*25.4,0))),0) -> 0
B15: Motor shaft | C15: =+DriveShaftdia. -> 0 | D15: mm | G15: heavy duty | H15: 2.00 | J15: 18 | K15: 1.31
B16: gear shaft dia | C16: =+gearshaftdia -> 0 | D16: mm | G16: light duty | H16: 1.25 | J16: 20 | K16: 1.36
B17: Driven shaft | C17: =+DrivenShaftdia. -> 0 | D17: mm | G17: medium duty | H17: 1.75 | J17: 22 | K17: 1.40 | P17: Size
B18: DBSE | C18: =+DBSE. -> 0 | D18: mm | G18: moderate duty | H18: 1.50 | J18: 24 | K18: 1.44 | P18: CLICK HERE | R18: CLICK HERE TO CHECK
B19: Angle | C19: =+ANGLE -> 0 | D19: degs | G19: Smooth | H19: 1.00 | P19: mm | R19: Y
G20: very heavy duty | H20: 2.50 | J20: =IF(+gearshaftdia="",0,gearshaftdia) -> 0 | P20: inches | R20: N
A22: Calculations: | G22: For List only In Procedure V24
B23: Motor torque | C23: =IF(OR(TYPE="Electric Motor",TYPE="Turbine"),(+C3*9550/C4),MAX((+C3*9550/C4),Q26)) ->  | D23: Nm | G23: CLICK HERE | P23: Peak Torque | Q23: lb.ft to nm
B24: Gear torque | C24: =+C23*C5 ->  | D24: Nm | G24: Smooth | H24: 1.00
G25: Light Duty | H25: 1.25 | P25: Nm
B26: Drive torque | C26: =+MAX(C23:C24) ->  | D26: Nm | G26: Moderate Duty | H26: 1.50 | P26: in.lbs | Q26: =ROUNDUP(IF('Data Entry'!E19="Nm",'Data Entry'!E18,IF('Data Entry'!E19="in.lbs",'Data Entry'!E18/8.8507,0)),2) -> 0
G27: Medium Duty | H27: 1.75
B28: Machine Service Factor K1 | G28: Heavy Duty | H28: 2.00
B29: K1m | C29: =+VLOOKUP(C8,G7:H12,2,FALSE) ->  | G29: Very Heavy Duty | H29: 2.50
B30: K1d | C30: =IF('Data Entry'!C22="Y",MAX(2,VLOOKUP(C10,G14:H20,2)),+VLOOKUP(C10,G14:H20,2)) ->  | G30: Extreme Shock | H30: 3.00
B32: K1 | C32: =+MAX(C29:C30) -> 
B34: Operating time factor K2
B35: K2 | C35: =+VLOOKUP(C11,J7:K18,2) -> 
B37: Angle factor K3
B38: K3 | C38: =+VLOOKUP(C19,M6:N12,2) -> 0.99
A41: Effective Torque calculation
B42: Teff = | C42: =+C26*C32*C35/C38 ->  | D42: Nm
A44: Derate torque for actual power usage
B45: Load capacity factor | C45: 80%
A47: Final torque effective | C47: =+C42*C45 ->  | D47: Nm

Sheet Formulae (hidden)
A1: Calculation of coupling type from data entry page
A2: final speed | B2: =+output_speed -> 0 | C2: rpm
A3: operational hours | B3: =+Calculations!C11 -> 0 | C3: hpd
A4: equiv torque | B4: =+Calculations!C47 ->  | C4: Nm
A5: service life period | B5: ='Model tables'!B4 -> 1.0 | C5: year | D5: =+hourpa*Formulae!B5 -> 0 | E5: hrs
A6: service life period | B6: ='Model tables'!B5 -> 2.0 | C6: years | D6: =+hourpa*Formulae!B6 -> 0 | E6: hrs
A7: service life period | B7: ='Model tables'!B6 -> 3.0 | C7: years | D7: =+hourpa*Formulae!B7 -> 0 | E7: hrs
A9: Calculated torque limit values at speed | L9: Working torque vs speed | X9: This table shows the static rated capacities of the TCAE couplings. Use these values when: Duty cycle is very low (less than 1 hour per day) or when the rotation speed is very low (less than 100 rpm)
A10: Coupling | B10: limit torque | C10: life calc hrs | E10: torque | F10: at speed | G10: torque | H10: at speed | I10: max speed | K10: Coupling | L10: range 0-1000 rpm | N10: equation | O10: torque at | P10: torque at | Q10: range 1000-4000 rpm | S10: equation | T10: torque at | X10: NTN ref | Y10: Static load and non reversing and minimal starts & stops (Nm) | Z10: Static load and reversing and frequent starts & stops (Nm)
A11: DOX68F | B11: =IF(B2<1000,292.79*B2^-0.196,649.46*B2^-0.311) ->  | C11: =+(B11/$B$4)^3*7200 ->  | D11: TCAE-V-000 | E11: =P13 -> 186 | F11: 10 | G11: =O13 -> 76 | H11: 1000 | I11: =3000 -> 3000 | J11: BC68P | L11: Torque | M11: Speed | N11: 0-1000 rpm | O11: 1000 | P11: 10 | Q11: Torque | R11: Speed | S11: 1000-4000 rpm | T11: 1500 | U11: rpm | W11: TCAE 0 | X11: BC 75 | Y11: 588 | Z11: 392
A12: BC75P_A | B12: =IF(B2<1000,414.97*(B2^-0.195),956.05*(B2^-0.316)) ->  | C12: =+(B12/$B$4)^3*7200 ->  | D12: TCAE-V-00 | E12: =P15 -> 265 | F12: 10 | G12: =+O15 -> 108 | H12: 1000 | I12: 3000 | J12: BC75P_A | W12: TCAE 0E | X12: BC 87 | Y12: 932 | Z12: 637
A13: DOX87F | B13: =IF(B2<1000,647.62*(B2^-0.196),1459.4*(B2^-0.314)) ->  | C13: =+(B13/$B$4)^3*7200 ->  | D13: TCAE-V-0 | E13: =P17 -> 412 | F13: 10 | G13: =O17 -> 167 | H13: 1000 | I13: 2000 | J13: BC87P | K13: BC68 | N13: y =292.79x-0.196 | O13: =292.79*O11^-0.196 -> 76 | P13: =292.79*P11^-0.196 -> 186 | S13: y = 649.46x-0.311 | T13: =649.46*T11^-0.311 -> 67 | W13: TCAE 1 | X13: BJ 95 DS | Y13: 1,130 | Z13: 637
A14: DOX100F | B14: =IF(B2<1000,957.83*B2^-0.197,2066.3*B2^-0.309) ->  | D14: TCAE-V-1 | E14: =P19 -> 609 | F14: 10 | G14: =O19 -> 246 | H14: 1000 | I14: 1800 | J14: BC100P | W14: TCAE 2 | X14: BJ 125 DS | Y14: 2,750 | Z14: 1,470
A15: DOX125F | B15: =IF(B2<1000,1823.7*B2^-0.19,4261.3*B2^-0.313) ->  | D15: TCAE-V-2 | E15: =P21 -> 1177 | F15: 10 | G15: =O21 -> 491 | H15: 1000 | I15: 1500 | J15: BC125P | K15: BC75 | N15: y = 414.97x-0.195 | O15: =414.94*(O11^-0.195) -> 108 | P15: =414.94*(P11^-0.195) -> 265 | S15: y = 956.05x-0.316 | T15: =956.05*(T11^-0.316) -> 95 | W15: TCAE 3 | X15: BJ 150 DS | Y15: 4,710 | Z15: 2,890
A16: DOX150F | B16: =IF(B2<1000,3238.1*B2^-0.196,6670.2*B2^-0.301) ->  | D16: TCAE-V-3 | E16: =P23 -> 2062 | F16: 10 | G16: =O23 -> 836 | H16: 1000 | I16: 1200 | J16: BC150P | W16: TCAE 4 | X16: BJ 175 DS | Y16: 6,720 | Z16: 4,020
A17: DOX175F | B17: =IF(B2<1000,5041.1*B2^-0.199,10594*B2^-0.306) ->  | D17: TCAE-V-4 | E17: =P25 -> 3188 | F17: 10 | G17: =O25 -> 1275 | H17: 1000 | I17: 1000 | J17: BC175P | K17: BC87 | N17: y = 647.62x-0.196 | O17: =647.62*O11^-0.196 -> 167 | P17: =647.62*P11^-0.196 -> 412 | S17: y = 1459.4x-0.314 | T17: =1459.4*T11^-0.314 -> 147 | W17: TCAE 5 | X17: BJ 200 DS | Y17: 11,200 | Z17: 5,880
A18: DOX200F | B18: =IF(B2<1000,8531*B2^-0.199,17229*B2^-0.301) ->  | D18: TCAE-V-5 | E18: =P27 -> 5395 | F18: 10 | G18: =O27 -> 2158 | H18: 1000 | I18: 1000 | J18: BC200P | W18: TCAE 6 | X18: BJ 225 DS | Y18: 14,700 | Z18: 7,550
A19: BJ095 | B19: =IF(B2<1000,940.1*(B2^-0.204),1661.6*(B2^-0.292)) ->  | C19: =+(B19/$B$4)^3*7200 ->  | D19: TCAE-R-1 | E19: =+L29 -> 588 | F19: =+M29 -> 10 | G19: =+O29 -> 230 | H19: 1000 | I19: 3600 | K19: BC100 | N19: y = 957.832x-0.197 | O19: =957.83*O11^-0.197 -> 246 | P19: =957.83*P11^-0.197 -> 609 | S19: y = 2066.3x-0.309 | T19: =2066.3*T11^-0.309 -> 216 | W19: TCAE 7 | X19: BJ 250 DS | Y19: 20,700 | Z19: 10,700
A20: BJ125 | B20: =IF(B2<1000,2019.8*(B2^-0.185),5699.8*(B2^-0.335)) ->  | C20: =+(B20/$B$4)^3*7200 ->  | D20: TCAE-R-2 | E20: =+L32 -> 981 | F20: =+M32 -> 50 | G20: =+O32 -> 563 | H20: 1000 | I20: 3600 | W20: TCAE 8 | X20: BJ 300 DS | Y20: 29,100 | Z20: 15,800
A21: BJ150 | B21: =IF(B2<1000,3680.8*(B2^-0.201),6144.4*(B2^-0.275)) ->  | D21: TCAE-R-3 | E21: =+L35 -> 1960 | F21: =+M35 -> 23 | G21: =+O35 -> 918 | H21: 1000 | I21: 3000 | K21: BC125 | N21: y = 1823.7x-0.19 | O21: =1823.7*O11^-0.19 -> 491 | P21: =1823.7*P11^-0.19 -> 1177 | S21: y = 4261.3x-0.313 | T21: =4261.3*T11^-0.313 -> 432 | W21: TCAE 9 | X21: DOJ 350 | Y21: 0.00 | Z21: 22,900
A22: BJ175 | B22: =IF(B2<1000,6101.9*(B2^-0.209),15026*(B2^-0.339)) ->  | D22: TCAE-R-4 | E22: =+L38 -> 2940 | F22: =+M38 -> 33 | G22: =+O38 -> 1440 | H22: 1000 | I22: 3000 | W22: TCAE 10 | X22: DOJ 400 | Y22: 0.00 | Z22: 34,100
A23: BJ200 | B23: =IF(B2<1000,8596.5*(B2^-0.19),31800*(B2^-0.379)) ->  | D23: TCAE-R-5 | E23: =+L41 -> 3920 | F23: =+M41 -> 62 | G23: =+O41 -> 2314 | H23: 1000 | I23: 3000 | K23: BC150 | N23: y = 3238.1x-0.196 | O23: =3238.1*O11^-0.196 -> 836 | P23: =3238.1*P11^-0.196 -> 2062 | S23: y = 6670.2x-0.313 | T23: =6670.2*T11^-0.313 -> 676 | W23: TCAE 11 | X23: DOJ 450 | Y23: 0.00 | Z23: 48,500
A24: BJ225 | B24: =IF(B2<1000,12361*(B2^-0.2),30734*(B2^-0.332)) ->  | D24: TCAE-R-6 | E24: =+L44 -> 6867 | F24: =+M44 -> 19 | G24: =+O44 -> 3105 | H24: 1000 | I24: 2700 | W24: TCAE 12 | X24: DOJ 500 | Y24: 0.00 | Z24: 66,800
A25: BJ250 | B25: =IF(B2<1000,15962*(B2^-0.184),51095*(B2^-0.352)) ->  | D25: TCAE-R-7 | E25: =+L47 -> 9810 | F25: =+M47 -> 14 | G25: =+O47 -> 4478 | H25: 1000 | I25: 2300 | K25: BC175 | N25: y = 5041.1x-0.199 | O25: =5041.1*O11^-0.199 -> 1275 | P25: =5041.1*P11^-0.199 -> 3188 | S25: y = 10594x-0.306 | T25: =10594*T11^-0.306 -> 1130 | W25: TCAE 13 | X25: DOJ 550 | Y25: 0.00 | Z25: 89,100
A26: BJ300 | B26: =+IF(B2<1000,19897*(B2^-0.176),71535*(B2^-0.361)) ->  | D26: TCAE-R-8 | E26: =+L50 -> 9810 | F26: =+M50 -> 55 | G26: =+O50 -> 5899 | H26: 1000 | I26: 2000 | W26: TCAE 14 | X26: DOJ 625 | Y26: 0.00 | Z26: 116,000
A27: DOJ100 | B27: =874.73*(B2^-0.178) ->  | D27: TCAE-S-1 | E27: =L53 -> 580 | F27: =M53 -> 10 | G27: =O53 -> 256 | H27: =M54 -> 1000 | I27: 3000 | K27: BC200 | N27: y = 8531x-0.199 | O27: =8531*O11^-0.199 -> 2158 | P27: =8531*P11^-0.199 -> 5395 | S27: y = 17229x-0.301 | T27: =17229*T11^-0.301 -> 1907
A28: DOJ125 | B28: =1786.2*(B2^-0.18) ->  | D28: TCAE-S-2 | E28: =L56 -> 1180 | F28: =M56 -> 10 | G28: =O56 -> 515 | H28: =M57 -> 1000 | I28: 3000
A29: DOJ150 | B29: =3093.9*(O11^-0.179) -> 898 | D29: TCAE-S-3 | E29: =L59 -> 2050 | F29: =M59 -> 10 | G29: =O59 -> 898 | H29: =M60 -> 1000 | I29: 2500 | K29: BJ95 | L29: 588 | M29: 10 | N29: y = 940.1x-0.204 | O29: =940.1*(O11^-0.204) -> 230 | P29: =940.1*(P11^-0.204) -> 588 | Q29: 196 | R29: 1500 | S29: y = 1661.6x-0.292 | T29: =1661.6*(T11^-0.292) -> 196
A30: DOJ175 | B30: =5191.7*(B2^-0.193) ->  | D30: TCAE-S-4 | E30: =L62 -> 3330 | F30: =M62 -> 10 | G30: =O62 -> 1369 | H30: =M63 -> 1000 | I30: 2500 | L30: 294 | M30: 300 | Q30: 147 | R30: 4000
A31: DOJ200 | B31: =8501*(B2^-0.193) ->  | D31: TCAE-S-5 | E31: =L65 -> 5450 | F31: =M68 -> 10 | G31: =O65 -> 2241 | H31: =M66 -> 1000 | I31: 2500
A32: =+K68 -> DOJ225 | B32: =8794*(B2^-0.193) ->  | D32: TCAE-S-6 | E32: =+L68 -> 5640 | F32: =+M68 -> 10 | G32: =+O68 -> 2318 | H32: =+M69 -> 1000 | I32: 2200 | K32: BJ125 | L32: 981 | M32: 50 | N32: y = 2019.8x-0.185 | O32: =2019.8*(O11^-0.185) -> 563 | P32: =2019.8*(P11^-0.185) -> 1319 | Q32: =50*9.81 -> 491 | R32: 1500 | S32: y = 5699.8x-0.335 | T32: =5699.8*(T11^-0.335) -> 492
A33: =+K71 -> DOJ250 | B33: =13805*(B2^-0.195) ->  | D33: TCAE-S-7 | E33: =+L71 -> 8820 | F33: =+M71 -> 10 | G33: =+O71 -> 3590 | H33: =+M72 -> 1000 | I33: =2000 -> 2000 | L33: 588 | M33: 800 | Q33: 353 | R33: 4000
A34: =+K74 -> DOJ300 | B34: =17989*(B2^-0.194) ->  | D34: TCAE-S-8 | E34: =+L74 -> 11500 | F34: =+M74 -> 10 | G34: =+O74 -> 4710 | H34: =+M75 -> 1000 | I34: =1800 -> 1800
A35: DOJ350 | B35: =28118*(B2^-0.191) ->  | D35: TCAE-CM-9 | E35: =$L$77 -> 18100 | F35: =$M$77 -> 10 | G35: =$O$77 -> 7516 | H35: 1000 | I35: =1600 -> 1600 | K35: BJ150 | L35: 1960 | M35: 23 | N35: y = 3680.8x-0.201 | O35: =3680.8*(O11^-0.201) -> 918 | P35: =3680.8*(P11^-0.201) -> 2317 | Q35: =+O35 -> 918 | R35: =+O11 -> 1000 | S35: y = 6144.4x-0.275 | T35: =6144.4*(T11^-0.275) -> 822
A36: DOJ400 | B36: =42066*(B2^-0.194) ->  | D36: TCAE-CM-10 | E36: =$L$80 -> 26900 | F36: =$M$80 -> 10 | G36: =$O$80 -> 11014 | H36: 1000 | I36: =1300 -> 1300 | L36: 981 | M36: 720 | Q36: 627 | R36: 4000
A37: DOJ450 | B37: =59820*(B2^-0.194) ->  | D37: TCAE-CM-11 | E37: =$L$83 -> 38300 | F37: =$M$83 -> 10 | G37: =$O$83 -> 15662 | H37: 1000 | I37: =1200 -> 1200
A38: DOJ500 | B38: =82127*(B2^-0.193) ->  | D38: TCAE-CM-12 | E38: =$L$86 -> 52700 | F38: =$M$86 -> 10 | G38: =$O$86 -> 21651 | H38: 1000 | I38: =1100 -> 1100 | K38: BJ175 | L38: 2940 | M38: 33 | N38: y = 6101.9x-0.209 | O38: =6101.9*(O11^-0.209) -> 1440 | P38: =6101.9*(P11^-0.209) -> 3771 | Q38: =+O38 -> 1440 | R38: =+O11 -> 1000 | S38: y = 15026x-0.339 | T38: =15026*(T11^-0.339) -> 1259
A39: DOJ550 | B39: =109688*(B2^-0.193) ->  | D39: TCAE-CM-13 | E39: =$L$89 -> 70400 | F39: =$M$89 -> 10 | G39: =$O$89 -> 28917 | H39: 1000 | I39: =1000 -> 1000 | L39: 1960 | M39: 230 | Q39: 981 | R39: 3100
A40: DOJ625 | B40: =154403*(B2^-0.193) ->  | D40: TCAE-CM-14 | E40: =$L$92 -> 99000 | F40: =$M$92 -> 10 | G40: =$O$92 -> 40706 | H40: 1000 | I40: =800 -> 800
A41: n/a | K41: BJ200 | L41: 3920 | M41: 62 | N41: y = 8596.5x-0.19 | O41: =8596.5*(O11^-0.19) -> 2314 | P41: =8596.5*(P11^-0.19) -> 5550 | Q41: =+O41 -> 2314 | R41: =+O11 -> 1000 | S41: y = 31800x-0.379 | T41: =31800*(T11^-0.379) -> 1989
L42: 2452 | M42: 730 | Q42: 1471 | R42: 3300
A43: E Series…cont
A44: Model | B44: limit torque | C44: life calc hrs | E44: Speed Max | K44: BJ225 | L44: 6867 | M44: 19 | N44: y = 12361x-0.2 | O44: =12361*(O11^-0.2) -> 3105 | P44: =12361*(P11^-0.2) -> 7799 | Q44: =+O44 -> 3105 | R44: =+O11 -> 1000 | S44: y = 30734x-0.332 | T44: =30734*(T11^-0.332) -> 2711
A45: DOX225F | B45: =14199*(B2^-0.193) ->  | C45: =+(B45/$B$4)^3*7200 ->  | D45: TCAE-V-6 | E45: 2200 | L45: 3920 | M45: 315 | Q45: 1960 | R45: 4000
A46: DOX250F | B46: =18983*(B2^-0.193) ->  | D46: TCAE-V-7 | E46: 2000
A47: DOX285F | B47: =27123*(B2^-0.194) ->  | E47: 2000 | K47: BJ250 | L47: 9810 | M47: 14 | N47: y = 15962x-0.184 | O47: =15962*(O11^-0.184) -> 4478 | P47: =15962*(P11^-0.184) -> 10449 | Q47: =+O47 -> 4478 | R47: =+O11 -> 1000 | S47: y = 51095x-0.352 | T47: =51095*(T11^-0.352) -> 3894
A48: DOX300F | B48: =39137*(B2^-0.194) ->  | C48: =+(B48/$B$4)^3*7200 ->  | D48: TCAE-V-8 | E48: 1800 | L48: 4905 | M48: 600 | Q48: 2940 | R48: 3300
A49: DOX315F | B49: =39632*(B2^-0.194) ->  | E49: 1800
A50: DOX350F | B50: =53174*(B2^-0.192) ->  | D50: TCAE-V-9 | E50: 1600 | K50: BJ300 | L50: 9810 | M50: 55 | N50: y = 19897x-0.176 | O50: =19897*(O11^-0.176) -> 5899 | P50: =19897*(P11^-0.176) -> 13267 | Q50: =+O50 -> 5899 | R50: =+O11 -> 1000 | S50: y = 71535x-0.361 | T50: =71535*(T11^-0.361) -> 5104
A51: DOX390F | B51: =74256*(B2^-0.194) ->  | D51: TCAE-V-10 | E51: 1300 | L51: 5880 | M51: 1000 | Q51: 3920 | R51: 3100
A52: DOX440F | B52: =89385*(B2^-0.193) ->  | D52: TCAE-V-11 | E52: 1200
A53: DOX490F | B53: =153385*(B2^-0.193) ->  | D53: TCAE-V-12 | E53: 1100 | K53: DOJ100 | L53: 580 | M53: 10 | N53: y = 874.73x-0.178 | O53: =874.73*(O11^-0.178) -> 256 | P53: =874.73*(P11^-0.178) -> 581
A54: DOX550F | B54: =254454*(B2^-0.193) ->  | D54: TCAE-V-13 | E54: 1000 | L54: 255 | M54: 1000
A55: DOX625F | B55: =386151.45*(B2^-0.19) ->  | D55: TCAE-V-14 | E55: 800
K56: DOJ125 | L56: 1180 | M56: 10 | N56: y = 1786.2x-0.18 | O56: =1786.2*(O11^-0.18) -> 515 | P56: =1786.2*(P11^-0.18) -> 1180
A57: S series | L57: 515 | M57: 1000
A58: Model | B58: limit torque | C58: life calc hrs | D58: BORE d | E58: max speed
D59: max | K59: DOJ150 | L59: 2050 | M59: 10 | N59: y = 3093.9x-0.179 | O59: =3093.9*(O11^-0.179) -> 898 | P59: =3093.9*(P11^-0.179) -> 2049
A60: DOJ100 | B60: =B27 ->  | C60: =+(B60/$B$4)^3*7200 ->  | D60: 30 | E60: =I27 -> 3000 | L60: 900 | M60: 1000
A61: DOJ125 | D61: 40 | E61: =I28 -> 3000
A62: DOJ150 | B62: 898 | D62: 50 | E62: 2500 | K62: DOJ175 | L62: 3330 | M62: 10 | N62: y = 5191.7x-0.193 | O62: =5191.7*(O11^-0.193) -> 1369 | P62: =5191.7*(P11^-0.193) -> 3329
A63: DOJ175 | D63: 55 | E63: 2500 | L63: 1370 | M63: 1000
A64: DOJ200 | D64: 60 | E64: =I31 -> 2500
A65: DOJ225 | C65: =+(B65/$B$4)^3*7200 ->  | D65: 65 | E65: =I32 -> 2200 | K65: DOJ200 | L65: 5450 | M65: 10 | N65: y = 8501x-0.193 | O65: =8501*(O11^-0.193) -> 2241 | P65: =8501*(P11^-0.193) -> 5451
A66: DOJ250 | B66: =B33 ->  | C66: =+(B66/$B$4)^3*7200 ->  | D66: 65 | E66: =I33 -> 2000 | L66: 2240 | M66: 1000
A67: DOJ300 | D67: 85 | E67: 1800
A68: DOJ350 | D68: 110 | E68: 1600 | K68: DOJ225 | L68: 5640 | M68: 10 | N68: y = 8794x-0.193 | O68: =8794*(O11^-0.193) -> 2318 | P68: =8794*(P11^-0.193) -> 5639
A69: DOJ400 | D69: 125 | E69: 1300 | L69: 2320 | M69: 1000
A70: DOJ450 | D70: 130 | E70: 1200
A71: DOJ500 | D71: 150 | E71: 1100 | K71: DOJ250 | L71: 8820 | M71: 10 | N71: y = 13805x-0.195 | O71: =13805*(O11^-0.195) -> 3590 | P71: =13805*(P11^-0.195) -> 8811
A72: DOJ550 | D72: 150 | E72: 1000 | L72: 3600 | M72: 1000
A73: DOJ625 | D73: 170 | E73: 800
A74: *DOJ design with BCF static torque because of keyway design | K74: DOJ300 | L74: 11500 | M74: 10 | N74: y = 17989x-0.194 | O74: =17989*(O11^-0.194) -> 4710 | P74: =17989*(P11^-0.194) -> 11508
L75: 4700 | M75: 1000
K77: DOJ350 | L77: 18100 | M77: 10 | N77: y = 28118x-0.191 | O77: =28118*(O11^-0.191) -> 7516 | P77: =28118*(P11^-0.191) -> 18113
L78: 7500 | M78: 1000
K80: DOJ400 | L80: 26900 | M80: 10 | N80: y = 42066x-0.194 | O80: =42066*(O11^-0.194) -> 11014 | P80: =42066*(P11^-0.194) -> 26911
L81: 11000 | M81: 1000
K83: DOJ450 | L83: 38300 | M83: 10 | N83: y = 59820x-0.194 | O83: =59820*(O11^-0.194) -> 15662 | P83: =59820*(P11^-0.194) -> 38269
L84: 15700 | M84: 1000
K86: DOJ500 | L86: 52700 | M86: 10 | N86: y = 82127x-0.193 | O86: =82127*(O11^-0.193) -> 21651 | P86: =82127*(P11^-0.193) -> 52661
L87: 21700 | M87: 1000
K89: DOJ550 | L89: 70400 | M89: 10 | N89: y = 109688x-0.193 | O89: =109688*(O11^-0.193) -> 28917 | P89: =109688*(P11^-0.193) -> 70333
L90: 29000 | M90: 1000
K92: DOJ625 | L92: 99000 | M92: 10 | N92: y = 154403x-0.193 | O92: =154403*(O11^-0.193) -> 40706 | P92: =154403*(P11^-0.193) -> 99005
L93: 40700 | M93: 1000
K95: BC225F | N95: y = 5977.3x-0.214 | O95: =5977.3*($O$11^-0.214) -> 1363
K96: BC250F | N96: y = 8433x-0.212 | O96: =8433*($O$11^-0.212) -> 1950
K97: BC300F | N97: y = 14994x-0..21 | O97: =14994*($O$11^-0.21) -> 3515
K98: BC350F | N98: y = 24172x-0.21 | O98: =24172*($O$11^-0.21) -> 5666
K99: BC400F | N99: y = 36373x-0.209 | O99: =36373*($O$11^-0.209) -> 8586
K100: BC450F | N100: y = 50250x-0.202 | O100: =50250*($O$112^-0.202) -> 5896
K101: BC500F | N101: y = 69123x-0.202 | O101: =69123*($O$11^-0.202) -> 17125
K102: BC550F | N102: y = 92168x-0.201 | O102: =92168*($O$11^-0.201) -> 22992
K103: BC600F | N103: y = 166875x-0.201 | O103: =166875*($O$11^-0.201) -> 41629
K104: DOX225 | N104: y = 14199x-0.193 | O104: =14199*($O$11^-0.193) -> 3743 | P104: =14199*($P$11^-0.193) -> 9105
K105: DOX250 | N105: y = 18983x-0.193 | O105: =18983*($O$11^-0.193) -> 5005 | P105: =18983*($P$11^-0.193) -> 12172
K106: DOX285 | N106: y = 27123x-0.194 | O106: =27123*($O$11^-0.194) -> 7101 | P106: =27123*($P$11^-0.194) -> 17352
K107: DOX300 | N107: y = 39137x-0.194 | O107: =39137*($O$11^-0.194) -> 10247 | P107: =39137*($P$11^-0.194) -> 25037
K108: DOX315 | N108: y = 39632x-0.194 | O108: =39632*($O$11^-0.194) -> 10376 | P108: =39632*($P$11^-0.194) -> 25354
K109: DOX350 | N109: y = 53174x-0.192 | O109: =53174*($O$11^-0.192) -> 14116 | P109: =53174*($P$11^-0.192) -> 34174
K110: DOX390 | N110: y = 74256x-0.194 | O110: =74256*($O$11^-0.194) -> 19442 | P110: =74256*($P$11^-0.194) -> 47504
K111: DOX440 | N111: y = 89385x-0.193 | O111: =89385*($O$11^-0.193) -> 23565 | P111: =89385*($P$11^-0.193) -> 57315
K112: DOX490 | N112: y = 153385x-0.193 | O112: =153385*($O$11^-0.193) -> 40437 | P112: =153385*($P$11^-0.193) -> 98352
K113: DOX550 | N113: y = 254454x-0.193 | O113: =254454*($O$11^-0.193) -> 67083 | P113: =254454*($P$11^-0.193) -> 163158
K114: DOX625 | N114: y = 386151.45x-0.19 | O114: =386151.45*($O$11^-0.19) -> 103934 | P114: =386151.45*($O$11^-0.19) -> 103934

Sheet Daves pad 6 (Shikar mod) (hidden)
A1: Daves scratchpad 6
L2: =1.25^3 -> 1.953125 | R2: Agreed by team
A3: Proposal to use unfactored POWER values to define couplings | T3: Dave - Initial Calc
C4: Power kW at MSF 1 | G4: Power kW at MSF 1.25 | L4: TORQUE Nm | P4: ACTIVE CELL | R4: Max Speed | T4: Power kW at MSF 1.25
C5: 1000 rpm | D5: 1500 rpm | E5: 3000 rpm | F5: max rpm | G5: 1000 rpm | H5: 1500 rpm | I5: 3000 rpm | J5: max rpm | K5: 3000 rpm | L5: 1000 | M5: 1500 | N5: 3000 | O5: max | T5: 1000 rpm | U5: 1500 rpm | V5: 3000 rpm
A6: BJ095 - R | B6: TCAE-R-1 | C6: =1000*L6/9549 -> 24 | D6: =1500*M6/9549 -> 33 | E6: =3000*N6/9549 -> 58 | G6: =+C6/$L$2 -> 12 | H6: =IF(R6>=1500,+D6/$L$2,"-") -> 17 | I6: =IF(R6>=3000,+E6/$L$2,"-") -> 30 | J6: - | L6: 230 | M6: 211 | N6: 184 | P6: =Formulae!$O$29 -> 230 | R6: =Formulae!I19 -> 3600 | T6: 12 | U6: 16 | V6: 26
A7: BJ125 - R | B7: TCAE-R-2 | C7: =1000*L7/9549 -> 59 | D7: =1500*M7/9549 -> 82 | E7: =3000*N7/9549 -> 144 | G7: 30 | H7: =IF(R7>=1500,+D7/$L$2,"-") -> 42 | I7: =IF(R7>=3000,+E7/$L$2,"-") -> 74 | J7: - | L7: 563 | M7: 522 | N7: 459 | P7: =Formulae!$O$32 -> 563 | R7: =Formulae!I20 -> 3600 | T7: 29 | U7: 38 | V7: 60
A8: BJ150 - R | B8: TCAE-R-3 | C8: 96 | D8: 133 | E8: 231 | G8: 49 | H8: =IF(R8>=1500,+D8/$L$2,"-") -> 68 | I8: 118 | J8: - | L8: 918 | M8: 846 | N8: 736 | P8: =Formulae!$O$35 -> 918 | R8: =Formulae!I21 -> 3000 | T8: 50 | U8: 65 | V8: 103
A9: BJ175 - R | B9: TCAE-R-4 | C9: 151 | D9: 208 | E9: 360 | G9: 77 | H9: 106 | I9: 184 | J9: - | L9: 1440 | M9: 1323 | N9: 1145 | P9: =Formulae!$O$38 -> 1440 | R9: =Formulae!I22 -> 3000 | T9: 79 | U9: 103 | V9: 164
A10: BJ200 - R | B10: TCAE-R-5 | C10: 242 | D10: 337 | E10: 590 | G10: 124 | H10: 172 | I10: =IF(R10>=3000,+E10/$L$2,"-") -> 302 | J10: - | L10: 2314 | M10: 2142 | N10: 1878 | P10: =Formulae!$O$41 -> 2314 | R10: =Formulae!I23 -> 3000 | T10: 118 | U10: 154 | V10: 246
A11: BJ225 - R | B11: TCAE-R-6 | C11: =1000*L11/9549 -> 325 | D11: 450 | E11: =3000*N11/9549 -> 783 | F11: =R11*O11/9549 -> 720 | G11: 166 | H11: 230 | I11: - | J11: =F11/$L$2 -> 369 | K11: =+E11/$L$2 -> 401 | L11: 3105 | M11: 2863 | N11: 2492 | O11: 2546 | P11: =Formulae!$O$44 -> 3105 | R11: =Formulae!I24 -> 2700 | T11: 169 | U11: 220 | V11: 348
A12: BJ250 - R | B12: TCAE-R-7 | C12: 469 | D12: 653 | E12: 1149 | F12: =R12*O12/9549 -> 925 | G12: 240 | H12: 334 | I12: - | J12: =F12/$L$2 -> 474 | K12: 588 | L12: 4478 | M12: 4156 | N12: 3658 | O12: 3842 | P12: =Formulae!$O$47 -> 4478 | R12: =Formulae!I25 -> 2300 | T12: 230 | U12: 302 | V12: 479
A13: BJ300 - R | B13: TCAE-R-8 | C13: 618 | D13: 863 | E13: 1527 | F13: 1094 | G13: 316 | H13: 442 | I13: - | J13: =F13/$L$2 -> 560 | K13: 782 | L13: 5899 | M13: 5493 | N13: 4862 | O13: 5222 | P13: =Formulae!$O$50 -> 5899 | R13: =Formulae!I26 -> 2000 | T13: 305 | U13: 399 | V13: 635
S14: max speed based on length
A15: BJ095 - R | B15: TCAE-L-1 | C15: =1000*L15/9549 -> 24 | D15: =1500*M15/9549 -> 33 | E15: =3000*N15/9549 -> 58 | G15: =+C15/$L$2 -> 12 | H15: 17 | I15: 30 | J15: - | L15: =L6 -> 230 | M15: =M6 -> 211 | N15: 184 | R15: =R6 -> 3600 | S15: =MROUND(-0.4667*('Model tables'!$C$13)+R15,10) -> 3600 | X15: =-0.4667*('Model tables'!$C$13)+R15 -> 3600.00
A16: BJ125 - R | B16: TCAE-L-2 | C16: =1000*L16/9549 -> 59 | D16: =1500*M16/9549 -> 82 | E16: =3000*N16/9549 -> 144 | G16: =+C16/$L$2 -> 30 | H16: 42 | I16: 74 | J16: - | L16: =L7 -> 563 | M16: 522 | N16: 459 | R16: =R7 -> 3600 | S16: =MROUND(-0.4667*('Model tables'!$C$13)+R16,10) -> 3600 | X16: =-0.4667*('Model tables'!$C$13)+R16 -> 3600.00 | AH16: 500 | AI16: 1000
A17: BJ150 - R | B17: TCAE-L-3 | C17: 96 | D17: 133 | E17: 231 | G17: 49 | H17: 68 | I17: 118 | J17: - | L17: =L8 -> 918 | M17: 846 | N17: 736 | R17: 3000 | S17: =MROUND(-0.4667*('Model tables'!$C$13)+R17,10) -> 3000 | X17: =-0.4667*('Model tables'!$C$13)+R17 -> 3000.00 | AH17: 1000
A18: BJ175 - R | B18: TCAE-L-4 | C18: 151 | D18: 208 | E18: 360 | G18: 77 | H18: 106 | I18: 184 | J18: - | L18: =L9 -> 1440 | M18: 1323 | N18: 1145 | R18: 3000 | S18: =MROUND(-0.4667*('Model tables'!$C$13)+R18,10) -> 3000 | X18: =-0.4667*('Model tables'!$C$13)+R18 -> 3000.00 | AH18: 1500
A19: BJ200 - R | B19: TCAE-L-5 | C19: 242 | D19: 337 | E19: 590 | G19: 124 | H19: 172 | I19: 302 | J19: - | L19: =L10 -> 2314 | M19: 2142 | N19: 1878 | R19: 3000 | S19: =MROUND(-0.4667*('Model tables'!$C$13)+R19,10) -> 3000 | X19: =-0.4667*('Model tables'!$C$13)+R19 -> 3000.00 | AH19: 2000 | AI19: 300
A20: BJ225 - R | B20: TCAE-L-6 | C20: 325 | D20: 450 | E20: 783 | F20: =R20*O20/9549 -> 720 | G20: 166 | H20: 230 | I20: =IF(R20>=3000,+E20/$L$2,"-") -> - | J20: =F20/$L$2 -> 369 | L20: =L11 -> 3105 | M20: 2863 | N20: 2492 | O20: =O11 -> 2546 | R20: 2700 | S20: =MROUND(-0.4667*('Model tables'!$C$13)+R20,10) -> 2700 | X20: =-0.4667*('Model tables'!$C$13)+R20 -> 2700.00
A21: BJ250 - R | B21: TCAE-L-7 | C21: 469 | D21: 653 | E21: 1149 | F21: =R21*O21/9549 -> 925 | G21: 240 | H21: 334 | I21: - | J21: 474 | K21: =+E21/$L$2 -> 588 | L21: =L12 -> 4478 | M21: 4156 | N21: 3658 | O21: =O12 -> 3842 | R21: 2300 | S21: =MROUND(-0.4667*('Model tables'!$C$13)+R21,10) -> 2300 | X21: =-0.4667*('Model tables'!$C$13)+R21 -> 2300.00
A22: BJ300 - R | B22: TCAE-L-8 | C22: 618 | D22: 863 | E22: 1527 | F22: 1094 | G22: 316 | H22: 442 | I22: - | J22: 560 | K22: =+E22/$L$2 -> 782 | L22: =L13 -> 5899 | M22: 5493 | N22: 4862 | O22: =O13 -> 5222 | R22: =R13 -> 2000 | S22: =MROUND(-0.4667*('Model tables'!$C$13)+R22,10) -> 2000 | X22: =-0.4667*('Model tables'!$C$13)+R22 -> 2000.00
A23: DOJ350 - CM | B23: TCAE-L-9 | C23: =1000*L23/9549 -> 787 | D23: 1093 | E23: 1914 | F23: 1151 | G23: =+C23/$L$2 -> 403 | H23: 559 | I23: - | J23: 589 | K23: 980 | L23: =L30 -> 7516 | M23: =M30 -> 6956 | N23: 6093 | O23: =O30 -> 6871 | R23: =R30 -> 1600 | S23: =MROUND(-0.4667*('Model tables'!$C$13)+R23,10) -> 1600 | X23: =-0.4667*('Model tables'!$C$13)+R23 -> 1600.00
A24: DOJ400 - CM | B24: TCAE-L-10 | C24: 1153 | D24: 1599 | E24: 2796 | F24: 1425 | G24: 591 | H24: =IF(R24>=1500,+D24/$L$2,"-") -> - | I24: - | J24: 730 | K24: 1432 | L24: =L31 -> 11014 | M24: 10181 | N24: 8900 | O24: =O31 -> 10467 | R24: =R31 -> 1300 | S24: =MROUND(-0.4667*('Model tables'!$C$13)+R24,10) -> 1300 | X24: =-0.4667*('Model tables'!$C$13)+R24 -> 1300.00
A25: DOJ450 - CM | B25: TCAE-L-11 | C25: 1640 | D25: 2274 | E25: 3976 | F25: 1900 | G25: 840 | H25: - | I25: - | J25: 973 | K25: 2036 | L25: =L32 -> 15662 | M25: 14477 | N25: 12656 | O25: =O32 -> 15118 | R25: 1200 | S25: =MROUND(-0.4667*('Model tables'!$C$13)+R25,10) -> 1200 | X25: =-0.4667*('Model tables'!$C$13)+R25 -> 1200.00
A26: DOJ500 - CM | B26: TCAE-L-12 | C26: 2267 | D26: 3145 | E26: 5503 | F26: 2449 | G26: 1,161 | H26: - | I26: - | J26: 1,254 | K26: 2817 | L26: =L33 -> 21651 | M26: 20022 | N26: 17515 | O26: =O33 -> 21257 | R26: 1100 | S26: =MROUND(-0.4667*('Model tables'!$C$13)+R26,10) -> 1100 | X26: =-0.4667*('Model tables'!$C$13)+R26 -> 1100.00
A27: DOJ550 - CM | B27: TCAE-L-13 | C27: 3028 | D27: 4201 | E27: 7349 | F27: 3028 | G27: 1,550 | H27: - | I27: - | J27: 1,550 | K27: 3763 | L27: =L34 -> 28917 | M27: 26741 | N27: 23392 | O27: =O34 -> 28917 | R27: 1000 | S27: =MROUND(-0.4667*('Model tables'!$C$13)+R27,10) -> 1000 | X27: =-0.4667*('Model tables'!$C$13)+R27 -> 1000.00
A28: DOJ625 - CM | B28: TCAE-L-14 | C28: 4263 | D28: 5913 | E28: 10345 | F28: 3560 | G28: 2,183 | H28: - | I28: - | J28: 1,823 | K28: 5297 | L28: =L35 -> 40706 | M28: 37642 | N28: 32928 | O28: =O35 -> 42497 | R28: 800 | S28: =MROUND(-0.4667*('Model tables'!$C$13)+R28,10) -> 800 | X28: =-0.4667*('Model tables'!$C$13)+R28 -> 800.00
A30: DOJ350 - CM | B30: TCAE-CM-9 | C30: =1000*L30/9549 -> 787 | D30: =1500*M30/9549 -> 1093 | E30: =3000*N30/9549 -> 1914 | F30: =R30*O30/9549 -> 1151 | G30: =+C30/$L$2 -> 403 | H30: 559 | I30: - | J30: =F30/$L$2 -> 589 | K30: 980 | L30: 7516 | M30: 6956 | N30: 6093 | O30: 6871 | P30: =Formulae!$O$77 -> 7516 | R30: =Formulae!I35 -> 1600 | S30: =MROUND(-0.4667*('Model tables'!$C$13)+R30,10) -> 1600 | T30: 400 | U30: 522 | V30: 835
A31: DOJ400 - CM | B31: TCAE-CM-10 | C31: 1153 | D31: 1599 | E31: 2796 | F31: 1425 | G31: 591 | H31: - | I31: - | J31: =F31/$L$2 -> 730 | K31: 1432 | L31: 11014 | M31: 10181 | N31: 8900 | O31: 10467 | P31: =Formulae!$O$80 -> 11014 | R31: =Formulae!I36 -> 1300 | S31: =MROUND(-0.4667*('Model tables'!$C$13)+R31,10) -> 1300 | T31: 594 | U31: 778 | V31: 1239
A32: DOJ450 - CM | B32: TCAE-CM-11 | C32: 1640 | D32: 2274 | E32: 3976 | F32: 1900 | G32: 840 | H32: - | I32: - | J32: =F32/$L$2 -> 973 | K32: 2036 | L32: 15662 | M32: 14477 | N32: 12656 | O32: 15118 | P32: =Formulae!$O$83 -> 15662 | R32: =Formulae!I37 -> 1200 | S32: =MROUND(-0.4667*('Model tables'!$C$13)+R32,10) -> 1200 | T32: 845 | U32: 1111 | V32: 1761
A33: DOJ500 - CM | B33: TCAE-CM-12 | C33: 2267 | D33: 3145 | E33: 5503 | F33: 2449 | G33: 1,161 | H33: - | I33: - | J33: 1,254 | K33: 2817 | L33: 21651 | M33: 20022 | N33: 17515 | O33: 21257 | P33: =Formulae!$O$86 -> 21651 | R33: =Formulae!I38 -> 1100 | S33: =MROUND(-0.4667*('Model tables'!$C$13)+R33,10) -> 1100 | T33: 1162 | U33: 1526 | V33: 2422
A34: DOJ550 - CM | B34: TCAE-CM-13 | C34: 3028 | D34: 4201 | E34: 7349 | F34: 3028 | G34: 1,550 | H34: - | I34: - | J34: 1,550 | K34: 3763 | L34: 28917 | M34: 26741 | N34: 23392 | O34: 28917 | P34: =Formulae!$O$89 -> 28917 | R34: =Formulae!I39 -> 1000 | S34: =MROUND(-0.4667*('Model tables'!$C$13)+R34,10) -> 1000 | T34: 1556 | U34: 2038 | V34: 3231
A35: DOJ625 - CM | B35: TCAE-CM-14 | C35: 4263 | D35: 5913 | E35: 10345 | F35: 3560 | G35: 2,183 | H35: - | I35: - | J35: 1,823 | K35: 5297 | L35: 40706 | M35: 37642 | N35: 32928 | O35: 42497 | P35: =Formulae!$O$92 -> 40706 | R35: =Formulae!I40 -> 800 | S35: =MROUND(-0.4667*('Model tables'!$C$13)+R35,10) -> 800 | T35: 2191 | U35: 2867 | V35: 4552
A37: DOJ100 | B37: TCAE-S-1 | C37: =1000*L37/9549 -> 27 | D37: =1500*M37/9549 -> 37 | E37: =3000*N37/9549 -> 66 | G37: =+C37/$L$2 -> 14 | H37: 19 | I37: 34 | J37: - | L37: 256 | M37: 238 | N37: 210 | P37: =Formulae!$O$53 -> 256 | R37: =Formulae!I27 -> 3000 | T37: 14 | U37: 18 | V37: 30
A38: DOJ125 | B38: TCAE-S-2 | C38: =1000*L38/9549 -> 54 | D38: =1500*M38/9549 -> 75 | E38: 133 | G38: =+C38/$L$2 -> 28 | H38: =IF(R38>=1500,+D38/$L$2,"-") -> 39 | I38: 68 | J38: - | L38: 515 | M38: 479 | N38: 423 | P38: =Formulae!$O$56 -> 515 | R38: =Formulae!I28 -> 3000 | T38: 28 | U38: 37 | V38: 60
A39: DOJ150 | B39: TCAE-S-3 | C39: 94 | D39: 131 | E39: 232 | F39: =R39*O39/9549 -> 200 | G39: 48 | H39: 67 | I39: - | J39: =F39/$L$2 -> 102 | K39: 119 | L39: 898 | M39: 836 | N39: 738 | O39: 763 | P39: =Formulae!$O$59 -> 898 | R39: =Formulae!I29 -> 2500 | T39: 48 | U39: 64 | V39: 104
A40: DOJ175 | B40: TCAE-S-4 | C40: 143 | D40: 199 | E40: 348 | F40: 300 | G40: 73 | H40: =IF(R40>=1500,+D40/$L$2,"-") -> 102 | I40: - | J40: 154 | K40: 178 | L40: 1369 | M40: 1266 | N40: 1107 | O40: 1147 | P40: =Formulae!$O$62 -> 1369 | R40: =Formulae!I30 -> 2500 | T40: 74 | U40: 96 | V40: 153
A41: DOJ200 | B41: TCAE-S-5 | C41: =1000*L41/9549 -> 235 | D41: =1500*M41/9549 -> 326 | E41: 570 | F41: =R41*O41/9549 -> 492 | G41: =+C41/$L$2 -> 120 | H41: =IF(R41>=1500,+D41/$L$2,"-") -> 167 | I41: - | J41: =F41/$L$2 -> 252 | K41: 292 | L41: 2241 | M41: 2072 | N41: 1813 | O41: 1878 | P41: =Formulae!$O$65 -> 2241 | R41: =Formulae!I31 -> 2500 | T41: 120 | U41: 158 | V41: 250
A42: DOJ225 | B42: TCAE-S-6 | C42: 243 | D42: 337 | E42: 589 | F42: =R42*O42/9549 -> 459 | G42: 124 | H42: =IF(R42>=1500,+D42/$L$2,"-") -> 172 | I42: - | J42: =F42/$L$2 -> 235 | K42: 302 | L42: 2318 | M42: 2144 | N42: 1875 | O42: 1991 | P42: =Formulae!O68 -> 2318 | R42: =Formulae!I32 -> 2200 | T42: 124 | U42: 163 | V42: 260
A43: DOJ250 | B43: TCAE-S-7 | C43: 376 | D43: 521 | E43: 910 | F43: =R43*O43/9549 -> 657 | G43: =+C43/$L$2 -> 192 | H43: 267 | I43: - | J43: =F43/$L$2 -> 336 | K43: 466 | L43: 3590 | M43: 3317 | N43: 2897 | O43: 3136 | P43: =Formulae!O71 -> 3590 | R43: =Formulae!I33 -> 2000 | T43: 195 | U43: 255 | V43: 406
A44: DOJ300 | B44: TCAE-S-8 | C44: 493 | D44: 684 | E44: =3000*N44/9549 -> 1196 | F44: 792 | G44: 253 | H44: 350 | I44: - | J44: =F44/$L$2 -> 406 | K44: 612 | L44: 4710 | M44: 4354 | N44: 3806 | O44: 4202 | P44: =Formulae!O74 -> 4710 | R44: =Formulae!I34 -> 1800 | T44: 253 | U44: 332 | V44: 527
A45: DOJ350 | B45: TCAE-S-9 | C45: 787 | D45: 1093 | E45: 1914 | F45: 1151 | G45: 403 | H45: 559 | I45: - | J45: 589 | K45: 980 | L45: 7516 | M45: 6956 | N45: 6093 | O45: 6871 | P45: =Formulae!O77 -> 7516 | R45: =Formulae!I35 -> 1600 | T45: 400 | U45: 522 | V45: 835
A46: DOJ400 | B46: TCAE-S-10 | C46: 1153 | D46: =1500*M46/9549 -> 1599 | E46: 2796 | F46: =R46*O46/9549 -> 1425 | G46: =+C46/$L$2 -> 591 | H46: - | I46: - | J46: =F46/$L$2 -> 730 | K46: 1432 | L46: 11014 | M46: 10181 | N46: 8900 | O46: 10467 | P46: =Formulae!O80 -> 11014 | R46: =Formulae!I36 -> 1300 | T46: 594 | U46: 778 | V46: 1239
A47: DOJ450 | B47: TCAE-S-11 | C47: 1640 | D47: 2274 | E47: 3976 | F47: 1900 | G47: 840 | H47: - | I47: - | J47: 973 | K47: 2036 | L47: 15662 | M47: 14477 | N47: 12656 | O47: 15118 | P47: =Formulae!O83 -> 15662 | R47: =Formulae!I37 -> 1200 | T47: 845 | U47: 1111 | V47: 1761
A48: DOJ500 | B48: TCAE-S-12 | C48: 2267 | D48: 3145 | E48: 5503 | F48: 2449 | G48: 1,161 | H48: - | I48: - | J48: 1,254 | K48: 2817 | L48: 21651 | M48: 20022 | N48: 17515 | O48: 21257 | P48: =Formulae!O86 -> 21651 | R48: =Formulae!I38 -> 1100 | T48: 1162 | U48: 1526 | V48: 2422
A49: DOJ550 | B49: TCAE-S-13 | C49: 3028 | D49: 4201 | E49: 7349 | F49: 3028 | G49: 1,550 | H49: - | I49: - | J49: 1,550 | K49: 3763 | L49: 28917 | M49: 26741 | N49: 23392 | O49: 28917 | P49: =Formulae!O89 -> 28917 | R49: =Formulae!I39 -> 1000 | T49: 1556 | U49: 2038 | V49: 3231
A50: DOJ625 | B50: TCAE-S-14 | C50: =1000*L50/9549 -> 4263 | D50: =1500*M50/9549 -> 5913 | E50: =3000*N50/9549 -> 10345 | F50: =R50*O50/9549 -> 3560 | G50: 2,183 | H50: - | I50: - | J50: 1,823 | K50: 5297 | L50: 40706 | M50: 37642 | N50: 32928 | O50: 42497 | P50: =Formulae!O92 -> 40706 | R50: =Formulae!I40 -> 800 | T50: 2191 | U50: 2867 | V50: 4552
Q51: catalogue | R51: suggested
A52: BC75P_A | B52: TCAE-V-00 | C52: =1000*L52/9549 -> 11 | D52: =1500*M52/9549 -> 16 | E52: =3000*N52/9549 -> 27 | G52: =+C52/$L$2 -> 6 | H52: 8 | I52: =IF(R52>=3000,+E52/$L$2,"-") -> 14 | J52: - | L52: 108 | M52: 100 | N52: 87 | P52: =Formulae!O15 -> 108 | Q52: 2500 | R52: =Formulae!I12 -> 3000 | T52: 6 | U52: 8 | V52: 14
A53: DOX87F | B53: TCAE-V-0 | C53: =1000*L53/9549 -> 18 | D53: =1500*M53/9549 -> 24 | E53: =3000*N53/9549 -> 42 | F53: =R53*O53/9549 -> 31 | G53: =+C53/$L$2 -> 9 | H53: 12 | I53: =IF(R53>=3000,+E53/$L$2,"-") -> - | J53: =F53/$L$2 -> 16 | K53: 22 | L53: 167 | M53: 154 | N53: 135 | O53: 146 | P53: =Formulae!O17 -> 167 | Q53: 2000 | R53: =Formulae!I13 -> 2000 | S53: * | T53: 9 | U53: 12 | V53: 22
A54: DOX100F | B54: TCAE-V-1 | C54: 26 | D54: 36 | E54: =3000*N54/9549 -> 62 | F54: =R54*O54/9549 -> 41 | G54: 13 | H54: 18 | I54: - | J54: 21 | K54: 32 | L54: 246 | M54: 227 | N54: 198 | O54: 219 | P54: =Formulae!O19 -> 246 | Q54: 1800 | R54: =Formulae!I14 -> 1800 | S54: * | T54: 13 | U54: 18 | V54: 32
A55: DOX125F | B55: TCAE-V-2 | C55: 51 | D55: 71 | E55: 125 | F55: =R55*O55/9549 -> 71 | G55: 26 | H55: 37 | I55: - | J55: 37 | K55: 64 | L55: 491 | M55: 454 | N55: 398 | O55: 454 | P55: =Formulae!O21 -> 491 | Q55: 1500 | R55: =Formulae!I15 -> 1500 | T55: 26 | U55: 37 | V55: 64
A56: DOX150F | B56: TCAE-V-3 | C56: 88 | D56: 121 | E56: 212 | F56: 101 | G56: 45 | H56: - | I56: - | J56: 52 | K56: 108 | L56: 836 | M56: 772 | N56: 674 | O56: 807 | P56: =Formulae!O23 -> 836 | Q56: 1200 | R56: =Formulae!I16 -> 1200 | S56: * | T56: 45 | U56: 62 | V56: 108
A57: DOX175F | B57: TCAE-V-4 | C57: 134 | D57: 185 | E57: 322 | F57: =R57*O57/9549 -> 134 | G57: 68 | H57: - | I57: - | J57: 68 | K57: 165 | L57: 1275 | M57: 1176 | N57: 1025 | O57: 1275 | P57: =Formulae!O25 -> 1275 | Q57: 1000 | R57: =Formulae!I17 -> 1000 | S57: * | T57: 68 | U57: 95 | V57: 165
A58: DOX200F | B58: TCAE-V-5 | C58: 226 | D58: 313 | E58: 545 | F58: 226 | G58: 116 | H58: - | I58: - | J58: 116 | K58: 279 | L58: 2158 | M58: 1990 | N58: 1734 | O58: 2158 | P58: =Formulae!O27 -> 2158 | Q58: 1000 | R58: =Formulae!I18 -> 1000 | S58: * | T58: 116 | U58: 160 | V58: 279
A59: DOX225F | B59: TCAE-V-6 | C59: 392 | D59: 544 | E59: 951 | F59: =R59*O59/9549 -> 741 | G59: 201 | H59: 278 | I59: - | J59: 379 | K59: 487 | L59: 3743 | M59: 3462 | N59: 3028 | O59: 3215 | P59: =Formulae!O104 -> 3743 | R59: =Formulae!$E$45 -> 2200 | T59: 201 | U59: 278 | V59: 487
A60: DOX250F | B60: TCAE-V-7 | C60: 524 | D60: 727 | E60: 1272 | F60: 917 | G60: 268 | H60: 372 | I60: - | J60: 469 | K60: 651 | L60: 5005 | M60: 4628 | N60: 4048 | O60: 4378 | P60: =Formulae!O105 -> 5005 | R60: =Formulae!$E$46 -> 2000 | T60: 268 | U60: 372 | V60: 651
A61: DOX300F | B61: TCAE-V-8 | C61: =1000*L61/9549 -> 1073 | D61: 1488 | E61: 2601 | F61: 1723 | G61: =+C61/$L$2 -> 549 | H61: 762 | I61: - | J61: 882 | K61: 1332 | L61: 10247 | M61: 9472 | N61: 8280 | O61: 9142 | P61: =Formulae!O107 -> 10247 | R61: =Formulae!$E$48 -> 1800 | T61: 381 | U61: 528 | V61: 923 | W61: *changed from DOX285 to DOX300
A62: DOX350F | B62: TCAE-V-9 | C62: 1478 | D62: 2051 | E62: 3591 | F62: 2161 | G62: 757 | H62: 1,050 | I62: - | J62: 1,106 | K62: 1839 | L62: 14116 | M62: 13058 | N62: 11431 | O62: 12898 | P62: =Formulae!O109 -> 14116 | R62: =Formulae!$E$50 -> 1600 | T62: 757 | U62: 1050 | V62: 1839
A63: DOX390F | B63: TCAE-V-10 | C63: 2036 | D63: 2823 | E63: 4936 | F63: 2515 | G63: 1,042 | H63: - | I63: - | J63: 1,288 | K63: 2527 | L63: 19442 | M63: 17971 | N63: 15710 | O63: 18477 | P63: =Formulae!O110 -> 19442 | R63: =Formulae!$E$51 -> 1300 | T63: 1042 | U63: 1445 | V63: 2527
A64: DOX440F | B64: TCAE-V-11 | C64: 2468 | D64: 3423 | E64: 5989 | F64: 2859 | G64: 1,264 | H64: - | I64: - | J64: 1,464 | K64: 3066 | L64: 23565 | M64: 21791 | N64: 19063 | O64: 22750 | P64: =Formulae!O111 -> 23565 | R64: =Formulae!$E$52 -> 1200 | T64: 1263 | U64: 1752 | V64: 3066
A65: DOX490F | B65: TCAE-V-12 | C65: 4235 | D65: 5874 | E65: 10277 | F65: 4573 | G65: 2,168 | H65: - | I65: - | J65: 2,342 | K65: 5262 | L65: 40437 | M65: 37394 | N65: 32711 | O65: 39700 | P65: =Formulae!O112 -> 40437 | R65: =Formulae!$E$53 -> 1100 | T65: 2168 | U65: 3007 | V65: 5261
A66: DOX550F | B66: TCAE-V-13 | C66: 7025 | D66: 9744 | E66: 17049 | F66: 7025 | G66: 3,597 | H66: - | I66: - | J66: 3,597 | K66: 8729 | L66: 67083 | M66: 62033 | N66: 54266 | O66: 67083 | P66: =Formulae!O113 -> 67083 | R66: =Formulae!$E$54 -> 1000 | T66: 3596 | U66: 4989 | V66: 8728
A67: DOX625F | B67: TCAE-V-14 | C67: 10884 | D67: 15116 | E67: 26501 | F67: =R67*O67/9549 -> 9085 | G67: 5,573 | H67: - | I67: - | J67: 4,651 | K67: 13569 | L67: 103934 | M67: 96228 | N67: 84354 | O67: 108435 | P67: =Formulae!O114 -> 103934 | R67: =Formulae!$E$55 -> 800 | T67: 5572 | U67: 7739 | V67: 13567

Sheet Shikar scratchpad 5 (hidden)
B1: OBJECTIVE:
A2: 2 | B2: Determine the correlation between Service life data and strength data for BJ and DOJ to apply to BCF models
B4: DOX Series comparison of dynamic torque to life torques
C5: limit | F5: formulas | K5: Rule 1 | L5: Rule 2 | M5: Rule 3 | S5: rpm
B6: Model | C6: static | D6: dyn | F6: static | G6: dyn | K6: static/dyn | L6: dynn+1/dynn | M6: dynn/dynn-1 | O6: Model | P6: static | Q6: dyn fwd | R6: dyn rev | S6: 10 | T6: 50 | U6: 100 | V6: 200 | W6: 300 | X6: 400 | Y6: 500 | Z6: 600 | AA6: 800 | AB6: 1000
A7: 1 | B7: DOX225 | C7: 40000 | D7: 11610 | F7: =C42/C7 -> 0.743 | G7: =D7/D42 -> 1.613 | K7: =+D7/C7 -> 0.290 | L7: =D8/D7 -> 1.31 | O7: DOX225 | S7: =$G7*E42 -> 9,095 | T7: =$G7*F42 -> 6,692 | U7: 5,853 | V7: 5,112 | W7: 4,741 | X7: 4,467 | Y7: 4,289 | Z7: 4,144 | AA7: 3,918 | AB7: =$G7*N42 -> 3,741
A8: 2 | B8: DOX250 | C8: 53200 | D8: 15200 | F8: =C43/C8 -> 0.789 | G8: =D8/D43 -> 1.382 | K8: 0.286 | L8: 1.44 | M8: =D8/D7 -> 1.31 | O8: DOX250 | S8: =$G8*E43 -> 12,188 | T8: =$G8*F43 -> 8,940 | U8: 7,738 | V8: 6,854 | W8: 6,356 | X8: 5,997 | Y8: 5,735 | Z8: 5,527 | AA8: 5,251 | AB8: 4,975
A9: 3 | B9: DOX285 | C9: 76650 | D9: 21900 | K9: 0.286 | L9: 1.443 | M9: =D9/D8 -> 1.441 | O9: DOX285 | S9: =S10/$L$9 -> 17,369 | T9: =T10/$L$9 -> 12,687 | U9: 11,101 | V9: 9,666 | W9: 8,911 | X9: 8,458 | Y9: 8,156 | Z9: 7,854 | AA9: 7,401 | AB9: 7,099
A10: 4 | B10: DOX300 | C10: 110600 | D10: 31600 | F10: =C44/C10 -> 0.570 | G10: =D10/D44 -> 2.179 | K10: 0.286 | L10: 1.01 | M10: =D10/D9 -> 1.44 | O10: DOX300 | S10: =$G10*E44 -> 25,062 | T10: =$G10*F44 -> 18,306 | U10: 16,018 | V10: 13,948 | W10: 12,858 | X10: 12,204 | Y10: 11,768 | Z10: 11,332 | AA10: 10,679 | AB10: 10,243
A11: 5 | B11: DOX315 | C11: 112000 | D11: 32000 | K11: 0.286 | L11: 1.36 | M11: =D11/D10 -> 1.01 | O11: DOX315 | S11: =S10*$M$11 -> 25,379 | T11: =T10*$M$11 -> 18,538 | U11: 16,221 | V11: 14,124 | W11: 13,021 | X11: 12,359 | Y11: 11,917 | Z11: 11,476 | AA11: 10,814 | AB11: =AB10*$M$11 -> 10,372
A12: 6 | B12: DOX350 | C12: 151900 | D12: 43400 | F12: =C45/C12 -> 0.606 | G12: =D12/D45 -> 1.887 | K12: 0.286 | L12: 1.38 | M12: =D12/D11 -> 1.36 | O12: DOX350 | S12: =$G12*E45 -> 34,154 | T12: =$G12*F45 -> 25,097 | U12: 21,889 | V12: 19,247 | W12: 17,737 | X12: 16,794 | Y12: 16,039 | Z12: 15,473 | AA12: 14,718 | AB12: 14,152
A13: 7 | B13: DOX390 | C13: 210000 | D13: 60000 | F13: 0.676 | G13: =D13/D46 -> 1.765 | K13: 0.286 | L13: 1.67 | M13: 1.38 | O13: DOX390 | S13: 47,471 | T13: =$G13*F46 -> 34,941 | U13: 30,353 | V13: 26,471 | W13: 24,706 | X13: 23,294 | Y13: 22,412 | Z13: 21,529 | AA13: 20,294 | AB13: 19,412
A14: 8 | B14: DOX440 | C14: 350000 | D14: 100000 | F14: 0.534 | G14: =D14/D48 -> 1.493 | K14: 0.286 | L14: 1.25 | M14: 1.67 | O14: DOX440 | S14: 57,164 | T14: =$G14*F47 -> 41,940 | U14: 36,716 | V14: 32,090 | W14: 29,701 | X14: 28,060 | Y14: 26,866 | Z14: 25,970 | AA14: 24,478 | AB14: 23,433
A15: 9 | B15: DOX490 | C15: 437500 | D15: 125000 | F15: 0.594 | G15: =D15/D48 -> 1.866 | K15: 0.286 | L15: 1.65 | M15: 1.25 | O15: DOX490 | S15: 98,321 | T15: =$G15*F48 -> 72,201 | U15: 63,060 | V15: 55,224 | W15: 51,119 | X15: 48,134 | Y15: 46,269 | Z15: 44,776 | AA15: 42,164 | AB15: 40,485
A16: 10 | B16: DOX550 | C16: 721000 | D16: 206000 | F16: 0.476 | G16: =D16/D49 -> 2.315 | K16: 0.286 | L16: 1.41 | M16: 1.65 | O16: DOX550 | S16: 162,948 | T16: =$G16*F49 -> 119,434 | U16: 104,620 | V16: 91,427 | W16: 84,483 | X16: 80,085 | Y16: 76,613 | Z16: 74,067 | AA16: 69,438 | AB16: 67,124
A17: 11 | B17: DOX625 | C17: 1015000 | D17: 290000 | F17: 0.609 | G17: =D17/D50 -> 2.500 | K17: 0.286 | L17: 0 | M17: 1.41 | O17: DOX625 | S17: 247,500 | T17: =$G17*F50 -> 181,750 | U17: 159,000 | V17: 139,000 | W17: 128,500 | X17: 121,750 | Y17: 116,500 | Z17: 112,500 | AA17: 106,500 | AB17: 101,750
B31: DOJ Series comparison of dynamic torque to life torques
C32: limit | E32: rpm
B33: Model | C33: static | D33: dyn | E33: 10 | F33: 50 | G33: 100 | H33: 200 | I33: 300 | J33: 400 | K33: 500 | L33: 600 | M33: 800 | N33: 1000 | O33: 1500 | P33: 2000 | Q33: 3000 | R33: 4000
B34: DOJ68 | C34: 1090 | D34: 275 | E34: 180 | F34: 130 | G34: 118 | H34: 104 | I34: 97 | J34: 93 | K34: 89 | L34: 87 | M34: 81 | N34: 78 | O34: 69 | P34: 61 | Q34: 56 | R34: 49
B35: DOJ75 | C35: 1520 | D35: 392 | E35: 250 | F35: 176 | G35: 167 | H35: 148 | I35: 137 | J35: 132 | K35: 125 | L35: 122 | M35: 110 | N35: 110 | O35: 98 | P35: 88 | Q35: 79 | R35: 69
B36: DOJ87 | C36: 2500 | D36: 640 | E36: 400 | F36: 284 | G36: 260 | H36: 230 | I36: 215 | J36: 205 | K36: 196 | L36: 190 | M36: 180 | N36: 172 | O36: 154 | P36: 137 | Q36: 124 | R36: 108
B37: DOJ100 | C37: 3720 | D37: 880 | E37: 580 | F37: 420 | G37: 387 | H37: 343 | I37: 318 | J37: 303 | K37: 289 | L37: 284 | M37: 264 | N37: 255 | O37: 225 | P37: 200 | Q37: 184 | R37: 160
B38: DOJ125 | C38: 5780 | D38: 1470 | E38: 1180 | F38: 862 | G38: 784 | H38: 686 | I38: 637 | J38: 617 | K38: 588 | L38: 568 | M38: 540 | N38: 515 | O38: 460 | P38: 410 | Q38: 370 | R38: 323
B39: DOJ150 | C39: 11560 | D39: 2890 | E39: 2060 | F39: 1470 | G39: 1370 | H39: 1176 | I39: 1120 | J39: 1070 | K39: 1030 | L39: 980 | M39: 930 | N39: 900 | O39: 800 | P39: 715 | Q39: 647 | R39: 558
B40: DOJ175 | C40: 15680 | D40: 4010 | E40: 3330 | F40: 2440 | G40: 2130 | H40: 1870 | I40: 730 | J40: 1630 | K40: 560 | L40: 1520 | M40: 1430 | N40: 1370 | O40: 1190 | P40: 1080 | Q40: 950 | R40: 860
B41: DOJ200 | C41: 23900 | D41: 5880 | E41: 5450 | F41: 3990 | G41: 3500 | H41: 3050 | I41: 2830 | J41: 2670 | K41: 2560 | L41: 2480 | M41: 2350 | N41: 2240 | O41: 1960 | P41: 1781 | Q41: 1558 | R41: 1410
B42: DOJ225 | C42: 29700 | D42: 7200 | E42: 5640 | F42: 4150 | G42: 3630 | H42: 3170 | I42: 2940 | J42: 2770 | K42: 2660 | L42: 2570 | M42: 2430 | N42: 2320 | O42: 2020 | P42: 1870 | Q42: 1640
B43: DOJ250 | C43: 42000 | D43: 11000 | E43: 8820 | F43: 6470 | G43: 5600 | H43: 4960 | I43: 4600 | J43: 4340 | K43: 4150 | L43: 4000 | M43: 3800 | N43: 3600 | O43: 3180 | P43: 2920 | Q43: 2550
B44: DOJ300 | C44: 63000 | D44: 14500 | E44: 11500 | F44: 8400 | G44: 7350 | H44: 6400 | I44: 5900 | J44: 5600 | K44: 5400 | L44: 5200 | M44: 4900 | N44: 4700 | O44: 4120 | P44: 3800 | Q44: 3330
B45: DOJ350 | C45: 92000 | D45: 23000 | E45: 18100 | F45: 13300 | G45: 11600 | H45: 10200 | I45: 9400 | J45: 8900 | K45: 8500 | L45: 8200 | M45: 7800 | N45: 7500 | O45: 6520 | P45: 6020 | Q45: 5260
B46: DOJ400 | C46: 142000 | D46: 34000 | E46: 26900 | F46: 19800 | G46: 17200 | H46: 15000 | I46: 14000 | J46: 13200 | K46: 12700 | L46: 12200 | M46: 11500 | N46: 11000 | O46: 9690 | P46: 8900 | Q46: 7830
B47: DOJ450 | C47: 187000 | D47: 49000 | E47: 38300 | F47: 28100 | G47: 24600 | H47: 21500 | I47: 19900 | J47: 18800 | K47: 18000 | L47: 17400 | M47: 16400 | N47: 15700 | O47: 13800 | P47: 12700 | Q47: 11100
B48: DOJ500 | C48: 260000 | D48: 67000 | E48: 52700 | F48: 38700 | G48: 33800 | H48: 29600 | I48: 27400 | J48: 25800 | K48: 24800 | L48: 24000 | M48: 22600 | N48: 21700 | O48: 19300 | P48: 17500 | Q48: 15300
B49: DOJ550 | C49: 343000 | D49: 89000 | E49: 70400 | F49: 51600 | G49: 45200 | H49: 39500 | I49: 36500 | J49: 34600 | K49: 33100 | L49: 32000 | M49: 30000 | N49: 29000 | O49: 25700 | P49: 23400 | Q49: 20400
B50: DOJ625 | C50: 618000 | D50: 116000 | E50: 99000 | F50: 72700 | G50: 63600 | H50: 55600 | I50: 51400 | J50: 48700 | K50: 46600 | L50: 45000 | M50: 42600 | N50: 40700 | O50: 36300 | P50: 33000 | Q50: 28800
N69: Correlation Summary | Q69: R2 coeff
N70: torque at rpm | O70: Dynamic Rev | P70: Static | Q70: Linear equation Dynamic Rev | U70: inverse equation for dynamic reverse | Y70: inverse equation for dynamic Rev
N71: 10 | O71: 0.9976 | P71: 0.9809 | Q71: 1.2135x + 466.27 | U71: (y-466.27)/1.2135 | Y71: (y-32.667)/1.0617
N72: 50 | O72: 0.9976 | Q72: 1.653x + 478.84 | U72: (y-478.84)/1.653 | Y72: (y-37.583)/1.6591
N73: 100 | O73: 0.9976 | P73: 0.981 | Q73: 1.8899x + 477.35 | U73: (y-477.35)/1.8899 | Y73: (y-60.951)/2.2429
N74: 200 | O74: 0.9976 | Q74: 2.1597x + 538.33 | U74: (y-538.33)/2.1597 | Y74: (y-49.256)/2.5724
N75: 300 | O75: 0.9976 | Q75: 2.3299x + 713.64 | U75: (y-643.72)/2.3321
N76: 400 | O76: 0.9976 | Q76: 2.4675x + 533.71 | U76: (y-463.5)/2.4698
N77: 500 | O77: 0.9975 | P77: 0.9805 | Q77: 2.5698x + 735.4 | U77: (y-735.4)/2.5698 | Y77: (y-24.918)/3.2564
N78: 600 | O78: 0.9977 | Q78: 2.6676x + 520.47 | U78: (y-450.2)/2.6702
N79: 800 | O79: 0.9973 | Q79: 2.8271x + 527.28 | U79: (y-527.28)/2.8271
N80: 1000 | O80: 0.9977 | P80: 0.9807 | Q80: 2.9485x +520.95 | U80: (y-520.95)/2.9485 | Y80: (y-43.836)/4.1051
N81: 1500 | O81: 0.9973 | Q81: 3.3127x + 653.13 | U81: (y-653.13)/3.3127
N82: 2000 | O82: 0.9975 | P82: 0.98 | Q82: 3.6421x + 577.43 | U82: (y-577.43)/3.6421
N83: 3000 | O83: 0.9975 | P83: 0.9814 | Q83: 4.1744x + 526.93 | U83: (y-526.93)/4.1744
N84: 4000 | O84: 0.9913 | P84: 0.9814 | Q84: 4.1933x + 200.65 | U84: (y-200.65)/4.1933
B85: BCF Series comparison of dynamic torque to life torques | N85: AVG | O85: =AVERAGE(O71:O83) -> 0.9975 | P85: =AVERAGE(P71:P83) -> 0.9808
E87: rpm
B88: Model | C88: Static Nm | D88: dyn rev | E88: 10 | F88: 50 | G88: 100 | H88: 200 | I88: 300 | J88: 400 | K88: 500 | L88: 600 | M88: 800 | N88: 1000 | O88: 1500 | P88: 2000 | Q88: 3000
A89: Correlation with DOJ data | B89: BC225F | C89: 16170 | D89: 4753 | E89: =+(D89-466.27)/1.2135 -> 3533 | F89: =+(D89-478.84)/1.653 -> 2586 | G89: =+(D89-477.35)/1.8899 -> 2262 | H89: =+(D89-538.33)/2.1597 -> 1952 | I89: =+(D89-713.64)/2.3299 -> 1734 | J89: =+(D89-533.71)/2.4675 -> 1710 | K89: =+(D89-735.4)/2.5698 -> 1563 | L89: =+(D89-520.47)/2.6676 -> 1587 | M89: =+(D89-527.28)/2.8271 -> 1495 | N89: =+(D89-520.95)/2.9585 -> 1430 | O89: =+(D89-653.13)/3.3127 -> 1238 | P89: =+(D89-577.43)/3.6421 -> 1146 | Q89: =+(D89-526.93)/4.1744 -> 1012
B90: BC240F | C90: 22187 | D90: 6527 | E90: =+(D90-466.27)/1.2135 -> 4994 | F90: =+(D90-478.84)/1.653 -> 3659 | G90: =+(D90-477.35)/1.8899 -> 3201 | H90: =+(D90-538.33)/2.1597 -> 2773 | I90: =+(D90-713.64)/2.3299 -> 2495 | J90: =+(D90-533.71)/2.4675 -> 2429 | K90: =+(D90-665.53)/2.5723 -> 2279 | L90: =+(D90-520.47)/2.6676 -> 2252 | M90: =+(D90-527.28)/2.8271 -> 2122 | N90: =+(D90-520.95)/2.9585 -> 2030 | O90: =+(D90-653.13)/3.3127 -> 1773 | P90: =+(D90-577.43)/3.6421 -> 1634 | Q90: =+(D90-526.93)/4.1744 -> 1437
B91: BC287F | C91: 38328 | D91: 11270 | E91: 8903 | F91: 6528 | G91: 5711 | H91: 4969 | I91: 4531 | J91: 4351 | K91: 4123 | L91: 4030 | M91: 3800 | N91: 3633 | O91: 3205 | P91: 2936 | Q91: =+(D91-526.93)/4.1744 -> 2574
B92: BC350F | C92: 60868 | D92: 17905 | E92: 14371 | F92: 10542 | G92: 9221 | H92: 8041 | I92: 7379 | J92: 7040 | K92: 6702 | L92: 6517 | M92: 6147 | N92: 5876 | O92: 5208 | P92: 4758 | Q92: =+(D92-526.93)/4.1744 -> 4163
B93: BC410F | C93: 90856 | D93: 26725 | E93: 21639 | F93: 15878 | G93: 13888 | H93: 12125 | I93: 11164 | J93: 10615 | K93: 10131 | L93: 9823 | M93: 9267 | N93: 8857 | O93: 7870 | P93: 7179 | Q93: =+(D93-526.93)/4.1744 -> 6276
B94: BC450F | C94: 129360 | D94: 38053 | E94: 30974 | F94: 22731 | G94: 19882 | H94: 17370 | I94: 16026 | J94: 15205 | K94: 14535 | L94: 14070 | M94: 13274 | N94: 12686 | O94: 11290 | P94: 10290
B95: BC500F | C95: 177449 | D95: 52195 | E95: 42628 | F95: 31286 | G95: 27365 | H95: 23918 | I95: 22096 | J95: 20937 | K95: 20032 | L95: 19371 | M95: 18276 | N95: 17466 | O95: 15559 | P95: 14172
B96: BC550F | C96: 236190 | D96: 69462 | E96: 56857 | F96: 41732 | G96: 36502 | H96: 31914 | I96: 29507 | J96: 27934 | K96: 26745 | L96: 25844 | M96: 24384 | N96: 23303 | O96: 20771 | P96: 18913
B97: BC600F | C97: 441980 | D97: 125440 | E97: 102986 | F97: 75597 | G97: 66121 | H97: 57833 | I97: 53533 | J97: 50621 | K97: 48507 | L97: 46828 | M97: 44184 | N97: 42224 | O97: 37669 | P97: 34283
E99: rpm
B100: Model | C100: Static Nm | D100: dyn rev | E100: 10 | F100: 50 | G100: 100 | H100: 200 | I100: 300 | J100: 400 | K100: 500 | L100: 600 | M100: 800 | N100: 1000 | O100: 1500 | P100: 2000 | Q100: 3000 | R100: 4000
A101: Correlation with BJD data | B101: BC225F | C101: 16170 | D101: 4753 | E101: =+(D101-32.667)/1.0617 -> 4446 | G101: =+(D101-37.583)/1.6591 -> 2842 | K101: =+(D101-60.951)/2.2429 -> 2092 | N101: =+(D101-49.256)/2.5724 -> 1829 | P101: =+(D101-24.918)/3.2564 -> 1452 | R101: =+(D101-43.836)/4.1051 -> 1147
B102: BC240F | C102: 22187 | D102: 6527 | E102: =+(D102-32.667)/1.0617 -> 6117 | G102: =+(D102-37.583)/1.6591 -> 3911 | K102: =+(D102-60.951)/2.2429 -> 2883 | N102: 2518 | P102: 1997 | R102: 1579
B103: BC287F | C103: 38328 | D103: 11270 | E103: 10584 | G103: 6770 | K103: 4998 | N103: 4362 | P103: 3453 | R103: 2735
B104: BC350F | C104: 60868 | D104: 17905 | E104: 16834 | G104: 10769 | K104: 7956 | N104: 6941 | P104: 5491 | R104: 4351
B105: BC410F | C105: 90856 | D105: 26725 | E105: 25141 | G105: 16085 | K105: 11888 | N105: 10370 | P105: 8199 | R105: 6500
B106: BC450F | C106: 129360 | D106: 38053 | E106: 35811 | G106: 22913 | K106: 16939 | N106: 14774 | P106: 11678 | R106: 9259
B107: BC500F | C107: 177449 | D107: 52195 | E107: 49131 | G107: 31437 | K107: 23244 | N107: 20271 | P107: 16021 | R107: 12704
B108: BC550F | C108: 236190 | D108: 69462 | E108: 65394 | G108: 41845 | K108: 30943 | N108: 26984 | P108: 21323 | R108: 16910
B109: BC600F | C109: 441980 | D109: 125440 | E109: 118119 | G109: 75585 | K109: 55900 | N109: 48745 | P109: 38513 | R109: 30546

Sheet Shikar scratchpad 5 (Dave mod) (hidden)
B1: OBJECTIVE:
A2: 2 | B2: Determine the correlation between Service life data and strength data for BJ and DOJ to apply to BCF models
B4: DOX Series comparison of dynamic torque to life torques
C5: limit | F5: formulas | K5: Rule 1 | L5: Rule 2 | M5: Rule 3 | S5: rpm
B6: Model | C6: static | D6: dyn | F6: static | G6: dyn | K6: static/dyn | L6: dynn+1/dynn | M6: dynn/dynn-1 | O6: Model | P6: static | Q6: dyn fwd | R6: dyn rev | S6: 10 | T6: 50 | U6: 100 | V6: 200 | W6: 300 | X6: 400 | Y6: 500 | Z6: 600 | AA6: 800 | AB6: 1000
A7: 1 | B7: DOX225 | C7: 40000 | D7: 11610 | F7: =C42/C7 -> 0.743 | G7: =D7/D42 -> 1.613 | K7: =+D7/C7 -> 0.290 | L7: =D8/D7 -> 1.31 | O7: DOX225 | S7: =$G7*E42 -> 9,095 | T7: =$G7*F42 -> 6,692 | U7: 5,853 | V7: 5,112 | W7: 4,741 | X7: 4,467 | Y7: 4,289 | Z7: 4,144 | AA7: 3,918 | AB7: =$G7*N42 -> 3,741
A8: 2 | B8: DOX250 | C8: 53200 | D8: 15200 | F8: =C43/C8 -> 0.789 | G8: =D8/D43 -> 1.382 | K8: 0.286 | L8: 1.44 | M8: =D8/D7 -> 1.31 | O8: DOX250 | S8: =$G8*E43 -> 12,188 | T8: 8,940 | U8: 7,738 | V8: 6,854 | W8: 6,356 | X8: 5,997 | Y8: 5,735 | Z8: 5,527 | AA8: 5,251 | AB8: 4,975
A9: 3 | B9: DOX285 | C9: 76650 | D9: 21900 | K9: 0.286 | L9: 1.443 | M9: =D9/D8 -> 1.441 | O9: DOX285 | S9: =S10/$L$9 -> 17,369 | T9: =T10/$L$9 -> 12,687 | U9: 11,101 | V9: 9,666 | W9: 8,911 | X9: 8,458 | Y9: 8,156 | Z9: 7,854 | AA9: 7,401 | AB9: 7,099
A10: 4 | B10: DOX300 | C10: 110600 | D10: 31600 | F10: =C44/C10 -> 0.570 | G10: =D10/D44 -> 2.179 | K10: 0.286 | L10: 1.01 | M10: =D10/D9 -> 1.44 | O10: DOX300 | S10: =$G10*E44 -> 25,062 | T10: =$G10*F44 -> 18,306 | U10: 16,018 | V10: 13,948 | W10: 12,858 | X10: 12,204 | Y10: 11,768 | Z10: 11,332 | AA10: 10,679 | AB10: 10,243
A11: 5 | B11: DOX315 | C11: 112000 | D11: 32000 | K11: 0.286 | L11: 1.36 | M11: =D11/D10 -> 1.01 | O11: DOX315 | S11: =S10*$M$11 -> 25,379 | T11: =T10*$M$11 -> 18,538 | U11: 16,221 | V11: 14,124 | W11: 13,021 | X11: 12,359 | Y11: 11,917 | Z11: 11,476 | AA11: 10,814 | AB11: =AB10*$M$11 -> 10,372
A12: 6 | B12: DOX350 | C12: 151900 | D12: 43400 | F12: =C45/C12 -> 0.606 | G12: =D12/D45 -> 1.887 | K12: 0.286 | L12: 1.38 | M12: =D12/D11 -> 1.36 | O12: DOX350 | S12: =$G12*E45 -> 34,154 | T12: 25,097 | U12: 21,889 | V12: 19,247 | W12: 17,737 | X12: 16,794 | Y12: 16,039 | Z12: 15,473 | AA12: 14,718 | AB12: 14,152
A13: 7 | B13: DOX390 | C13: 210000 | D13: 60000 | F13: 0.676 | G13: =D13/D46 -> 1.765 | K13: 0.286 | L13: 1.67 | M13: 1.38 | O13: DOX390 | S13: 47,471 | T13: 34,941 | U13: 30,353 | V13: 26,471 | W13: 24,706 | X13: 23,294 | Y13: 22,412 | Z13: 21,529 | AA13: 20,294 | AB13: 19,412
A14: 8 | B14: DOX440 | C14: 350000 | D14: 100000 | F14: 0.534 | G14: =D14/D48 -> 1.493 | K14: 0.286 | L14: 1.25 | M14: 1.67 | O14: DOX440 | S14: 57,164 | T14: 41,940 | U14: 36,716 | V14: 32,090 | W14: 29,701 | X14: 28,060 | Y14: 26,866 | Z14: 25,970 | AA14: 24,478 | AB14: 23,433
A15: 9 | B15: DOX490 | C15: 437500 | D15: 125000 | F15: 0.594 | G15: =D15/D48 -> 1.866 | K15: 0.286 | L15: 1.65 | M15: 1.25 | O15: DOX490 | S15: 98,321 | T15: 72,201 | U15: 63,060 | V15: 55,224 | W15: 51,119 | X15: 48,134 | Y15: 46,269 | Z15: 44,776 | AA15: 42,164 | AB15: 40,485
A16: 10 | B16: DOX550 | C16: 721000 | D16: 206000 | F16: 0.476 | G16: =D16/D49 -> 2.315 | K16: 0.286 | L16: 1.41 | M16: 1.65 | O16: DOX550 | S16: 162,948 | T16: 119,434 | U16: 104,620 | V16: 91,427 | W16: 84,483 | X16: 80,085 | Y16: 76,613 | Z16: 74,067 | AA16: 69,438 | AB16: 67,124
A17: 11 | B17: DOX625 | C17: 1015000 | D17: 290000 | F17: 0.609 | G17: =D17/D50 -> 2.500 | K17: 0.286 | L17: 0 | M17: 1.41 | O17: DOX625 | S17: 247,500 | T17: 181,750 | U17: 159,000 | V17: 139,000 | W17: 128,500 | X17: 121,750 | Y17: 116,500 | Z17: 112,500 | AA17: 106,500 | AB17: 101,750
B31: DOJ Series comparison of dynamic torque to life torques
C32: limit | E32: rpm
A33: TCAE-S | B33: Model | C33: static | D33: dyn | E33: 10 | F33: 50 | G33: 100 | H33: 200 | I33: 300 | J33: 400 | K33: 500 | L33: 600 | M33: 800 | N33: 1000 | O33: 1500 | P33: 2000 | Q33: 3000 | R33: 4000
B34: DOJ68 | C34: 1090 | D34: 275 | E34: 180 | F34: 130 | G34: 118 | H34: 104 | I34: 97 | J34: 93 | K34: 89 | L34: 87 | M34: 81 | N34: 78 | O34: 69 | P34: 61 | Q34: 56 | R34: 49
B35: DOJ75 | C35: 1520 | D35: 392 | E35: 250 | F35: 176 | G35: 167 | H35: 148 | I35: 137 | J35: 132 | K35: 125 | L35: 122 | M35: 110 | N35: 110 | O35: 98 | P35: 88 | Q35: 79 | R35: 69
B36: DOJ87 | C36: 2500 | D36: 640 | E36: 400 | F36: 284 | G36: 260 | H36: 230 | I36: 215 | J36: 205 | K36: 196 | L36: 190 | M36: 180 | N36: 172 | O36: 154 | P36: 137 | Q36: 124 | R36: 108
A37: 1 | B37: DOJ100 | C37: 3720 | D37: 880 | E37: 580 | F37: 420 | G37: 387 | H37: 343 | I37: 318 | J37: 303 | K37: 289 | L37: 284 | M37: 264 | N37: 255 | O37: 225 | P37: 200 | Q37: 184 | R37: 160
A38: 2 | B38: DOJ125 | C38: 5780 | D38: 1470 | E38: 1180 | F38: 862 | G38: 784 | H38: 686 | I38: 637 | J38: 617 | K38: 588 | L38: 568 | M38: 540 | N38: 515 | O38: 460 | P38: 410 | Q38: 370 | R38: 323
A39: 3 | B39: DOJ150 | C39: 11560 | D39: 2890 | E39: 2060 | F39: 1470 | G39: 1370 | H39: 1176 | I39: 1120 | J39: 1070 | K39: 1030 | L39: 980 | M39: 930 | N39: 900 | O39: 800 | P39: 715 | Q39: 647 | R39: 558
A40: 4 | B40: DOJ175 | C40: 15680 | D40: 4010 | E40: 3330 | F40: 2440 | G40: 2130 | H40: 1870 | I40: 730 | J40: 1630 | K40: 560 | L40: 1520 | M40: 1430 | N40: 1370 | O40: 1190 | P40: 1080 | Q40: 950 | R40: 860
A41: 5 | B41: DOJ200 | C41: 23900 | D41: 5880 | E41: 5450 | F41: 3990 | G41: 3500 | H41: 3050 | I41: 2830 | J41: 2670 | K41: 2560 | L41: 2480 | M41: 2350 | N41: 2240 | O41: 1960 | P41: 1781 | Q41: 1558 | R41: 1410
A42: 6 | B42: DOJ225 | C42: 29700 | D42: 7200 | E42: 5640 | F42: 4150 | G42: 3630 | H42: 3170 | I42: 2940 | J42: 2770 | K42: 2660 | L42: 2570 | M42: 2430 | N42: 2320 | O42: 2020 | P42: 1870 | Q42: 1640
A43: 7 | B43: DOJ250 | C43: 42000 | D43: 11000 | E43: 8820 | F43: 6470 | G43: 5600 | H43: 4960 | I43: 4600 | J43: 4340 | K43: 4150 | L43: 4000 | M43: 3800 | N43: 3600 | O43: 3180 | P43: 2920 | Q43: 2550
A44: 8 | B44: DOJ300 | C44: 63000 | D44: 14500 | E44: 11500 | F44: 8400 | G44: 7350 | H44: 6400 | I44: 5900 | J44: 5600 | K44: 5400 | L44: 5200 | M44: 4900 | N44: 4700 | O44: 4120 | P44: 3800 | Q44: 3330
A45: 9 | B45: DOJ350 | C45: 92000 | D45: 23000 | E45: 18100 | F45: 13300 | G45: 11600 | H45: 10200 | I45: 9400 | J45: 8900 | K45: 8500 | L45: 8200 | M45: 7800 | N45: 7500 | O45: 6520 | P45: 6020 | Q45: 5260
A46: 10 | B46: DOJ400 | C46: 142000 | D46: 34000 | E46: 26900 | F46: 19800 | G46: 17200 | H46: 15000 | I46: 14000 | J46: 13200 | K46: 12700 | L46: 12200 | M46: 11500 | N46: 11000 | O46: 9690 | P46: 8900 | Q46: 7830
A47: 11 | B47: DOJ450 | C47: 187000 | D47: 49000 | E47: 38300 | F47: 28100 | G47: 24600 | H47: 21500 | I47: 19900 | J47: 18800 | K47: 18000 | L47: 17400 | M47: 16400 | N47: 15700 | O47: 13800 | P47: 12700 | Q47: 11100
A48: 12 | B48: DOJ500 | C48: 260000 | D48: 67000 | E48: 52700 | F48: 38700 | G48: 33800 | H48: 29600 | I48: 27400 | J48: 25800 | K48: 24800 | L48: 24000 | M48: 22600 | N48: 21700 | O48: 19300 | P48: 17500 | Q48: 15300
A49: 13 | B49: DOJ550 | C49: 343000 | D49: 89000 | E49: 70400 | F49: 51600 | G49: 45200 | H49: 39500 | I49: 36500 | J49: 34600 | K49: 33100 | L49: 32000 | M49: 30000 | N49: 29000 | O49: 25700 | P49: 23400 | Q49: 20400
A50: 14 | B50: DOJ625 | C50: 618000 | D50: 116000 | E50: 99000 | F50: 72700 | G50: 63600 | H50: 55600 | I50: 51400 | J50: 48700 | K50: 46600 | L50: 45000 | M50: 42600 | N50: 40700 | O50: 36300 | P50: 33000 | Q50: 28800
A61: TCAE-S | E61: Static calculated | F61: Dynamic calculated
A62: 1 | E62: =1479.3*EXP(0.4024*A62) -> 2212 | F62: =443.61*EXP(0.4001*A62) -> 662
A63: 2 | E63: =1479.3*EXP(0.4024*A63) -> 3308 | F63: =443.61*EXP(0.4001*A63) -> 987
A64: 3 | E64: =1479.3*EXP(0.4024*A64) -> 4947 | F64: 1473
A65: 4 | E65: =1479.3*EXP(0.4024*A65) -> 7398 | F65: 2198
A66: 5 | E66: =1479.3*EXP(0.4024*A66) -> 11063 | F66: 3279
A67: 6 | B67: BC225F | C67: 16170 | D67: 4753 | E67: =1479.3*EXP(0.4024*A67) -> 16543 | F67: 4893
A68: 7 | B68: BC240F | C68: 22187 | D68: 6527 | E68: 24739 | F68: 7300
A69: 8 | B69: BC287F | C69: 38328 | D69: 11270 | E69: 36994 | F69: 10892 | N69: Correlation Summary | Q69: R2 coeff
A70: 9 | B70: BC350F | C70: 60868 | D70: 17905 | E70: 55322 | F70: 16250 | N70: torque at rpm | O70: Dynamic Rev | P70: Static | Q70: Linear equation Dynamic Rev | U70: inverse equation for dynamic reverse | Y70: inverse equation for dynamic Rev
A71: 10 | B71: BC410F | C71: 90856 | D71: 26725 | E71: 82729 | F71: 24245 | N71: 10 | O71: 0.9976 | P71: 0.9809 | Q71: 1.2135x + 466.27 | U71: (y-466.27)/1.2135 | Y71: (y-32.667)/1.0617
A72: 11 | B72: BC450F | C72: 129360 | D72: 38053 | E72: 123714 | F72: 36172 | N72: 50 | O72: 0.9976 | Q72: 1.653x + 478.84 | U72: (y-478.84)/1.653 | Y72: (y-37.583)/1.6591
A73: 12 | B73: BC500F | C73: 177449 | D73: 52195 | E73: 185002 | F73: 53968 | N73: 100 | O73: 0.9976 | P73: 0.981 | Q73: 1.8899x + 477.35 | U73: (y-477.35)/1.8899 | Y73: (y-60.951)/2.2429
A74: 13 | B74: BC550F | C74: 236190 | D74: 69462 | E74: 276654 | F74: 80519 | N74: 200 | O74: 0.9976 | Q74: 2.1597x + 538.33 | U74: (y-538.33)/2.1597 | Y74: (y-49.256)/2.5724
A75: 14 | B75: BC600F | C75: 441980 | D75: 125440 | E75: 413712 | F75: 120132 | N75: 300 | O75: 0.9976 | Q75: 2.3299x + 713.64 | U75: (y-643.72)/2.3321
N76: 400 | O76: 0.9976 | Q76: 2.4675x + 533.71 | U76: (y-463.5)/2.4698
N77: 500 | O77: 0.9975 | P77: 0.9805 | Q77: 2.5698x + 735.4 | U77: (y-735.4)/2.5698 | Y77: (y-24.918)/3.2564
N78: 600 | O78: 0.9977 | Q78: 2.6676x + 520.47 | U78: (y-450.2)/2.6702
N79: 800 | O79: 0.9973 | Q79: 2.8271x + 527.28 | U79: (y-527.28)/2.8271
N80: 1000 | O80: 0.9977 | P80: 0.9807 | Q80: 2.9485x +520.95 | U80: (y-520.95)/2.9485 | Y80: (y-43.836)/4.1051
N81: 1500 | O81: 0.9973 | Q81: 3.3127x + 653.13 | U81: (y-653.13)/3.3127
N82: 2000 | O82: 0.9975 | P82: 0.98 | Q82: 3.6421x + 577.43 | U82: (y-577.43)/3.6421
N83: 3000 | O83: 0.9975 | P83: 0.9814 | Q83: 4.1744x + 526.93 | U83: (y-526.93)/4.1744
N84: 4000 | O84: 0.9913 | P84: 0.9814 | Q84: 4.1933x + 200.65 | U84: (y-200.65)/4.1933
B85: BCF Series comparison of dynamic torque to life torques | N85: AVG | O85: =AVERAGE(O71:O83) -> 0.9975 | P85: =AVERAGE(P71:P83) -> 0.9808
E87: rpm
B88: Model | C88: Static Nm | D88: dyn rev | E88: 10 | F88: 50 | G88: 100 | H88: 200 | I88: 300 | J88: 400 | K88: 500 | L88: 600 | M88: 800 | N88: 1000 | O88: 1500 | P88: 2000 | Q88: 3000
A89: Correlation with DOJ data | B89: BC225F | C89: 16170 | D89: 4753 | E89: =+(D89-466.27)/1.2135 -> 3533 | F89: =+(D89-478.84)/1.653 -> 2586 | G89: =+(D89-477.35)/1.8899 -> 2262 | H89: =+(D89-538.33)/2.1597 -> 1952 | I89: =+(D89-713.64)/2.3299 -> 1734 | J89: =+(D89-533.71)/2.4675 -> 1710 | K89: =+(D89-735.4)/2.5698 -> 1563 | L89: =+(D89-520.47)/2.6676 -> 1587 | M89: =+(D89-527.28)/2.8271 -> 1495 | N89: =+(D89-520.95)/2.9585 -> 1430 | O89: =+(D89-653.13)/3.3127 -> 1238 | P89: =+(D89-577.43)/3.6421 -> 1146 | Q89: =+(D89-526.93)/4.1744 -> 1012
B90: BC240F | C90: 22187 | D90: 6527 | E90: =+(D90-466.27)/1.2135 -> 4994 | F90: =+(D90-478.84)/1.653 -> 3659 | G90: =+(D90-477.35)/1.8899 -> 3201 | H90: =+(D90-538.33)/2.1597 -> 2773 | I90: =+(D90-713.64)/2.3299 -> 2495 | J90: =+(D90-533.71)/2.4675 -> 2429 | K90: =+(D90-665.53)/2.5723 -> 2279 | L90: =+(D90-520.47)/2.6676 -> 2252 | M90: =+(D90-527.28)/2.8271 -> 2122 | N90: =+(D90-520.95)/2.9585 -> 2030 | O90: =+(D90-653.13)/3.3127 -> 1773 | P90: =+(D90-577.43)/3.6421 -> 1634 | Q90: =+(D90-526.93)/4.1744 -> 1437
B91: BC287F | C91: 38328 | D91: 11270 | E91: 8903 | F91: 6528 | G91: 5711 | H91: 4969 | I91: 4531 | J91: 4351 | K91: 4123 | L91: 4030 | M91: 3800 | N91: 3633 | O91: 3205 | P91: 2936 | Q91: =+(D91-526.93)/4.1744 -> 2574
B92: BC350F | C92: 60868 | D92: 17905 | E92: 14371 | F92: 10542 | G92: 9221 | H92: 8041 | I92: 7379 | J92: 7040 | K92: 6702 | L92: 6517 | M92: 6147 | N92: 5876 | O92: 5208 | P92: 4758 | Q92: =+(D92-526.93)/4.1744 -> 4163
B93: BC410F | C93: 90856 | D93: 26725 | E93: 21639 | F93: 15878 | G93: 13888 | H93: 12125 | I93: 11164 | J93: 10615 | K93: 10131 | L93: 9823 | M93: 9267 | N93: 8857 | O93: 7870 | P93: 7179 | Q93: =+(D93-526.93)/4.1744 -> 6276
B94: BC450F | C94: 129360 | D94: 38053 | E94: 30974 | F94: 22731 | G94: 19882 | H94: 17370 | I94: 16026 | J94: 15205 | K94: 14535 | L94: 14070 | M94: 13274 | N94: 12686 | O94: 11290 | P94: 10290
B95: BC500F | C95: 177449 | D95: 52195 | E95: 42628 | F95: 31286 | G95: 27365 | H95: 23918 | I95: 22096 | J95: 20937 | K95: 20032 | L95: 19371 | M95: 18276 | N95: 17466 | O95: 15559 | P95: 14172
B96: BC550F | C96: 236190 | D96: 69462 | E96: 56857 | F96: 41732 | G96: 36502 | H96: 31914 | I96: 29507 | J96: 27934 | K96: 26745 | L96: 25844 | M96: 24384 | N96: 23303 | O96: 20771 | P96: 18913
B97: BC600F | C97: 441980 | D97: 125440 | E97: 102986 | F97: 75597 | G97: 66121 | H97: 57833 | I97: 53533 | J97: 50621 | K97: 48507 | L97: 46828 | M97: 44184 | N97: 42224 | O97: 37669 | P97: 34283
E99: rpm
B100: Model | C100: Static Nm | D100: dyn rev | E100: 10 | F100: 50 | G100: 100 | H100: 200 | I100: 300 | J100: 400 | K100: 500 | L100: 600 | M100: 800 | N100: 1000 | O100: 1500 | P100: 2000 | Q100: 3000 | R100: 4000
A101: Correlation with BJD data | B101: BC225F | C101: 16170 | D101: 4753 | E101: =+(D101-32.667)/1.0617 -> 4446 | G101: =+(D101-37.583)/1.6591 -> 2842 | K101: =+(D101-60.951)/2.2429 -> 2092 | N101: =+(D101-49.256)/2.5724 -> 1829 | P101: =+(D101-24.918)/3.2564 -> 1452 | R101: =+(D101-43.836)/4.1051 -> 1147
B102: BC240F | C102: 22187 | D102: 6527 | E102: =+(D102-32.667)/1.0617 -> 6117 | G102: =+(D102-37.583)/1.6591 -> 3911 | K102: =+(D102-60.951)/2.2429 -> 2883 | N102: =+(D102-49.256)/2.5724 -> 2518 | P102: 1997 | R102: 1579
B103: BC287F | C103: 38328 | D103: 11270 | E103: 10584 | G103: 6770 | K103: 4998 | N103: 4362 | P103: 3453 | R103: 2735
B104: BC350F | C104: 60868 | D104: 17905 | E104: 16834 | G104: 10769 | K104: 7956 | N104: 6941 | P104: 5491 | R104: 4351
B105: BC410F | C105: 90856 | D105: 26725 | E105: 25141 | G105: 16085 | K105: 11888 | N105: 10370 | P105: 8199 | R105: 6500
B106: BC450F | C106: 129360 | D106: 38053 | E106: 35811 | G106: 22913 | K106: 16939 | N106: 14774 | P106: 11678 | R106: 9259
B107: BC500F | C107: 177449 | D107: 52195 | E107: 49131 | G107: 31437 | K107: 23244 | N107: 20271 | P107: 16021 | R107: 12704
B108: BC550F | C108: 236190 | D108: 69462 | E108: 65394 | G108: 41845 | K108: 30943 | N108: 26984 | P108: 21323 | R108: 16910
B109: BC600F | C109: 441980 | D109: 125440 | E109: 118119 | G109: 75585 | K109: 55900 | N109: 48745 | P109: 38513 | R109: 30546

Sheet Daves scratchpad 2 (hidden)
B1: OBJECTIVE:
A2: 2 | B2: Determine the correlation between Service life data and strength data for BJ and DOJ to apply to BCF models
B4: BJ-D Series comparison of dynamic torque to life torques
F5: formulas | L5: Rule 1 | M5: Rule 2 | S5: rpm
B6: Model | C6: static | D6: dyn rev | E6: dyn fwd | F6: static | G6: dyn fwd | H6: dyn rev | J6: rev/static | K6: fwd/static | L6: Dyn fwd | M6: Dyn rev | O6: Model | P6: static | Q6: dyn fwd | R6: dyn rev | S6: 10 | T6: 50 | U6: 100 | V6: 200 | W6: 300 | X6: 400 | Y6: 500 | Z6: 600 | AA6: 800 | AB6: 1000 | AC6: 1500 | AD6: 2000 | AE6: 3000 | AF6: 4000
A7: 1 | B7: BJ75 | C7: 1520 | D7: 392 | E7: 558 | F7: =+(998.24*A7^2)-(2886.5*A7)+4599 -> 2,711 | G7: =+(475.67*A7^2)-(1369.7*A7)+1952.2 -> 1,058 | H7: =+(249.43*(A7^2))-(713.79*A7)+1147.6 -> 683 | J7: =+H7/F7 -> 0.252 | K7: =+H7/G7 -> 0.646 | L7: =+M7/0.54 -> 704 | M7: =0.25*C7 -> 380 | O7: BJ75 | P7: 1520 | Q7: 558 | R7: 392 | S7: 285 | T7: 209 | U7: 183 | V7: 160 | W7: 151 | X7: 140 | Y7: 134 | Z7: 129 | AA7: 122 | AB7: 117 | AC7: 102 | AD7: 93 | AE7: 81 | AF7: 74
A8: 2 | B8: BJ95 | C8: 2500 | D8: 637 | E8: 1,127 | F8: =+(998.24*A8^2)-(2886.5*A8)+4599 -> 2,819 | G8: =+(475.67*A8^2)-(1369.7*A8)+1952.2 -> 1,115 | H8: 718 | J8: =+H8/F8 -> 0.255 | K8: =+H8/G8 -> 0.643 | L8: 1,157 | M8: 625 | O8: BJ95 | P8: 2500 | Q8: 1,127 | R8: 637 | S8: 570 | T8: 415 | U8: 365 | V8: 320 | W8: 300 | X8: 280 | Y8: 270 | Z8: 260 | AA8: 245 | AB8: 234 | AC8: 205 | AD8: 186 | AE8: 162 | AF8: 148
A9: 3 | B9: BJ125 | C9: 5780 | D9: 1470 | E9: 2,744 | F9: 4,924 | G9: 2,124 | H9: 1251 | J9: 0.254 | K9: 0.589 | L9: 2,676 | M9: 1,445 | O9: BJ125 | P9: 5780 | Q9: 2,744 | R9: 1470 | S9: 1,350 | T9: 980 | U9: 860 | V9: 730 | W9: 710 | X9: 660 | Y9: 630 | Z9: 610 | AA9: 580 | AB9: 550 | AC9: 485 | AD9: 440 | AE9: 385 | AF9: 350
A10: 4 | B10: BJ150 | C10: 11564 | D10: 2890 | E10: 4,704 | F10: 9,025 | G10: 4,084 | H10: 2283 | J10: 0.253 | K10: 0.559 | L10: 5,354 | M10: 2,891 | O10: BJ150 | P10: 11564 | Q10: 4,704 | R10: 2890 | S10: 2,300 | T10: 1700 | U10: 1450 | V10: 1300 | W10: 1200 | X10: 1150 | Y10: 1100 | Z10: 1050 | AA10: 980 | AB10: 940 | AC10: 820 | AD10: 750 | AE10: 650 | AF10: 600
A11: 5 | B11: BJ175 | C11: 15680 | D11: 4018 | E11: 6,713 | F11: 15,123 | G11: 6,995 | H11: 3814 | J11: 0.252 | K11: 0.545 | L11: 7,259 | M11: 3,920 | O11: BJ175 | P11: 15680 | Q11: 6,713 | R11: 4018 | S11: 3,650 | T11: 2650 | U11: 2350 | V11: 2050 | W11: 1950 | X11: 1800 | Y11: 1700 | Z11: 1650 | AA11: 1550 | AB11: 1500 | AC11: 1300 | AD11: 1200 | AE11: 1050 | AF11: 940
A12: 6 | B12: BJ200 | C12: 23912 | D12: 5880 | E12: 11,172 | F12: 23,217 | G12: 10,858 | H12: 5844 | J12: 0.252 | K12: 0.538 | L12: 11,070 | M12: 5,978 | O12: BJ200 | P12: 23912 | Q12: 11,172 | R12: 5880 | S12: 5,500 | T12: 4000 | U12: 3500 | V12: 3050 | W12: 2900 | X12: 2700 | Y12: 2550 | Z12: 2500 | AA12: 2350 | AB12: 2250 | AC12: 1950 | AD12: 1800 | AE12: 1550 | AF12: 1400
A13: 7 | B13: BJ225 | C13: 29694 | D13: 7546 | E13: 14,700 | F13: 33,307 | G13: 15,672 | H13: 8373 | J13: 0.251 | K13: 0.534 | L13: 13,747 | M13: 7,424 | O13: BJ225 | P13: 29694 | Q13: 14,700 | R13: 7546 | S13: 7,800 | T13: 5700 | U13: 5000 | V13: 4350 | W13: 4150 | X13: 3800 | Y13: 3650 | Z13: 3550 | AA13: 3350 | AB13: 3200 | AC13: 2800 | AD13: 2550 | AE13: 2200 | AF13: 2000
A14: 8 | B14: BJ250 | C14: 42238 | D14: 10682 | E14: 20,678 | F14: 45,394 | G14: 21,437 | H14: 11401 | J14: 0.251 | K14: 0.532 | L14: 19,555 | M14: 10,560 | O14: BJ250 | P14: 42238 | Q14: 20,678 | R14: 10682 | S14: 10,600 | T14: 7800 | U14: 6800 | V14: 6000 | W14: 5700 | X14: 5200 | Y14: 5000 | Z14: 4850 | AA14: 4600 | AB14: 4400 | AC14: 3800 | AD14: 3450 | AE14: 3050 | AF14: 2750
A15: 9 | B15: BJ300 | C15: 63112 | D15: 15780 | E15: 29,106 | F15: 59,478 | G15: 28,154 | H15: 14927 | J15: 0.251 | K15: 0.530 | L15: 29,219 | M15: 15,778 | O15: BJ300 | P15: 63112 | Q15: 29,106 | R15: 15780 | S15: 14,100 | T15: 10300 | U15: 9000 | V15: 7900 | W15: 7500 | X15: 6900 | Y15: 6700 | Z15: 6300 | AA15: 6100 | AB15: 5800 | AC15: 5100 | AD15: 4600 | AE15: 4000 | AF15: 3650
J16: =AVERAGE(J7:J15) -> 0.252 | K16: =AVERAGE(K7:K15) -> 0.569 | L16: fair | M16: good
D17: Rules:
C18: 1 | D18: Dynamic reversing = 0.54 x Dynamic fwd (non reversing)
C19: 2 | D19: Dynamic reversing = 0.25 x Static
M35: Correlation Summary | P35: R2 coeff
M36: torque at rpm | N36: Dynamic Rev | O36: Dynamic Fwd | P36: Static | Q36: Most accurate parameter | R36: Linear equation Dynamic Fwd | T36: inverse equation for dynamic Fwd | W36: Linear equation Dynamic Rev | Y36: inverse equation for dynamic Rev
M37: 10 | N37: 0.9918 | O37: 0.9972 | P37: 0.99 | R37: 2.0185x - 184.87 | T37: (y-184.87)/2.0185 | W37: 1.0617x + 32.667 | Y37: (y-32.667)/1.0617
M38: 100 | N38: 0.9911 | O38: 0.9967 | P38: 0.9892 | R38: 3.1548x - 176.69 | T38: (y-176.69)/3.1548 | W38: 1.6591x + 37.583 | Y38: (y-37.583)/1.6591
M39: 500 | N39: 0.993 | O39: 0.9978 | P39: 0.9913 | R39: 4.2631x - 127.94 | T39: (y-127.94)/4.2631 | W39: 2.2429x + 60.951 | Y39: (y-60.951)/2.2429
M40: 1000 | N40: 0.9912 | O40: 0.9969 | P40: 0.9894 | R40: 4.8915x - 154.63 | T40: (y-154.63)/4.8915 | W40: 2.5724x + 49.256 | Y40: (y-49.256)/2.5724
M41: 2000 | N41: 0.9918 | O41: 0.9971 | P41: 0.9901 | R41: 6.1911x - 199.04 | T41: (y-199.04)/6.1911 | W41: 3.2564x + 24.918 | Y41: (y-24.918)/3.2564
M42: 4000 | N42: 0.9922 | O42: 0.9973 | P42: 0.9904 | R42: 7.8041x - 162.31 | T42: (y-162.31)/7.8041 | W42: 4.1051x + 43.836 | Y42: (y-43.836)/4.1051
M43: AVG | N43: =AVERAGE(N37:N42) -> 0.9919 | O43: =AVERAGE(O37:O42) -> 0.9972 | P43: =AVERAGE(P37:P42) -> 0.9901
B45: DOJ Series comparison of dynamic torque to life torques
E46: rpm
B47: Model | C47: static | D47: dyn rev | E47: 10 | F47: 50 | G47: 100 | H47: 200 | I47: 300 | J47: 400 | K47: 500 | L47: 600 | M47: 800 | N47: 1000 | O47: 1500 | P47: 2000 | Q47: 3000 | R47: 4000
B48: DOJ68 | C48: 1090 | D48: 275 | E48: 180 | F48: 130 | G48: 118 | H48: 104 | I48: 97 | J48: 93 | K48: 89 | L48: 87 | M48: 81 | N48: 78 | O48: 69 | P48: 61 | Q48: 56 | R48: 49
B49: DOJ75 | C49: 1520 | D49: 392 | E49: 250 | F49: 176 | G49: 167 | H49: 148 | I49: 137 | J49: 132 | K49: 125 | L49: 122 | M49: 110 | N49: 110 | O49: 98 | P49: 88 | Q49: 79 | R49: 69
B50: DOJ87 | C50: 2500 | D50: 640 | E50: 400 | F50: 284 | G50: 260 | H50: 230 | I50: 215 | J50: 205 | K50: 196 | L50: 190 | M50: 180 | N50: 172 | O50: 154 | P50: 137 | Q50: 124 | R50: 108
B51: DOJ100 | C51: 3720 | D51: 880 | E51: 580 | F51: 420 | G51: 387 | H51: 343 | I51: 318 | J51: 303 | K51: 289 | L51: 284 | M51: 264 | N51: 255 | O51: 225 | P51: 200 | Q51: 184 | R51: 160
B52: DOJ125 | C52: 5780 | D52: 1470 | E52: 1180 | F52: 862 | G52: 784 | H52: 686 | I52: 637 | J52: 617 | K52: 588 | L52: 568 | M52: 540 | N52: 515 | O52: 460 | P52: 410 | Q52: 370 | R52: 323
B53: DOJ150 | C53: 11560 | D53: 2890 | E53: 2060 | F53: 1470 | G53: 1370 | H53: 1176 | I53: 1120 | J53: 1070 | K53: 1030 | L53: 980 | M53: 930 | N53: 900 | O53: 800 | P53: 715 | Q53: 647 | R53: 558
B54: DOJ175 | C54: 15680 | D54: 4010 | E54: 3330 | F54: 2440 | G54: 2130 | H54: 1870 | I54: 730 | J54: 1630 | K54: 560 | L54: 1520 | M54: 1430 | N54: 1370 | O54: 1190 | P54: 1080 | Q54: 950 | R54: 860
B55: DOJ200 | C55: 23900 | D55: 5880 | E55: 5450 | F55: 3990 | G55: 3500 | H55: 3050 | I55: 2830 | J55: 2670 | K55: 2560 | L55: 2480 | M55: 2350 | N55: 2240 | O55: 1960 | P55: 1781 | Q55: 1558 | R55: 1410
B56: DOJ225 | C56: 29700 | D56: 7200 | E56: 5640 | F56: 4150 | G56: 3630 | H56: 3170 | I56: 2940 | J56: 2770 | K56: 2660 | L56: 2570 | M56: 2430 | N56: 2320 | O56: 2020 | P56: 1870 | Q56: 1640
B57: DOJ250 | C57: 42000 | D57: 11000 | E57: 8820 | F57: 6470 | G57: 5600 | H57: 4960 | I57: 4600 | J57: 4340 | K57: 4150 | L57: 4000 | M57: 3800 | N57: 3600 | O57: 3180 | P57: 2920 | Q57: 2550
B58: DOJ300 | C58: 63000 | D58: 14500 | E58: 11500 | F58: 8400 | G58: 7350 | H58: 6400 | I58: 5900 | J58: 5600 | K58: 5400 | L58: 5200 | M58: 4900 | N58: 4700 | O58: 4120 | P58: 3800 | Q58: 3330
B59: DOJ350 | C59: 92000 | D59: 23000 | E59: 18100 | F59: 13300 | G59: 11600 | H59: 10200 | I59: 9400 | J59: 8900 | K59: 8500 | L59: 8200 | M59: 7800 | N59: 7500 | O59: 6520 | P59: 6020 | Q59: 5260
B60: DOJ400 | C60: 142000 | D60: 34000 | E60: 26900 | F60: 19800 | G60: 17200 | H60: 15000 | I60: 14000 | J60: 13200 | K60: 12700 | L60: 12200 | M60: 11500 | N60: 11000 | O60: 9690 | P60: 8900 | Q60: 7830
B61: DOJ450 | C61: 187000 | D61: 49000 | E61: 38300 | F61: 28100 | G61: 24600 | H61: 21500 | I61: 19900 | J61: 18800 | K61: 18000 | L61: 17400 | M61: 16400 | N61: 15700 | O61: 13800 | P61: 12700 | Q61: 11100
B62: DOJ500 | C62: 260000 | D62: 67000 | E62: 52700 | F62: 38700 | G62: 33800 | H62: 29600 | I62: 27400 | J62: 25800 | K62: 24800 | L62: 24000 | M62: 22600 | N62: 21700 | O62: 19300 | P62: 17500 | Q62: 15300
B63: DOJ550 | C63: 343000 | D63: 89000 | E63: 70400 | F63: 51600 | G63: 45200 | H63: 39500 | I63: 36500 | J63: 34600 | K63: 33100 | L63: 32000 | M63: 30000 | N63: 29000 | O63: 25700 | P63: 23400 | Q63: 20400
B64: DOJ625 | C64: 618000 | D64: 116000 | E64: 99000 | F64: 72700 | G64: 63600 | H64: 55600 | I64: 51400 | J64: 48700 | K64: 46600 | L64: 45000 | M64: 42600 | N64: 40700 | O64: 36300 | P64: 33000 | Q64: 28800
N83: Correlation Summary | Q83: R2 coeff
N84: torque at rpm | O84: Dynamic Rev | P84: Static | Q84: Linear equation Dynamic Rev | U84: inverse equation for dynamic reverse | Y84: inverse equation for dynamic Rev
N85: 10 | O85: 0.9976 | P85: 0.9809 | Q85: 1.2135x + 466.27 | U85: (y-466.27)/1.2135 | Y85: (y-32.667)/1.0617
N86: 50 | O86: 0.9976 | Q86: 1.653x + 478.84 | U86: (y-478.84)/1.653 | Y86: (y-37.583)/1.6591
N87: 100 | O87: 0.9976 | P87: 0.981 | Q87: 1.8899x + 477.35 | U87: (y-477.35)/1.8899 | Y87: (y-60.951)/2.2429
N88: 200 | O88: 0.9976 | Q88: 2.1597x + 538.33 | U88: (y-538.33)/2.1597 | Y88: (y-49.256)/2.5724
N89: 300 | O89: 0.9976 | Q89: 2.3299x + 713.64 | U89: (y-643.72)/2.3321
N90: 400 | O90: 0.9976 | Q90: 2.4675x + 533.71 | U90: (y-463.5)/2.4698
N91: 500 | O91: 0.9975 | P91: 0.9805 | Q91: 2.5698x + 735.4 | U91: (y-735.4)/2.5698 | Y91: (y-24.918)/3.2564
N92: 600 | O92: 0.9977 | Q92: 2.6676x + 520.47 | U92: (y-450.2)/2.6702
N93: 800 | O93: 0.9973 | Q93: 2.8271x + 527.28 | U93: (y-527.28)/2.8271
N94: 1000 | O94: 0.9977 | P94: 0.9807 | Q94: 2.9485x +520.95 | U94: (y-520.95)/2.9485 | Y94: (y-43.836)/4.1051
N95: 1500 | O95: 0.9973 | Q95: 3.3127x + 653.13 | U95: (y-653.13)/3.3127
N96: 2000 | O96: 0.9975 | P96: 0.98 | Q96: 3.6421x + 577.43 | U96: (y-577.43)/3.6421
N97: 3000 | O97: 0.9975 | P97: 0.9814 | Q97: 4.1744x + 526.93 | U97: (y-526.93)/4.1744
N98: 4000 | O98: 0.9913 | P98: 0.9814 | Q98: 4.1933x + 200.65 | U98: (y-200.65)/4.1933
B99: BCF Series comparison of dynamic torque to life torques | N99: AVG | O99: =AVERAGE(O85:O97) -> 0.9975 | P99: =AVERAGE(P85:P97) -> 0.9808
E101: rpm
B102: Model | C102: Static Nm | D102: dyn rev | E102: 10 | F102: 50 | G102: 100 | H102: 200 | I102: 300 | J102: 400 | K102: 500 | L102: 600 | M102: 800 | N102: 1000 | O102: 1500 | P102: 2000 | Q102: 3000
A103: Correlation with DOJ data | B103: BC225F | C103: 16170 | D103: 4753 | E103: =+(D103-466.27)/1.2135 -> 3533 | F103: =+(D103-478.84)/1.653 -> 2586 | G103: =+(D103-477.35)/1.8899 -> 2262 | H103: =+(D103-538.33)/2.1597 -> 1952 | I103: =+(D103-713.64)/2.3299 -> 1734 | J103: =+(D103-533.71)/2.4675 -> 1710 | K103: =+(D103-735.4)/2.5698 -> 1563 | L103: =+(D103-520.47)/2.6676 -> 1587 | M103: =+(D103-527.28)/2.8271 -> 1495 | N103: =+(D103-520.95)/2.9585 -> 1430 | O103: =+(D103-653.13)/3.3127 -> 1238 | P103: =+(D103-577.43)/3.6421 -> 1146 | Q103: =+(D103-526.93)/4.1744 -> 1012
B104: BC240F | C104: 22187 | D104: 6527 | E104: =+(D104-466.27)/1.2135 -> 4994 | F104: =+(D104-478.84)/1.653 -> 3659 | G104: =+(D104-477.35)/1.8899 -> 3201 | H104: =+(D104-538.33)/2.1597 -> 2773 | I104: =+(D104-713.64)/2.3299 -> 2495 | J104: =+(D104-533.71)/2.4675 -> 2429 | K104: =+(D104-665.53)/2.5723 -> 2279 | L104: =+(D104-520.47)/2.6676 -> 2252 | M104: =+(D104-527.28)/2.8271 -> 2122 | N104: =+(D104-520.95)/2.9585 -> 2030 | O104: =+(D104-653.13)/3.3127 -> 1773 | P104: =+(D104-577.43)/3.6421 -> 1634 | Q104: =+(D104-526.93)/4.1744 -> 1437
B105: BC287F | C105: 38328 | D105: 11270 | E105: 8903 | F105: 6528 | G105: 5711 | H105: 4969 | I105: 4531 | J105: 4351 | K105: 4123 | L105: 4030 | M105: 3800 | N105: 3633 | O105: 3205 | P105: 2936 | Q105: =+(D105-526.93)/4.1744 -> 2574
B106: BC350F | C106: 60868 | D106: 17905 | E106: 14371 | F106: 10542 | G106: 9221 | H106: 8041 | I106: 7379 | J106: 7040 | K106: 6702 | L106: 6517 | M106: 6147 | N106: 5876 | O106: 5208 | P106: 4758 | Q106: =+(D106-526.93)/4.1744 -> 4163
B107: BC410F | C107: 90856 | D107: 26725 | E107: 21639 | F107: 15878 | G107: 13888 | H107: 12125 | I107: 11164 | J107: 10615 | K107: 10131 | L107: 9823 | M107: 9267 | N107: 8857 | O107: 7870 | P107: 7179 | Q107: =+(D107-526.93)/4.1744 -> 6276
B108: BC450F | C108: 129360 | D108: 38053 | E108: 30974 | F108: 22731 | G108: 19882 | H108: 17370 | I108: 16026 | J108: 15205 | K108: 14535 | L108: 14070 | M108: 13274 | N108: 12686 | O108: 11290 | P108: 10290
B109: BC500F | C109: 177449 | D109: 52195 | E109: 42628 | F109: 31286 | G109: 27365 | H109: 23918 | I109: 22096 | J109: 20937 | K109: 20032 | L109: 19371 | M109: 18276 | N109: 17466 | O109: 15559 | P109: 14172
B110: BC550F | C110: 236190 | D110: 69462 | E110: 56857 | F110: 41732 | G110: 36502 | H110: 31914 | I110: 29507 | J110: 27934 | K110: 26745 | L110: 25844 | M110: 24384 | N110: 23303 | O110: 20771 | P110: 18913
B111: BC600F | C111: 441980 | D111: 125440 | E111: 102986 | F111: 75597 | G111: 66121 | H111: 57833 | I111: 53533 | J111: 50621 | K111: 48507 | L111: 46828 | M111: 44184 | N111: 42224 | O111: 37669 | P111: 34283
E113: rpm
B114: Model | C114: Static Nm | D114: dyn rev | E114: 10 | F114: 50 | G114: 100 | H114: 200 | I114: 300 | J114: 400 | K114: 500 | L114: 600 | M114: 800 | N114: 1000 | O114: 1500 | P114: 2000 | Q114: 3000 | R114: 4000
A115: Correlation with BJD data | B115: BC225F | C115: 16170 | D115: 4753 | E115: =+(D115-32.667)/1.0617 -> 4446 | G115: =+(D115-37.583)/1.6591 -> 2842 | K115: =+(D115-60.951)/2.2429 -> 2092 | N115: =+(D115-49.256)/2.5724 -> 1829 | P115: =+(D115-24.918)/3.2564 -> 1452 | R115: =+(D115-43.836)/4.1051 -> 1147
B116: BC240F | C116: 22187 | D116: 6527 | E116: =+(D116-32.667)/1.0617 -> 6117 | G116: =+(D116-37.583)/1.6591 -> 3911 | K116: =+(D116-60.951)/2.2429 -> 2883 | N116: 2518 | P116: 1997 | R116: 1579
B117: BC287F | C117: 38328 | D117: 11270 | E117: 10584 | G117: 6770 | K117: 4998 | N117: 4362 | P117: 3453 | R117: 2735
B118: BC350F | C118: 60868 | D118: 17905 | E118: 16834 | G118: 10769 | K118: 7956 | N118: 6941 | P118: 5491 | R118: 4351
B119: BC410F | C119: 90856 | D119: 26725 | E119: 25141 | G119: 16085 | K119: 11888 | N119: 10370 | P119: 8199 | R119: 6500
B120: BC450F | C120: 129360 | D120: 38053 | E120: 35811 | G120: 22913 | K120: 16939 | N120: 14774 | P120: 11678 | R120: 9259
B121: BC500F | C121: 177449 | D121: 52195 | E121: 49131 | G121: 31437 | K121: 23244 | N121: 20271 | P121: 16021 | R121: 12704
B122: BC550F | C122: 236190 | D122: 69462 | E122: 65394 | G122: 41845 | K122: 30943 | N122: 26984 | P122: 21323 | R122: 16910
B123: BC600F | C123: 441980 | D123: 125440 | E123: 118119 | G123: 75585 | K123: 55900 | N123: 48745 | P123: 38513 | R123: 30546

Sheet Basic life graph (hidden)
F3: rpm
B4: Model | D4: static | E4: dyn fwd | F4: 10 | G4: 50 | H4: 100 | I4: 200 | J4: 300 | K4: 400 | L4: 500 | M4: 600 | N4: 800 | O4: 1000 | P4: 1500 | Q4: 2000 | R4: 3000 | S4: 4000
B5: BJ95 | C5: TCAE-R-1 | D5: 2500 | E5: 1,127 | F5: 570 | G5: 415 | H5: 365 | I5: 320 | J5: 300 | K5: 280 | L5: 270 | M5: 260 | N5: 245 | O5: 234 | P5: 205 | Q5: 186 | R5: 162 | S5: 148
B6: BJ125 | C6: TCAE-R-2 | D6: 5780 | E6: 2,744 | F6: 1,350 | G6: 980 | H6: 860 | I6: 730 | J6: 710 | K6: 660 | L6: 630 | M6: 610 | N6: 580 | O6: 550 | P6: 485 | Q6: 440 | R6: 385 | S6: 350
B7: BJ150 | C7: TCAE-R-3 | D7: 11564 | E7: 4,704 | F7: 2,300 | G7: 1700 | H7: 1450 | I7: 1300 | J7: 1200 | K7: 1150 | L7: 1100 | M7: 1050 | N7: 980 | O7: 940 | P7: 820 | Q7: 750 | R7: 650 | S7: 600
B8: BJ175 | C8: TCAE-R-4 | D8: 15680 | E8: 6,713 | F8: 3,650 | G8: 2650 | H8: 2350 | I8: 2050 | J8: 1950 | K8: 1800 | L8: 1700 | M8: 1650 | N8: 1550 | O8: 1500 | P8: 1300 | Q8: 1200 | R8: 1050 | S8: 940
B9: BJ200 | C9: TCAE-R-5 | D9: 23912 | E9: 11,172 | F9: 5,500 | G9: 4000 | H9: 3500 | I9: 3050 | J9: 2900 | K9: 2700 | L9: 2550 | M9: 2500 | N9: 2350 | O9: 2250 | P9: 1950 | Q9: 1800 | R9: 1550 | S9: 1400
B10: BJ225 | C10: TCAE-R-6 | D10: 29694 | E10: 14,700 | F10: 7,800 | G10: 5700 | H10: 5000 | I10: 4350 | J10: 4150 | K10: 3800 | L10: 3650 | M10: 3550 | N10: 3350 | O10: 3200 | P10: 2800 | Q10: 2550 | R10: 2200 | S10: 2000
B11: BJ250 | C11: TCAE-R-7 | D11: 42238 | E11: 20,678 | F11: 10,600 | G11: 7800 | H11: 6800 | I11: 6000 | J11: 5700 | K11: 5200 | L11: 5000 | M11: 4850 | N11: 4600 | O11: 4400 | P11: 3800 | Q11: 3450 | R11: 3050 | S11: 2750
B12: BJ300 | C12: TCAE-R-8 | D12: 63112 | E12: 29,106 | F12: 14,100 | G12: 10300 | H12: 9000 | I12: 7900 | J12: 7500 | K12: 6900 | L12: 6700 | M12: 6300 | N12: 6100 | O12: 5800 | P12: 5100 | Q12: 4600 | R12: 4000 | S12: 3650
F14: rpm
B15: Model | D15: static | E15: dyn rev | F15: 10 | G15: 50 | H15: 100 | I15: 200 | J15: 300 | K15: 400 | L15: 500 | M15: 600 | N15: 800 | O15: 1000 | P15: 1500 | Q15: 2000 | R15: 3000 | S15: 4000
B16: DOJ68 | C16: TCAE-S-000 | D16: 1090 | E16: 275 | F16: 180 | G16: 130 | H16: 118 | I16: 104 | J16: 97 | K16: 93 | L16: 89 | M16: 87 | N16: 81 | O16: 78 | P16: 69 | Q16: 61 | R16: 56 | S16: 49
B17: DOJ75 | C17: TCAE-S-00 | D17: 1520 | E17: 392 | F17: 250 | G17: 176 | H17: 167 | I17: 148 | J17: 137 | K17: 132 | L17: 125 | M17: 122 | N17: 110 | O17: 110 | P17: 98 | Q17: 88 | R17: 79 | S17: 69
B18: DOJ87 | C18: TCAE-S-0 | D18: 2500 | E18: 640 | F18: 400 | G18: 284 | H18: 260 | I18: 230 | J18: 215 | K18: 205 | L18: 196 | M18: 190 | N18: 180 | O18: 172 | P18: 154 | Q18: 137 | R18: 124 | S18: 108
B19: DOJ100 | C19: TCAE-S-1 | D19: 3720 | E19: 880 | F19: 580 | G19: 420 | H19: 387 | I19: 343 | J19: 318 | K19: 303 | L19: 289 | M19: 284 | N19: 264 | O19: 255 | P19: 225 | Q19: 200 | R19: 184 | S19: 160
B20: DOJ125 | C20: TCAE-S-2 | D20: 5780 | E20: 1470 | F20: 1180 | G20: 862 | H20: 784 | I20: 686 | J20: 637 | K20: 617 | L20: 588 | M20: 568 | N20: 540 | O20: 515 | P20: 460 | Q20: 410 | R20: 370 | S20: 323
B21: DOJ150 | C21: TCAE-S-3 | D21: 11560 | E21: 2890 | F21: 2060 | G21: 1470 | H21: 1370 | I21: 1176 | J21: 1120 | K21: 1070 | L21: 1030 | M21: 980 | N21: 930 | O21: 900 | P21: 800 | Q21: 715 | R21: 647 | S21: 558
B22: DOJ175 | C22: TCAE-S-4 | D22: 15680 | E22: 4010 | F22: 3330 | G22: 2440 | H22: 2130 | I22: 1870 | J22: 1730 | K22: 1630 | L22: 1560 | M22: 1520 | N22: 1430 | O22: 1370 | P22: 1190 | Q22: 1080 | R22: 950 | S22: 860
B23: DOJ200 | C23: TCAE-S-5 | D23: 23900 | E23: 5880 | F23: 5450 | G23: 3990 | H23: 3500 | I23: 3050 | J23: 2830 | K23: 2670 | L23: 2560 | M23: 2480 | N23: 2350 | O23: 2240 | P23: 1960 | Q23: 1781 | R23: 1558 | S23: 1410
B24: DOJ225 | C24: TCAE-S-6 | D24: 29700 | E24: 7200 | F24: 5640 | G24: 4150 | H24: 3630 | I24: 3170 | J24: 2940 | K24: 2770 | L24: 2660 | M24: 2570 | N24: 2430 | O24: 2320 | P24: 2020 | Q24: 1870 | R24: 1640
B25: DOJ250 | C25: TCAE-S-7 | D25: 42000 | E25: 11000 | F25: 8820 | G25: 6470 | H25: 5600 | I25: 4960 | J25: 4600 | K25: 4340 | L25: 4150 | M25: 4000 | N25: 3800 | O25: 3600 | P25: 3180 | Q25: 2920 | R25: 2550
B26: DOJ300 | C26: TCAE-S-8 | D26: 63000 | E26: 14500 | F26: 11500 | G26: 8400 | H26: 7350 | I26: 6400 | J26: 5900 | K26: 5600 | L26: 5400 | M26: 5200 | N26: 4900 | O26: 4700 | P26: 4120 | Q26: 3800 | R26: 3330
B27: DOJ350 | C27: TCAE-S-9 | D27: 92000 | E27: 23000 | F27: 18100 | G27: 13300 | H27: 11600 | I27: 10200 | J27: 9400 | K27: 8900 | L27: 8500 | M27: 8200 | N27: 7800 | O27: 7500 | P27: 6520 | Q27: 6020 | R27: 5260
B28: DOJ400 | C28: TCAE-S-10 | D28: 142000 | E28: 34000 | F28: 26900 | G28: 19800 | H28: 17200 | I28: 15000 | J28: 14000 | K28: 13200 | L28: 12700 | M28: 12200 | N28: 11500 | O28: 11000 | P28: 9690 | Q28: 8900 | R28: 7830
B29: DOJ450 | C29: TCAE-S-11 | D29: 187000 | E29: 49000 | F29: 38300 | G29: 28100 | H29: 24600 | I29: 21500 | J29: 19900 | K29: 18800 | L29: 18000 | M29: 17400 | N29: 16400 | O29: 15700 | P29: 13800 | Q29: 12700 | R29: 11100
B30: DOJ500 | C30: TCAE-S-12 | D30: 260000 | E30: 67000 | F30: 52700 | G30: 38700 | H30: 33800 | I30: 29600 | J30: 27400 | K30: 25800 | L30: 24800 | M30: 24000 | N30: 22600 | O30: 21700 | P30: 19300 | Q30: 17500 | R30: 15300
B31: DOJ550 | C31: TCAE-S-13 | D31: 343000 | E31: 89000 | F31: 70400 | G31: 51600 | H31: 45200 | I31: 39500 | J31: 36500 | K31: 34600 | L31: 33100 | M31: 32000 | N31: 30000 | O31: 29000 | P31: 25700 | Q31: 23400 | R31: 20400
B32: DOJ625 | C32: TCAE-S-14 | D32: 618000 | E32: 116000 | F32: 99000 | G32: 72700 | H32: 63600 | I32: 55600 | J32: 51400 | K32: 48700 | L32: 46600 | M32: 45000 | N32: 42600 | O32: 40700 | P32: 36300 | Q32: 33000 | R32: 28800
F34: rpm
B35: Model | D35: static | E35: dyn fwd | F35: 10 | G35: 50 | H35: 100 | I35: 200 | J35: 300 | K35: 400 | L35: 500 | M35: 600 | N35: 800 | O35: 1000 | P35: 1500 | Q35: 2000 | R35: 3000 | S35: 4000
B36: BJ95 | C36: TCAE-L-1 | D36: 2500 | E36: 1,127 | F36: 570 | G36: 415 | H36: 365 | I36: 320 | J36: 300 | K36: 280 | L36: 270 | M36: 260 | N36: 245 | O36: 234 | P36: 205 | Q36: 186 | R36: 162 | S36: 148
B37: BJ125 | C37: TCAE-L-2 | D37: 5780 | E37: 2,744 | F37: 1,350 | G37: 980 | H37: 860 | I37: 730 | J37: 710 | K37: 660 | L37: 630 | M37: 610 | N37: 580 | O37: 550 | P37: 485 | Q37: 440 | R37: 385 | S37: 350
B38: BJ150 | C38: TCAE-L-3 | D38: 11564 | E38: 4,704 | F38: 2,300 | G38: 1700 | H38: 1450 | I38: 1300 | J38: 1200 | K38: 1150 | L38: 1100 | M38: 1050 | N38: 980 | O38: 940 | P38: 820 | Q38: 750 | R38: 650 | S38: 600
B39: BJ175 | C39: TCAE-L-4 | D39: 15680 | E39: 6,713 | F39: 3,650 | G39: 2650 | H39: 2350 | I39: 2050 | J39: 1950 | K39: 1800 | L39: 1700 | M39: 1650 | N39: 1550 | O39: 1500 | P39: 1300 | Q39: 1200 | R39: 1050 | S39: 940
B40: BJ200 | C40: TCAE-L-5 | D40: 23912 | E40: 11,172 | F40: 5,500 | G40: 4000 | H40: 3500 | I40: 3050 | J40: 2900 | K40: 2700 | L40: 2550 | M40: 2500 | N40: 2350 | O40: 2250 | P40: 1950 | Q40: 1800 | R40: 1550 | S40: 1400
B41: BJ225 | C41: TCAE-L-6 | D41: 29694 | E41: 14,700 | F41: 7,800 | G41: 5700 | H41: 5000 | I41: 4350 | J41: 4150 | K41: 3800 | L41: 3650 | M41: 3550 | N41: 3350 | O41: 3200 | P41: 2800 | Q41: 2550 | R41: 2200 | S41: 2000
B42: BJ250 | C42: TCAE-L-7 | D42: 42238 | E42: 20,678 | F42: 10,600 | G42: 7800 | H42: 6800 | I42: 6000 | J42: 5700 | K42: 5200 | L42: 5000 | M42: 4850 | N42: 4600 | O42: 4400 | P42: 3800 | Q42: 3450 | R42: 3050 | S42: 2750
B43: BJ300 | C43: TCAE-L-8 | D43: 63112 | E43: 29,106 | F43: 14,100 | G43: 10300 | H43: 9000 | I43: 7900 | J43: 7500 | K43: 6900 | L43: 6700 | M43: 6300 | N43: 6100 | O43: 5800 | P43: 5100 | Q43: 4600 | R43: 4000 | S43: 3650
B44: DOJ350 | C44: TCAE-L-9 | D44: 92000 | E44: 23000 | F44: 18100 | G44: 13300 | H44: 11600 | I44: 10200 | J44: 9400 | K44: 8900 | L44: 8500 | M44: 8200 | N44: 7800 | O44: 7500 | P44: 6520 | Q44: 6020 | R44: 5260
B45: DOJ400 | C45: TCAE-L-10 | D45: 142000 | E45: 34000 | F45: 26900 | G45: 19800 | H45: 17200 | I45: 15000 | J45: 14000 | K45: 13200 | L45: 12700 | M45: 12200 | N45: 11500 | O45: 11000 | P45: 9690 | Q45: 8900 | R45: 7830
B46: DOJ450 | C46: TCAE-L-11 | D46: 187000 | E46: 49000 | F46: 38300 | G46: 28100 | H46: 24600 | I46: 21500 | J46: 19900 | K46: 18800 | L46: 18000 | M46: 17400 | N46: 16400 | O46: 15700 | P46: 13800 | Q46: 12700 | R46: 11100
B47: DOJ500 | C47: TCAE-L-12 | D47: 260000 | E47: 67000 | F47: 52700 | G47: 38700 | H47: 33800 | I47: 29600 | J47: 27400 | K47: 25800 | L47: 24800 | M47: 24000 | N47: 22600 | O47: 21700 | P47: 19300 | Q47: 17500 | R47: 15300
B48: DOJ550 | C48: TCAE-L-13 | D48: 343000 | E48: 89000 | F48: 70400 | G48: 51600 | H48: 45200 | I48: 39500 | J48: 36500 | K48: 34600 | L48: 33100 | M48: 32000 | N48: 30000 | O48: 29000 | P48: 25700 | Q48: 23400 | R48: 20400
B49: DOJ625 | C49: TCAE-L-14 | D49: 618000 | E49: 116000 | F49: 99000 | G49: 72700 | H49: 63600 | I49: 55600 | J49: 51400 | K49: 48700 | L49: 46600 | M49: 45000 | N49: 42600 | O49: 40700 | P49: 36300 | Q49: 33000 | R49: 28800
F51: rpm
B52: Model | D52: dyn fwd | E52: dyn rev | F52: 10 | G52: 50 | H52: 100 | I52: 200 | J52: 300 | K52: 400 | L52: 500 | M52: 600 | N52: 800 | O52: 1000 | P52: 1200 | Q52: 1500 | R52: 1800 | S52: 2000 | T52: 2500 | U52: 3000
B53: BC75 | C53: TCAE-V-00 | F53: 265 | G53: 191 | H53: 167 | J53: 142 | M53: 120 | O53: 108 | P53: 99 | Q53: 95 | R53: 86 | S53: 85 | T53: 75
B54: BC87 | C54: TCAE-V-0 | F54: 412 | G54: 304 | H54: 265 | J54: 221 | M54: 186 | O54: 168 | Q54: 150 | S54: 137
B55: BC100 | C55: TCAE-V-1 | F55: 608 | G55: 451 | H55: 387 | J55: 324 | M55: 265 | O55: 237 | Q55: 211 | R55: 192
B56: BC125 | C56: TCAE-V-2 | F56: 1,275 | G56: 903 | H56: 795 | J56: 662 | M56: 549 | O56: 491 | Q56: 432
B57: BC150 | C57: TCAE-V-3 | F57: 2,109 | G57: 1,570 | H57: 1,344 | J57: 1,128 | M57: 942 | O57: 853 | P57: 795
B58: BC175 | C58: TCAE-V-4 | F58: 3,139 | G58: 2,354 | H58: 2,080 | J58: 1,766 | M58: 1,521 | O58: 1,373
B59: BC200 | C59: TCAE-V-5 | F59: 5,445 | G59: 3,924 | H59: 3,434 | J59: 2,845 | M59: 2,403 | O59: 2,158
B60: DOX225 | C60: TCAE-V-6 | F60: 9,095 | G60: 6,692 | H60: 5,853 | I60: 5,112 | J60: 4,741 | K60: 4,467 | L60: 4,289 | M60: 4,144 | N60: 3,918 | O60: 3,741 | P60: 3287 | Q60: 3033 | R60: 2826 | S60: 2706 | T60: 2452
B61: DOX250 | C61: TCAE-V-7 | F61: 12,188 | G61: 8,940 | H61: 7,738 | I61: 6,854 | J61: 6,356 | K61: 5,997 | L61: 5,735 | M61: 5,527 | N61: 5,251 | O61: 4,975 | P61: 4386 | Q61: 4046 | R61: 3769 | S61: 3608
B62: DOX300 | C62: TCAE-V-8 | F62: 25,062 | G62: 18,306 | H62: 16,018 | I62: 13,948 | J62: 12,858 | K62: 12,204 | L62: 11,768 | M62: 11,332 | N62: 10,679 | O62: 10,243 | P62: 8930 | Q62: 8228 | R62: 7655
B63: DOX350 | C63: TCAE-V-9 | F63: 34,154 | G63: 25,097 | H63: 21,889 | I63: 19,247 | J63: 17,737 | K63: 16,794 | L63: 16,039 | M63: 15,473 | N63: 14,718 | O63: 14,152 | P63: 12330 | Q63: 11378
B64: DOX390 | C64: TCAE-V-10 | F64: 47,471 | G64: 34,941 | H64: 30,353 | I64: 26,471 | J64: 24,706 | K64: 23,294 | L64: 22,412 | M64: 21,529 | N64: 20,294 | O64: 19,412 | P64: 17038
B65: DOX440 | C65: TCAE-V-11 | F65: 57,164 | G65: 41,940 | H65: 36,716 | I65: 32,090 | J65: 29,701 | K65: 28,060 | L65: 26,866 | M65: 25,970 | N65: 24,478 | O65: 23,433 | P65: 20550
B66: DOX490 | C66: TCAE-V-12 | F66: 98,321 | G66: 72,201 | H66: 63,060 | I66: 55,224 | J66: 51,119 | K66: 48,134 | L66: 46,269 | M66: 44,776 | N66: 42,164 | O66: 40,485
B67: DOX550 | C67: TCAE-V-13 | F67: 162,948 | G67: 119,434 | H67: 104,620 | I67: 91,427 | J67: 84,483 | K67: 80,085 | L67: 76,613 | M67: 74,067 | N67: 69,438 | O67: 67,124
B68: DOX625 | C68: TCAE-V-14 | F68: 247,500 | G68: 181,750 | H68: 159,000 | I68: 139,000 | J68: 128,500 | K68: 121,750 | L68: 116,500 | M68: 112,500 | N68: 106,500 | O68: 101,750

Sheet Daves scratchpad 1 (hidden)
B2: OBJECTIVE:
A3: 1 | B3: Determine the optimum duty factor for TCAE based on real life failed coupling life
A6: Case 1 - Visy | B6: PM3 turbo pump | F6: Case 2 - Visy | G6: PM6 turbo pump | K6: Case 3 - CHH K1 | L6: Kiln 1 Fan 1 | P6: Case 4 - CHH K1 | Q6: Kiln 6 Fan 8 | U6: Case 5 - CHH K1 | V6: Kiln7 Fan 7 | Z6: Case 6 - CHH K1 | AA6: Kiln 9 Fan 7 | AE6: Case 7 - CHH K1 | AF6: Kiln 10 Fan 3
A7: Motor | B7: 18.5 | C7: kW | F7: Motor | G7: 22 | H7: kW | K7: Motor | L7: 15 | M7: kW | P7: Motor | Q7: 15 | R7: kW | U7: Motor | V7: 15 | W7: kW | Z7: Motor | AA7: 15 | AB7: kW | AE7: Motor | AF7: 15 | AG7: kW
A8: speed | B8: 1440 | C8: rpm | F8: speed | G8: 1450 | H8: rpm | K8: speed | L8: 980 | M8: rpm | P8: speed | Q8: 980 | R8: rpm | U8: speed | V8: 980 | W8: rpm | Z8: speed | AA8: 980 | AB8: rpm | AE8: speed | AF8: 980 | AG8: rpm
A9: MSF | B9: 1.25 | F9: MSF | G9: 1.25 | K9: MSF | L9: 1.25 | P9: MSF | Q9: 1.25 | U9: MSF | V9: 1.25 | Z9: MSF | AA9: 1.25 | AE9: MSF | AF9: 1.25
A10: DCF | B10: 1.44 | F10: DCF | G10: 1.44 | K10: DCF | L10: 1.44 | P10: DCF | Q10: 1.44 | U10: DCF | V10: 1.44 | Z10: DCF | AA10: 1.44 | AE10: DCF | AF10: 1.44
A11: AF | B11: 0.95 | F11: AF | G11: 0.95 | K11: AF | L11: 0.95 | P11: AF | Q11: 0.95 | U11: AF | V11: 0.95 | Z11: AF | AA11: 0.95 | AE11: AF | AF11: 0.95
A12: Load capacity | B12: 80% | F12: Load capacity | G12: 80% | K12: Load capacity | L12: 80% | P12: Load capacity | Q12: 80% | U12: Load capacity | V12: 80% | Z12: Load capacity | AA12: 80% | AE12: Load capacity | AF12: 80%
A13: Original result | B13: TCAE | C13: Life hours | D13: Life days | F13: Original result | G13: TCAE | H13: Life hours | I13: Life days | K13: Original result | L13: TCAE | M13: Life hours | N13: Life days | P13: Original result | Q13: TCAE | R13: Life hours | S13: Life days | U13: Original result | V13: TCAE | W13: Life hours | X13: Life days | Z13: Original result | AA13: TCAE | AB13: Life hours | AC13: Life days | AE13: Original result | AF13: TCAE | AG13: Life hours | AH13: Life days
B14: TCAE 1R | C14: 8,842 | D14: =+C14/24 -> 368 | G14: TCAE 1R | H14: 5,328 | I14: 222 | L14: TCAE 1R | Q14: TCAE 1R | V14: TCAE 1R | AA14: TCAE 1R | AF14: TCAE 1R
B15: TCAE 2R | C15: 139,678 | D15: =+C15/24 -> 5,820 | G15: TCAE 2R | H15: 84,192 | I15: 3,508 | L15: TCAE 2R | Q15: TCAE 2R | V15: TCAE 2R | AA15: TCAE 2R | AF15: TCAE 2R
A17: Actual service history | F17: Actual service history | K17: Actual service history | P17: Actual service history | U17: Actual service history | Z17: Actual service history | AE17: Actual service history
A18: Model installed | B18: =+B14 -> TCAE 1R | F18: Model installed | G18: =+G14 -> TCAE 1R | K18: Model installed | L18: =+L14 -> TCAE 1R | P18: Model installed | Q18: =+Q14 -> TCAE 1R | U18: Model installed | V18: =+V14 -> TCAE 1R | Z18: Model installed | AA18: =+AA14 -> TCAE 1R | AE18: Model installed | AF18: =+AF14 -> TCAE 1R
A19: Installed | B19: 2016-12-13 | F19: Installed | G19: 2017-01-01 | K19: Installed | L19: 2017-01-05 | P19: Installed | Q19: 2017-01-05 | U19: Installed | V19: 2017-01-06 | Z19: Installed | AA19: 2016-11-07 | AE19: Installed | AF19: 2017-01-05
A20: Failed | B20: 2019-01-01 | F20: Failed | G20: 2018-05-28 | K20: Failed | L20: 2017-08-19 | P20: Failed | Q20: 2018-03-06 | U20: Failed | V20: 2017-11-23 | Z20: Failed | AA20: 2017-06-21 | AE20: Failed | AF20: 2018-04-10
A21: Operation time | B21: =+B20-B19 -> 749 | F21: Operation time | G21: =+G20-G19 -> 512 | K21: Operation time | L21: =+L20-L19 -> 226 | P21: Operation time | Q21: =+Q20-Q19 -> 425 | U21: Operation time | V21: =+V20-V19 -> 321 | Z21: Operation time | AA21: =+AA20-AA19 -> 226 | AE21: Operation time | AF21: =+AF20-AF19 -> 460
A23: Updated calculation results | C23: hours | D23: days | F23: Updated calculation results | H23: hours | I23: days | K23: Updated calculation results | M23: hours | N23: days | P23: Updated calculation results | R23: hours | S23: days | U23: Updated calculation results | W23: hours | X23: days | Z23: Updated calculation results | AB23: hours | AC23: days | AE23: Updated calculation results | AG23: hours | AH23: days
A24: Load capacity | B24: 80% | F24: Load capacity | G24: 80% | K24: Load capacity | L24: 80% | P24: Load capacity | Q24: 80% | U24: Load capacity | V24: 80% | Z24: Load capacity | AA24: 80% | AE24: Load capacity | AF24: 80%
A25: REDUCED LIFE | B25: TCAE-0-R | C25: 972 | D25: 41 | F25: REDUCED LIFE | G25: TCAE-1-R | H25: 5,821 | I25: 243 | K25: REDUCED LIFE | L25: TCAE-0-R | M25: 945 | N25: 39 | P25: REDUCED LIFE | Q25: TCAE-0-R | R25: 945 | S25: 39 | U25: REDUCED LIFE | V25: TCAE-0-R | W25: 945 | X25: 39 | Z25: REDUCED LIFE | AA25: TCAE-0-R | AB25: 945 | AC25: 39 | AE25: REDUCED LIFE | AF25: TCAE-0-R | AG25: 945 | AH25: 39
A26: RECOMMENDED | B26: TCAE-1-R | C26: 9,646 | D26: 402 | F26: RECOMMENDED | G26: TCAE-2-R | H26: 91,866 | I26: 3,828 | K26: RECOMMENDED | L26: TCAE-1-R | M26: 8,917 | N26: 372 | P26: RECOMMENDED | Q26: TCAE-1-R | R26: 8,917 | S26: 372 | U26: RECOMMENDED | V26: TCAE-1-R | W26: 8,917 | X26: 372 | Z26: RECOMMENDED | AA26: TCAE-1-R | AB26: 8,917 | AC26: 372 | AE26: RECOMMENDED | AF26: TCAE-1-R | AG26: 8,917 | AH26: 372
A27: EXTENDED LIFE | B27: TCAE-2-R | C27: 152,374 | D27: 6,349 | F27: EXTENDED LIFE | G27: TCAE-3-R | H27: 426,637 | I27: 17,777 | K27: EXTENDED LIFE | L27: TCAE-2-R | M27: 130,952 | N27: 5,456 | P27: EXTENDED LIFE | Q27: TCAE-2-R | R27: 130,952 | S27: 5,456 | U27: EXTENDED LIFE | V27: TCAE-2-R | W27: 130,952 | X27: 5,456 | Z27: EXTENDED LIFE | AA27: TCAE-2-R | AB27: 130,952 | AC27: 5,456 | AE27: EXTENDED LIFE | AF27: TCAE-2-R | AG27: 130,952 | AH27: 5,456
A28: Load capacity | B28: 70% | F28: Load capacity | G28: 70% | K28: Load capacity | L28: 85% | P28: Load capacity | Q28: 75% | U28: Load capacity | V28: 85% | Z28: Load capacity | AA28: 85% | AE28: Load capacity | AF28: 75%
A29: REDUCED LIFE | B29: TCAE-0-R | C29: 1,452 | D29: 60 | F29: REDUCED LIFE | G29: TCAE-1-R | H29: 8,689 | I29: 362 | K29: REDUCED LIFE | L29: TCAE-1-R | M29: 7,434 | N29: 310 | P29: REDUCED LIFE | Q29: TCAE-0-R | R29: 1,146 | S29: 48 | U29: REDUCED LIFE | V29: TCAE-1-R | W29: 7,434 | X29: 310 | Z29: REDUCED LIFE | AA29: TCAE-1-R | AB29: 7,434 | AC29: 310 | AE29: REDUCED LIFE | AF29: TCAE-0-R | AG29: 1,146 | AH29: 48
A30: RECOMMENDED | B30: TCAE-1-R | C30: 14,398 | D30: 600 | F30: RECOMMENDED | G30: TCAE-2-R | H30: 137,129 | I30: 5,714 | K30: RECOMMENDED | L30: TCAE-2-R | M30: 109,176 | N30: 4,549 | P30: RECOMMENDED | Q30: TCAE-1-R | R30: 10,822 | S30: 451 | U30: RECOMMENDED | V30: TCAE-2-R | W30: 109,176 | X30: 4,549 | Z30: RECOMMENDED | AA30: TCAE-2-R | AB30: 109,176 | AC30: 4,549 | AE30: RECOMMENDED | AF30: TCAE-1-R | AG30: 10,822 | AH30: 451
A31: EXTENDED LIFE | B31: TCAE-2-R | C31: 227,450 | D31: 9,477 | F31: EXTENDED LIFE | G31: TCAE-3-R | H31: 636,847 | I31: 26,535 | K31: EXTENDED LIFE | L31: TCAE-3-R | M31: 474,732 | N31: 19,780 | P31: EXTENDED LIFE | Q31: TCAE-2-R | R31: 158,927 | S31: 6,622 | U31: EXTENDED LIFE | V31: TCAE-3-R | W31: 474,732 | X31: 19,780 | Z31: EXTENDED LIFE | AA31: TCAE-3-R | AB31: 474,732 | AC31: 19,780 | AE31: EXTENDED LIFE | AF31: TCAE-2-R | AG31: 158,927 | AH31: 6,622
A32: Load capacity | B32: 65% | F32: Load capacity | G32: 62% | K32: Load capacity | L32: 95% | P32: Load capacity | Q32: 76% | U32: Load capacity | V32: 86% | Z32: Load capacity | AA32: 94% | AE32: Load capacity | AF32: 74%
A33: REDUCED LIFE | B33: TCAE-0-R | C33: 1,813 | D33: 76 | F33: REDUCED LIFE | G33: TCAE-0-R | H33: 1,260 | I33: 52 | K33: REDUCED LIFE | L33: TCAE-1-R | M33: 5,325 | N33: 222 | P33: REDUCED LIFE | Q33: TCAE-0-R | R33: 1,102 | S33: 46 | U33: REDUCED LIFE | V33: TCAE-1-R | W33: 7,703 | X33: 321 | Z33: REDUCED LIFE | AA33: TCAE-1-R | AB33: 5,496 | AC33: 229 | AE33: REDUCED LIFE | AF33: TCAE-0-R | AG33: 1,194 | AH33: 50
A34: RECOMMENDED | B34: TCAE-1-R | C34: 17,983 | D34: 749 | F34: RECOMMENDED | G34: TCAE-1-R | H34: 12,504 | I34: 521 | K34: RECOMMENDED | L34: TCAE-2-R | M34: 78,201 | N34: 3,258 | P34: RECOMMENDED | Q34: TCAE-1-R | R34: 10,400 | S34: 433 | U34: RECOMMENDED | V34: TCAE-2-R | W34: 113,121 | X34: 4,713 | Z34: RECOMMENDED | AA34: TCAE-2-R | AB34: 80,723 | AC34: 3,363 | AE34: RECOMMENDED | AF34: TCAE-1-R | AG34: 11,266 | AH34: 469
A35: EXTENDED LIFE | B35: TCAE-2-R | C35: 284,079 | D35: 11,837 | F35: EXTENDED LIFE | G35: TCAE-2-R | H35: 197,355 | I35: 8,223 | K35: EXTENDED LIFE | L35: TCAE-3-R | M35: 340,043 | N35: 14,168 | P35: EXTENDED LIFE | Q35: TCAE-2-R | R35: 152,736 | S35: 6,364 | U35: EXTENDED LIFE | V35: TCAE-3-R | W35: 491,889 | X35: 20,495 | Z35: EXTENDED LIFE | AA35: TCAE-3-R | AB35: 351,011 | AC35: 14,625 | AE35: TCAE-0-R | AF35: TCAE-2-R | AG35: 165,458 | AH35: 6,894
C44: Summary
C45: Case # | D45: Plant | E45: Type | F45: %load factor
C46: 1 | D46: Visy | E46: pump | F46: =+B32 -> 65%
C47: 2 | D47: Visy | E47: pump | F47: =+G32 -> 62%
C48: 7 | D48: CHH K10F3 | E48: fan | F48: =+AF32 -> 74%
C49: 4 | D49: CHH K6F8 | E49: fan | F49: =+Q32 -> 76%
C50: 5 | D50: CHH K7F7 | E50: fan | F50: =+V32 -> 86%
C51: 6 | D51: CHH K9F7 | E51: fan | F51: =+AA32 -> 94%
C52: 3 | D52: CHH K1F1 | E52: fan | F52: =+L32 -> 95%

Sheet Daves scratchpad 3 (hidden)
B2: Detailed look at TCAE-S series sizes
I3: BORE SIZE ABLE TO FIT MOTOR SIZE Kw
B4: Model S | F4: COUPLING OD | G4: Bore max | I4: 2P | J4: 4P | K4: 6P | L4: 8P
B5: TCAE-6 | C5: BC225F | D5: 16170 | E5: 4753 | F5: 244 | G5: 60 | I5: 55 | J5: 45 | K5: 30 | L5: 22
B6: TCAE-7 | C6: BC240F | D6: 22187 | E6: 6527 | F6: 240 | G6: 80 | I6: 150 | J6: 110 | K6: 75 | L6: 55
B7: TCAE-8 | C7: BC287F | D7: 38328 | E7: 11270 | F7: 287 | G7: 90 | I7: 185 | J7: 185 | K7: 132 / 110 | L7: 90
B8: TCAE-9 | C8: BC350F | D8: 60868 | E8: 17905 | F8: 366 | G8: 130 | J8: 450 | K8: 260
B9: TCAE-10 | C9: BC410F | D9: 90856 | E9: 26725 | F9: 410 | G9: 145 | I9: 900 | J9: 1100 | K9: 900 | L9: 710
B10: TCAE-11 | C10: BC450F | D10: 129360 | E10: 38053 | F10: 460 | G10: 180 | I10: 900 | J10: 1100 | K10: 900 | L10: 710
B11: TCAE-12 | C11: BC500F | D11: 177449 | E11: 52195 | F11: 500 | G11: 200 | I11: 900 | J11: 1100 | K11: 900 | L11: 710
B12: TCAE-13 | C12: BC550F | D12: 236190 | E12: 69462 | F12: 504 | G12: 190 | I12: 900 | J12: 1100 | K12: 900 | L12: 710
B13: TCAE-14 | C13: BC600F | D13: 441980 | E13: 125440 | F13: 625 | G13: 250 | I13: 900 | J13: 1100 | K13: 900 | L13: 710
B15: Electric motor shaft diameters
D17: LOW VOLTAGE MOTOR POWER kW | O17: LOW VOLTAGE MOTOR POWER HP
B18: FRAME | C18: DIAMETER | D18: 2P (2800 rpm) | E18: 4P (1440 rpm) | F18: 6P (935rpm) | G18: 8P (720rpm) | M18: FRAME NEMA | N18: DIAMETER mm | O18: 2P (3600 rpm) | P18: 4P (1800 rpm) | Q18: 6P (1200rpm) | R18: 8P (900rpm)
B19: 80 | C19: 19 | D19: 0.75 / 1.1 | E19: 0.55 / 0.75 | F19: 0.37 / 0.55 | G19: 0.18 | M19: 42 | N19: 0.375
B20: 90S | C20: 24 | D20: 1.5 | E20: 1.1 | F20: 0.75 | G20: 0.37 | M20: 48 | N20: 0.5
B21: 90L | C21: 24 | D21: 2.2 | E21: 1.5 | F21: 1.1 | G21: 0.55 | M21: 56 | N21: 0.625
B22: 100L | C22: 28 | D22: 3 | E22: 2.2 / 3 | F22: 1.5 | G22: 0.75 / 1.1 | M22: 143T | N22: 0.875 | O22: 1.5 | P22: 1
B23: 112M | C23: 28 | D23: 4 | E23: 4 | F23: 2.2 | G23: 1.5 | M23: 145T | N23: 0.875 | O23: 1.5 / 3 | P23: 1.5 / 2 | Q23: 1
B24: 132S | C24: 38 | D24: 5.5 / 7.5 | E24: 5.5 | F24: 3 | G24: 2.2 | M24: 182 | N24: 0.875
B25: 132M | C25: 38 | E25: 7.5 | F25: 4 / 5.5 | G25: 3 | M25: 184 | N25: 0.875
B26: 160M | C26: 42 | D26: 11 / 15 | E26: 11 | F26: 7.5 | G26: 4 / 5.5 | M26: 182T | N26: 1.125 | O26: 5 | P26: 3 | Q26: 1.5
B27: 160L | C27: 42 | D27: 18.5 | E27: 15 | F27: 11 | G27: 7.5 | M27: 184T | N27: 1.125 | O27: 5 / 7.5 | P27: 5 | Q27: 2
B28: 180MA | C28: 48 | D28: 22 | M28: 213 | N28: 1.125
B29: 180MC | C29: 48 | E29: 18.5 | M29: 215 | N29: 1.125
B30: 180LC | C30: 48 | E30: 22 | F30: 15 | G30: 11 | M30: 213T | N30: 1.375 | O30: 10 / 15 | P30: 7.5 | Q30: 3
B31: 200LA | C31: 55 | D31: 30 / 37 | M31: 215T | N31: 1.375 | P31: 10 | Q31: 5
B32: 200LC | C32: 55 | E32: 30 | F32: 18.5 / 22 | G32: 15 | M32: 254U | N32: 1.375
B33: 225SC | C33: 60 | E33: 37 | G33: 18.5 | M33: 256U | N33: 1.375
B34: 225MA | C34: 55 | D34: 45 | M34: 254T | N34: 1.625 | O34: 20 | P34: 15 | Q34: 7.5
B35: 225MC | C35: 60 | E35: 45 | F35: 30 | G35: 22 | M35: 256T | N35: 1.625 | O35: 25 | P35: 20 | Q35: 10
B36: 250SA | C36: 60 | D36: 55 | M36: 284U | N36: 1.625
B37: 250SC | C37: 70 | E37: 55 | F37: 37 | G37: 30 | M37: 286U | N37: 1.625
B38: 250MA | C38: 60 | D38: 75 | M38: 284T | N38: 1.875 | P38: 25 | Q38: 15
B39: 250MC | C39: 70 | E39: 75 | F39: 45 | G39: 37 | M39: 286T | N39: 1.875 | P39: 30 | Q39: 20
B40: 280SA | C40: 65 | D40: 90 | M40: 284TS | N40: 1.625 | O40: 30
B41: 280SC | C41: 80 | E41: 90 | F41: 55 | G41: 45 | M41: 286TS | N41: 1.625 | O41: 40
B42: 280MA | C42: 65 | D42: 110 | M42: 324U | N42: 1.875
B43: 280MC | C43: 80 | E43: 110 | F43: 75 | G43: 55 | M43: 326U | N43: 1.875
B44: 315SA | C44: 65 | D44: 132 | M44: 324T | N44: 2.125 | P44: 40 | Q44: 25
B45: 315SC | C45: 85 | E45: 132 | F45: 90 | G45: 75 | M45: 326T | N45: 2.125 | P45: 50 | Q45: 30
B46: 315MA | C46: 65 | D46: 150 / 185 | M46: 324TS | N46: 1.875 | O46: 50
B47: 315MC | C47: 85 | E47: 150 | F47: 110 / 132 | G47: 90 | M47: 326TS | N47: 1.875 | O47: 60
B48: 315M | C48: 85 | E48: 185 | M48: 364 | N48: 2.125
B49: 315MC** | C49: 95 | E49: 185 | M49: 365 | N49: 2.125
B50: 315AC | C50: 110 | F50: 150 / 185 | M50: 364T | N50: 2.375 | P50: 60 | Q50: 40
B51: 315CC | C51: 110 | E51: 220 / 250 | F51: 220 | M51: 365T | N51: 2.375 | P51: 75 | Q51: 50
B52: 315DC | C52: 125 | E52: 300 / 375 | F52: 260 | M52: 364TS | N52: 1.875 | O52: 75
B53: 355CC | C53: 125 | E53: 450 | M53: 365TS | N53: 1.875 | O53: 100
B54: 400JH | C54: 110 | D54: 500 / 560 / 630 | E54: 500 / 560 / 630 | F54: 400 / 450 / 500 / 560 | G54: 355 / 400 / 450 /500 | M54: 404U | N54: 2.375
B55: 450 LK | C55: 130 | E55: 710 / 800 | F55: 630 | M55: 405U | N55: 2.375
B56: 450 JH | C56: 130 | F56: 710 / 800 / 900 | G56: 560 / 630 | M56: 404T | N56: 2.875 | P56: 100 | Q56: 60
M57: 405T | N57: 2.875 | P57: 125 | Q57: 75
D58: HIGH VOLTAGE MOTOR POWER kW | M58: 404TS | N58: 2.125 | O58: 125
B59: FRAME | C59: DIAMETER | D59: 2P (2800 rpm) | E59: 4P (1440 rpm) | F59: 6P (935rpm) | G59: 8P (720rpm) | M59: 405TS | N59: 2.125 | O59: 150
B60: 315 HG | C60: 90 | D60: 160 / 185 / 200 / 220 / 250 | E60: 150 / 160 / 185 / 200 / 220 / 250 /280 | F60: 110 / 132 / 150 / 160 / 185 / 200 | G60: 132 / 160 | M60: 444U | N60: 2.875
B61: 355 JH | C61: 100 | D61: 280 / 315 / 355 | E61: 315 / 355 /400 | F61: 220 / 250 / 280 | G61: 185 / 220 / 250 / 280 | M61: 445U | N61: 2.875
B62: 400 LK | C62: 110 | D62: 400 | E62: 450 / 500 | F62: 315 / 355 / 400 | G62: 355 | M62: 444T | N62: 3.375 | P62: 150 | Q62: 100
B63: 400 JH | C63: 110 | D63: 450 / 500 / 560 | E63: 450 / 500 | F63: 450 / 500 | G63: 400 / 450 | M63: 445T | N63: 3.375 | P63: 200 | Q63: 125 / 150
B64: 450 LK | C64: 130 | E64: 630 / 660 / 710 | F64: 560 / 590 / 630 | G64: 500 / 560 | M64: 447T | N64: 3.375 | P64: 250 | Q64: 200
B65: 450 JH | C65: 130 | D65: 630 / 710 / 800 / 900 | E65: 750 / 800 / 900 / 1000 / 1100 | F65: 660 / 710 / 750 / 800 / 900 | G65: 630 / 710 | M65: 449T | N65: 3.375 | P65: 300 / 350 / 400 | Q65: 250 / 300
M66: 444TS | N66: 2.375 | O66: 200
M67: 445TS | N67: 2.375 | O67: 250 / 300
M68: 447TS | N68: 2.375 | O68: 350
M69: 449TS | N69: 2.375 | O69: 400 / 450 / 500
M70: 5009B | N70: 3.875 | P70: 450 / 500 | Q70: 350 / 400 / 450 / 500
M71: 5011A | N71: 3.375 | O71: 600
M72: 5011B | N72: 3.875 | P72: 600 / 700 | Q72: 600
M73: 5012A | N73: 2.875 | O73: 700 / 800
M74: 5012B | N74: 3.875 | P74: 800
M75: 5810B | N75: 4.875 | Q75: 700 / 800

Sheet Daves scratchpad 4 (hidden)
A1: Calculation of BC coupling life
A4: Table of data determined from graph kg.m | F4: 9.81
A6: Speed | B6: 10 | C6: 50 | D6: 100 | E6: 250 | F6: 600 | G6: 1000 | H6: 1500 | I6: 2000 | J6: 3000
A7: BC68 | B7: 18 | C7: 13.5 | D7: 12 | E7: 10.2 | F7: 8.6 | G7: 7.8 | H7: 6.9 | I7: 6.3 | J7: 5.4
A8: BC75 | B8: 27 | C8: 19.5 | D8: 17 | E8: 14.5 | F8: 12.2 | G8: 11 | H8: 9.7 | I8: 8.7 | J8: 7.5
A9: BC87 | B9: 42 | C9: 31 | D9: 27 | E9: 22.5 | F9: 19 | G9: 17.1 | H9: 15.3 | I9: 14 | J9: 12
A10: BC100 | B10: 62 | C10: 46 | D10: 39.5 | E10: 33 | F10: 27 | G10: 24.2 | H10: 21.5 | I10: 19.5 | J10: 16.7
A11: BC125 | B11: 130 | C11: 92 | D11: 81 | E11: 67.5 | F11: 56 | G11: 50 | H11: 44 | I11: 40 | J11: 34
A12: BC150 | B12: 215 | C12: 160 | D12: 137 | E12: 115 | F12: 96 | G12: 87 | H12: 79 | I12: 72 | J12: 61
A13: BC175 | B13: 320 | C13: 240 | D13: 212 | E13: 180 | F13: 155 | G13: 140 | H13: 125 | I13: 115 | J13: 100
A14: BC200 | B14: 555 | C14: 400 | D14: 350 | E14: 290 | F14: 245 | G14: 220 | H14: 194 | I14: 175 | J14: 150
A16: Table of data determined from graph N.m
A18: Speed | B18: 10 | C18: 50 | D18: 100 | E18: 250 | F18: 600 | G18: 1000 | H18: 1500 | I18: 2000 | J18: 3000
A19: BC68 | B19: =+B7*$F$4 -> 177 | C19: =+C7*$F$4 -> 132 | D19: =+D7*$F$4 -> 118 | E19: 100 | F19: 84 | G19: 77 | H19: 68 | I19: 62 | J19: 53
A20: BC75 | B20: =+B8*$F$4 -> 265 | C20: 191 | D20: 167 | E20: 142 | F20: 120 | G20: 108 | H20: 95 | I20: 85 | J20: 74
A21: BC87 | B21: 412 | C21: 304 | D21: 265 | E21: 221 | F21: 186 | G21: 168 | H21: 150 | I21: 137 | J21: 118
A22: BC100 | B22: 608 | C22: 451 | D22: 387 | E22: 324 | F22: 265 | G22: 237 | H22: 211 | I22: 191 | J22: 164
A23: BC125 | B23: 1275 | C23: 903 | D23: 795 | E23: 662 | F23: 549 | G23: 491 | H23: 432 | I23: 392 | J23: 334
A24: BC150 | B24: 2109 | C24: 1570 | D24: 1344 | E24: 1128 | F24: 942 | G24: 853 | H24: 775 | I24: 706 | J24: 598
A25: BC175 | B25: 3139 | C25: 2354 | D25: 2080 | E25: 1766 | F25: 1521 | G25: 1373 | H25: 1226 | I25: 1128 | J25: 981
A26: BC200 | B26: 5445 | C26: 3924 | D26: 3434 | E26: 2845 | F26: 2403 | G26: 2158 | H26: 1903 | I26: 1717 | J26: 1472
A29: Values based on upper and lower limits only
A30: Speed | B30: 10 | C30: 1000 | D30: 4000 | F30: Speed | G30: 10 | H30: 1000 | I30: 4000
A31: BC68 | B31: 19 | C31: 7.7 | D31: 5 | F31: BC68 | G31: =+B31*$F$4 -> 186 | H31: =+C31*$F$4 -> 76 | I31: 49
A32: BC75 | B32: 27 | C32: 11 | D32: 7.1 | F32: BC75 | G32: =+B32*$F$4 -> 265 | H32: 108 | I32: 70
A33: BC87 | B33: 42 | C33: 17 | D33: 11 | F33: BC87 | G33: 412 | H33: 167 | I33: 108
A34: BC100 | B34: 62 | C34: 25 | D34: 16.3 | F34: BC100 | G34: 608 | H34: 245 | I34: 160
A35: BC125 | B35: 120 | C35: 50 | D35: 32.4 | F35: BC125 | G35: 1177 | H35: 491 | I35: 318
A36: BC150 | B36: 210 | C36: 85 | D36: 56 | F36: BC150 | G36: 2060 | H36: 834 | I36: 549
A37: BC175 | B37: 325 | C37: 130 | D37: 85 | F37: BC175 | G37: 3188 | H37: 1275 | I37: 834
A38: BC200 | B38: 550 | C38: 220 | D38: 145 | F38: BC200 | G38: 5396 | H38: 2158 | I38: 1422
M48: FINAL EQUATIONS
L50: rpm | M50: Model | N50: speed 10-1000 | P50: speed 1000-4000 | R50: rpm
L51: 1000 | M51: BC68 | N51: =292.79*L51^-0.196 -> 76 | P51: =649.46*R51^-0.311 -> 76 | R51: 1000
M52: BC75 | N52: =414.97*L51^-0.195 -> 108 | P52: =956.05*R51^-0.316 -> 108
M53: BC87 | N53: =647.62*L51^-0.196 -> 167 | P53: =1459.4*R51^-0.314 -> 167
M54: BC100 | N54: =957.83*L51^-0.197 -> 246 | P54: =2066.3*R51^-0.309 -> 244
M55: BC125 | N55: =1823.7*L51^-0.19 -> 491 | P55: =4261.3*R51^-0.313 -> 490
M56: BC150 | N56: =3238.1*L51^-0.196 -> 836 | P56: =6670.2*R51^-0.301 -> 834
M57: BC175 | N57: =5041.1*L51^-0.199 -> 1275 | P57: =10594*R51^-0.306 -> 1280
M58: BC200 | N58: =8531*L51^-0.199 -> 2158 | P58: =17229*R51^-0.301 -> 2154
